Workbook

Sheet はじめに
A1: 中山間地域等直接支払交付金参考様式集（第6期対策）
A2: ★基本情報入力欄 はじめに太枠内の情報を入力してください。
B3: 都道府県名 | D3: ○○県 | E3: ← 「都道府県」まで記入してください。
B4: 市町村名 | D4: △△市 | E4: ← 「市町村」まで記入してください。
B5: 協定名 | D5: あいうえお集落協定
B6: 代表者名 | D6: 中山間 太郎
B7: 協定所在地 | D7: ○○県△△市○町
A9: ★記入の手順と注意事項
B10: ・「★提出書類と各シートの説明」のシート名をクリックすることで、入力する様式に移動します。または、画面下の様式名を選択すると、入力する様式を切り替えることができます。左下の◀▶をクリックすることで、隠れている様式を表示させることができます。
B11: （※まず初めに、「別紙２①」の「農用地の内訳等及びネットワーク化活動計画」を入力すると作成がスムーズです。）
B13: ・すべての集落協定の方が入力する必要のあるセルには、この色（オレンジ色）が塗ってあります。
B14: ・該当する場合に、集落協定の方が入力する必要のあるセルには、この色（薄いオレンジ色）が塗ってあります。
B15: ・この色（黄緑色）が塗ってあるセルは自動入力されます。自動入力されたものが間違っている場合は、正しく修正してください。（入力されている数式を消去すると、自由に入力できます。）
B16: ・市町村に提出する前に、自動集計された箇所も含め、誤りがないかご確認ください。
B17: ・行を追加する際は、一番左にある行番号をクリックして行全体をコピーし、表の最下部の太線より上の位置で行番号を右クリックし「コピーしたセルの挿入」を選択してください。
B18: ・画面上部に右のような表示が出た場合は「コンテンツの有効化」を押してください。
A20: ★提出書類と各シートの説明
A21: １．事業計画の申請時に提出するもの
B22: 様式番号 | D22: 様式名 | F22: 提出の必要性 | G22: シート名
B23: 参考様式第４号 | D23: 多面的機能発揮促進事業に関する計画の認定［変更の認定］の申請について | F23: 必須 （集落・個別協定） | G23: 参４_申請
F24: 必須 （集落・個別協定） | G24: 参４_申請_事業計画
C25: 別紙様式１ （共通部分） | D25: 農業の有する多面的機能の発揮の促進に関する活動計画書 （中山間地域等直接支払に関する集落協定） | F25: 必須 （集落・個別協定） | G25: 別紙１①
C26: 別添１ | D26: 実施区域位置図 | F26: 必須 （集落・個別協定） | G26: 別紙１②
C27: 別添２ | D27: 構成員一覧 | F27: 必須 （集落・個別協定） | G27: 別紙１③
C28: 別紙○ | D28: ２号事業様式（中山間地域等直接支払交付金） | F28: 必須 （集落協定） | G28: 別紙１④
C29: 別紙様式２ | D29: 農用地の内訳等及びネットワーク化活動計画 | F29: 必須 （集落協定） | G29: 別紙２①
C30: 別紙様式３ | D30: 協定対象施設の管理方法 | F30: 必須 （集落協定） | G30: 別紙３
C31: 別紙様式４ | D31: 土地改良通年施行実施計画書 | F31: 必須 （集落協定） | G31: 別紙４
C32: 別紙様式５ | D32: 農業所得の確認に関する承諾書 | F32: 必須 （集落協定） | G32: 別紙５
C33: 別紙様式６ | D33: 個別協定 経営規模及び農業所得調書 | F33: 必須 （個別協定） | G33: 別紙６
C34: 別紙様式７ | D34: 協定農用地の概要 | F34: 必要に応じて （集落・個別協定） | G34: 別紙７
C35: 別添 | D35: 農作業受委託契約書（様式例） | F35: 必要に応じて （集落・個別協定） | G35: 別紙７（別添）
C36: 別紙様式８ | D36: 環境負荷低減のチェックシート（集落協定向け） | F36: 必須 （集落協定） | G36: 別紙８
C37: 別紙様式９ | D37: 環境負荷低減のチェックシート（個別協定向け） | F37: 必須 （個別協定） | G37: 別紙９
A39: ２．ネットワーク化活動計画作成時に使用するもの
B40: 様式番号 | D40: 様式名 | F40: 提出の必要性 | G40: シート名
C41: 別紙様式２ | D41: 農用地の内訳等及びネットワーク化活動計画 ○農用地の内訳等 | F41: 必須 （集落協定） | G41: 別紙２① （再掲）
D42: 農用地の内訳等及びネットワーク化活動計画 ○ネットワーク化活動計画 | F42: 必須 （集落協定） | G42: 別紙２②（ネットワーク化活動計画）
F43: 必要に応じて （集落協定） | G43: 別紙２③（ネットワーク化）
F44: 必要に応じて （集落協定） | G44: 別紙２④（統合）
F45: 必要に応じて （集落協定） | G45: 別紙２⑤（多様な組織等の参画）
A46: ３．その他の様式
B47: 様式番号 | D47: 様式名 | F47: 提出の必要性 | G47: シート名
B48: 参考様式第10号 | D48: 中山間地域等直接支払交付金交付農用地の自然災害における災害復旧計画の提出について | F48: 必要に応じて （集落・個別協定） | G48: 参10
B49: 参考様式第12号 | D49: 共用資産管理台帳 | F49: 必要に応じて （集落協定） | G49: 参12
B50: 参考様式第13号 | D50: 機械等利用管理規程 | F50: 必要に応じて （集落協定） | G50: 参13
B51: 参考様式第14号 | D51: 機械等利用簿 | F51: 必要に応じて （集落協定） | G51: 参14
B52: 参考様式第17号 | D52: 令和7年度中山間地域等直接支払交付金早期交付申請書 | F52: 必要に応じて （集落・個別協定） | G52: 参17
G53: 参17_別紙
B54: 別紙１ | D54: 中山間地域等直接支払交付金収支報告書 （「中山間地域等直接支払交付金に係る会計経理の明確化及び税務対応の円滑化について」に基づく様式） | F54: 必須 （集落協定） | G54: 収支報告書（収支報告書連動）
B55: 別紙 | D55: 中山間地域等直接支払交付金の支出に係る届出について （「中山間地域等直接支払交付金における共同取組活動に要する経費の適正な支出について」に基づく様式） | F55: 必要に応じて （集落協定） | G55: 支出に係る届出
B56: ー | D56: 中山間地域等直接支払交付金 活動記録 | F56: 必要に応じて | G56: 活動記録（参考）
B57: ー | D57: 中山間地域等直接支払交付金 金銭出納簿 | F57: 必要に応じて | G57: 金銭出納簿（今年度）（参考）
G58: 金銭出納簿（前年度）（参考）
A61: ４．その他のシート（集落協定の方は入力不要です。（市町村用））
B62: 様式番号 | D62: 内容 | F62: 提出の必要性 | G62: シート名
D63: 市町村の実施状況調査の集計用シート | G63: 実施状況報告（様式2）

Sheet 別紙２①
S1: （別紙様式２）
A2: 農用地の内訳等及びネットワーク化活動計画
A3: 注１）「農用地の内訳等」は集落協定書に添付し、提出期限（当該年度の６月30日、令和７年度においては８月31日）までに協定農用地の存する市町村長に提出する。
A4: 注２）「ネットワーク化活動計画」は、体制整備単価の適用を受けようとする場合に作成するものとし、ネットワーク化活動計画の作成後は、遅滞なく協定農用地の存する市町村長に提出するとともに、令和11年度まで毎年度、記載内容の確認を行うものとする。
U5: 【別紙２①農用地の内訳等】⑤農用地の管理において、P列[農用地の現況]が"荒廃農地"かつQ列[具体的活動内容]が"復旧"と入力した面積の計。
C6: 棚田地域振興活動加算 | F6: ネットワーク化活動計画を 作成する | G6: =IF(S14="", "",S14) -> 
C7: 超急傾斜農地保全管理加算
C8: ネットワーク化加算 | F8: ネットワーク化活動計画を 作成しない | G8: =IF(S15="", "",S15) -> 
C9: スマート農業加算
C10: 集落機能強化加算の経過措置
A12: ○農用地の内訳等 | U12: こちらのセルには関数が入っているので変更しないでください。
A14: ①現況 | I14: ②基礎・体制整備単価 | K14: ③農業生産活動等の体制整備の取組（ネットワーク化活動計画の作成）の有無 | P14: ネットワーク化活動計画を作成する
P15: ネットワーク化活動計画を作成しない
K16: ④加算の適用 | P16: ⑤農用地の管理 | R16: ⑥管理者 | S16: ⑦個人配分を受ける所得超過者の引受地
A17: 地域区分 | B17: 一団の農用地名 | C17: 団地名 | D17: 地番 | E17: 地目 | F17: 面積(㎡) | G17: 交付基準(傾斜等) | H17: 超急傾斜農地 棚田地域振興農地のうち | I17: 10a当たりの単価(円) | J17: 交付額(円) | K17: 棚田地域振興活動加算 | L17: 超急傾斜農地保全管理加算 | M17: ネットワーク化加算 | N17: スマート農業加算 | O17: 集落機能強化加算の経過措置 | P17: 農用地の現況 | Q17: 具体的な活動内容 | U17: ネットワーク化活動計画＋目＋傾斜
A18: 通常地域（8法内） | B18: ○○地区 | C18: A1団地 | D18: ○○町○○番の１ | E18: 田 | F18: 589 | G18: 急傾斜 | I18: =IFERROR(VLOOKUP(U18,プルダウンリスト!$D$15:$E$70,2,FALSE),"") -> 16800 | J18: =IFERROR(ROUNDDOWN(F18*I18/1000,0),"") -> 9895 | P18: 耕作地 | R18: 農林太郎 | U18: =$S$14&E18&G18 -> 田急傾斜
A19: 通常地域（8法内） | B19: ○○地区 | C19: A1団地 | D19: ○○町○○番の２ | E19: 田 | F19: 357 | G19: 急傾斜 | I19: =IFERROR(VLOOKUP(U19,プルダウンリスト!$D$15:$E$70,2,FALSE),"") -> 16800 | J19: 5997 | P19: 耕作地 | R19: 農林太郎 | U19: =$S$14&E19&G19 -> 田急傾斜
A20: 通常地域（8法内） | B20: ○○地区 | C20: A1団地 | D20: ○○町○○番の３ | E20: 田 | F20: 210 | G20: 急傾斜 | I20: =IFERROR(VLOOKUP(U20,プルダウンリスト!$D$15:$E$70,2,FALSE),"") -> 16800 | J20: 3528 | K20: 〇 | P20: 耕作地 | R20: 農林太郎 | U20: =$S$14&E20&G20 -> 田急傾斜
A21: 通常地域（8法内） | B21: ○○地区 | C21: A1団地 | D21: ○○町○○番の４ | E21: 田 | F21: 754 | G21: 急傾斜 | I21: =IFERROR(VLOOKUP(U21,プルダウンリスト!$D$15:$E$70,2,FALSE),"") -> 16800 | J21: 12667 | P21: 耕作地 | R21: 農林太郎 | U21: 田急傾斜
A22: 通常地域（8法内） | B22: ○○地区 | C22: A1団地 | D22: ○○町○○番の５ | E22: 田 | F22: 721 | G22: 急傾斜 | I22: =IFERROR(VLOOKUP(U22,プルダウンリスト!$D$15:$E$70,2,FALSE),"") -> 16800 | J22: 12112 | P22: 耕作地 | R22: 農林太郎 | U22: 田急傾斜
A23: 通常地域（8法内） | B23: ○○地区 | C23: A1団地 | D23: ○○町○○番の６ | E23: 田 | F23: 385 | G23: 急傾斜 | I23: =IFERROR(VLOOKUP(U23,プルダウンリスト!$D$15:$E$70,2,FALSE),"") -> 16800 | J23: 6468 | K23: 〇 | P23: 耕作地 | R23: 農林太郎 | U23: 田急傾斜
A24: 通常地域（8法内） | B24: ○○地区 | C24: A1団地 | D24: ○○町○○番の７ | E24: 田 | F24: 545 | G24: 急傾斜 | I24: =IFERROR(VLOOKUP(U24,プルダウンリスト!$D$15:$E$70,2,FALSE),"") -> 16800 | J24: 9156 | P24: 耕作地 | R24: 農林太郎 | U24: 田急傾斜
A25: 通常地域（8法内） | B25: ○○地区 | C25: A1団地 | D25: ○○町○○番の８ | E25: 田 | F25: 312 | G25: 急傾斜 | I25: =IFERROR(VLOOKUP(U25,プルダウンリスト!$D$15:$E$70,2,FALSE),"") -> 16800 | J25: 5241 | K25: 〇 | P25: 耕作地 | R25: 農林太郎 | U25: 田急傾斜
A26: 通常地域（8法内） | B26: ○○地区 | C26: A1団地 | D26: ○○町○○番の９ | E26: 田 | F26: 194 | G26: 急傾斜 | I26: =IFERROR(VLOOKUP(U26,プルダウンリスト!$D$15:$E$70,2,FALSE),"") -> 16800 | J26: 3259 | P26: 耕作地 | R26: 農林太郎 | U26: 田急傾斜
A27: 通常地域（8法内） | B27: ○○地区 | C27: A1団地 | D27: ○○町○○番の１０ | E27: 田 | F27: 100 | G27: 急傾斜 | I27: =IFERROR(VLOOKUP(U27,プルダウンリスト!$D$15:$E$70,2,FALSE),"") -> 16800 | J27: 1680 | P27: 耕作地 | R27: 農林太郎 | U27: 田急傾斜
A28: 通常地域（8法内） | B28: ○○地区 | C28: A1団地 | D28: ○○町○○番の１ | E28: 田 | F28: 312 | G28: 急傾斜 | I28: =IFERROR(VLOOKUP(U28,プルダウンリスト!$D$15:$E$70,2,FALSE),"") -> 16800 | J28: 5241 | P28: 耕作地 | R28: 農林太郎 | U28: 田急傾斜
A29: 通常地域（8法内） | B29: ○○地区 | C29: A1団地 | D29: ○○町○○番の２ | E29: 田 | F29: 66 | G29: 急傾斜 | I29: =IFERROR(VLOOKUP(U29,プルダウンリスト!$D$15:$E$70,2,FALSE),"") -> 16800 | J29: 1108 | P29: 耕作地 | R29: 農林太郎 | U29: 田急傾斜
A30: 通常地域（8法内） | B30: ○○地区 | C30: A1団地 | D30: ○○町○○番の３ | E30: 田 | F30: 200 | G30: 急傾斜 | I30: =IFERROR(VLOOKUP(U30,プルダウンリスト!$D$15:$E$70,2,FALSE),"") -> 16800 | J30: 3360 | P30: 耕作地 | R30: 農林太郎 | U30: 田急傾斜
A31: 通常地域（8法内） | B31: ○○地区 | C31: A1団地 | D31: ○○町○○番の４ | E31: 田 | F31: 173 | G31: 急傾斜 | I31: =IFERROR(VLOOKUP(U31,プルダウンリスト!$D$15:$E$70,2,FALSE),"") -> 16800 | J31: 2906 | P31: 耕作地 | R31: 農林太郎 | U31: 田急傾斜
A32: 通常地域（8法内） | B32: ○○地区 | C32: A1団地 | D32: ○○町○○番の５ | E32: 田 | F32: 32 | G32: 急傾斜 | I32: =IFERROR(VLOOKUP(U32,プルダウンリスト!$D$15:$E$70,2,FALSE),"") -> 16800 | J32: 537 | P32: 耕作地 | R32: 農林太郎 | U32: 田急傾斜
A33: 通常地域（8法内） | B33: ○○地区 | C33: A1団地 | D33: ○○町○○番の６ | E33: 田 | F33: 712 | G33: 急傾斜 | I33: =IFERROR(VLOOKUP(U33,プルダウンリスト!$D$15:$E$70,2,FALSE),"") -> 16800 | J33: 11961 | P33: 耕作地 | R33: 農林太郎 | U33: 田急傾斜
A34: 通常地域（8法内） | B34: ○○地区 | C34: A1団地 | D34: ○○町○○番の７ | E34: 田 | F34: 286 | G34: 急傾斜 | I34: =IFERROR(VLOOKUP(U34,プルダウンリスト!$D$15:$E$70,2,FALSE),"") -> 16800 | J34: 4804 | P34: 耕作地 | R34: 農林太郎 | U34: 田急傾斜
A35: 通常地域（8法内） | B35: ○○地区 | C35: A1団地 | D35: ○○町○○番の８ | E35: 田 | F35: 483 | G35: 急傾斜 | I35: =IFERROR(VLOOKUP(U35,プルダウンリスト!$D$15:$E$70,2,FALSE),"") -> 16800 | J35: 8114 | P35: 耕作地 | R35: 農林太郎 | U35: 田急傾斜
A36: 通常地域（8法内） | B36: ○○地区 | C36: A1団地 | D36: ○○町○○番の９ | E36: 田 | F36: 252 | G36: 急傾斜 | I36: =IFERROR(VLOOKUP(U36,プルダウンリスト!$D$15:$E$70,2,FALSE),"") -> 16800 | J36: 4233 | P36: 耕作地 | R36: 農林太郎 | U36: 田急傾斜
A37: 通常地域（8法内） | B37: ○○地区 | C37: A1団地 | D37: ○○町○○番の１０ | E37: 田 | F37: 280 | G37: 急傾斜 | I37: =IFERROR(VLOOKUP(U37,プルダウンリスト!$D$15:$E$70,2,FALSE),"") -> 16800 | J37: 4704 | P37: 耕作地 | R37: 農林太郎 | U37: 田急傾斜
A38: 通常地域（8法内） | B38: ○○地区 | C38: A1団地 | D38: ○○町○○番の１ | E38: 田 | F38: 168 | G38: 急傾斜 | I38: =IFERROR(VLOOKUP(U38,プルダウンリスト!$D$15:$E$70,2,FALSE),"") -> 16800 | J38: 2822 | P38: 耕作地 | R38: 農林太郎 | S38: 〇 | U38: 田急傾斜
A39: 通常地域（8法内） | B39: ○○地区 | C39: B1団地 | D39: ○○町○○番の８ | E39: 田 | F39: 188 | G39: 急傾斜 | I39: =IFERROR(VLOOKUP(U39,プルダウンリスト!$D$15:$E$70,2,FALSE),"") -> 16800 | J39: 3158 | P39: 耕作地 | R39: 農林太郎 | U39: 田急傾斜
A40: 通常地域（8法内） | B40: ○○地区 | C40: B1団地 | D40: ○○町○○番の９ | E40: 田 | F40: 720 | G40: 急傾斜 | I40: =IFERROR(VLOOKUP(U40,プルダウンリスト!$D$15:$E$70,2,FALSE),"") -> 16800 | J40: 12096 | P40: 耕作地 | R40: 農林太郎 | U40: 田急傾斜
A41: 通常地域（8法内） | B41: ○○地区 | C41: B1団地 | D41: ○○町○○番の１０ | E41: 田 | F41: 547 | G41: 急傾斜 | I41: =IFERROR(VLOOKUP(U41,プルダウンリスト!$D$15:$E$70,2,FALSE),"") -> 16800 | J41: 9189 | P41: 耕作地 | R41: 農林太郎 | U41: 田急傾斜
A42: 通常地域（8法内） | B42: ○○地区 | C42: B2団地 | D42: ○○町○○番の１ | E42: 田 | F42: 690 | G42: 急傾斜 | I42: =IFERROR(VLOOKUP(U42,プルダウンリスト!$D$15:$E$70,2,FALSE),"") -> 16800 | J42: 11592 | P42: 耕作地 | R42: 農林太郎 | U42: 田急傾斜
A43: 通常地域（8法内） | B43: ○○地区 | C43: B2団地 | D43: ○○町○○番の２ | E43: 田 | F43: 400 | G43: 急傾斜 | I43: =IFERROR(VLOOKUP(U43,プルダウンリスト!$D$15:$E$70,2,FALSE),"") -> 16800 | J43: 6720 | P43: 耕作地 | R43: 農林太郎 | U43: 田急傾斜
A44: 通常地域（8法内） | B44: ○○地区 | C44: B2団地 | D44: ○○町○○番の３ | E44: 田 | F44: 212 | G44: 急傾斜 | I44: =IFERROR(VLOOKUP(U44,プルダウンリスト!$D$15:$E$70,2,FALSE),"") -> 16800 | J44: 3561 | P44: 耕作地 | R44: 農林太郎 | U44: 田急傾斜
A45: 通常地域（8法内） | B45: ○○地区 | C45: B2団地 | D45: ○○町○○番の４ | E45: 田 | F45: 793 | G45: 急傾斜 | I45: =IFERROR(VLOOKUP(U45,プルダウンリスト!$D$15:$E$70,2,FALSE),"") -> 16800 | J45: 13322 | P45: 耕作地 | R45: 農林太郎 | U45: 田急傾斜
A46: 通常地域（8法内） | B46: ○○地区 | C46: B3団地 | D46: ○○町○○番の５ | E46: 田 | F46: 536 | G46: 小区画・不整形 | I46: =IFERROR(VLOOKUP(U46,プルダウンリスト!$D$15:$E$70,2,FALSE),"") -> 6400 | J46: 3430 | P46: 耕作地 | R46: 農林太郎 | U46: 田小区画・不整形
A47: 通常地域（8法内） | B47: ○○地区 | C47: B4団地 | D47: ○○町○○番の６ | E47: 田 | F47: 491 | G47: 高齢化・耕作放棄率 | I47: =IFERROR(VLOOKUP(U47,プルダウンリスト!$D$15:$E$70,2,FALSE),"") -> 6400 | J47: 3142 | P47: 耕作地 | R47: 農林太郎 | U47: 田高齢化・耕作放棄率
A48: 通常地域（8法内） | B48: ○○地区 | C48: B5団地 | D48: ○○町○○番の７ | E48: 田 | F48: 813 | G48: 特認基準 | I48: =IFERROR(VLOOKUP(U48,プルダウンリスト!$D$15:$E$70,2,FALSE),"") -> 6400 | J48: 5203 | P48: 耕作地 | R48: 農林太郎 | U48: 田特認基準
A49: 通常地域（8法内） | B49: ○○地区 | C49: B5団地 | D49: ○○町○○番の３ | E49: 田 | F49: 414 | G49: 交付対象外 | I49: =IFERROR(VLOOKUP(U49,プルダウンリスト!$D$15:$E$70,2,FALSE),"") -> 0 | J49: 0 | P49: 耕作地 | R49: 農林太郎 | S49: 〇 | U49: 田交付対象外
A50: 通常地域（8法内） | B50: ○○地区 | C50: B5団地 | D50: ○○町○○番の９ | E50: 田 | F50: 738 | G50: 急傾斜 | I50: =IFERROR(VLOOKUP(U50,プルダウンリスト!$D$15:$E$70,2,FALSE),"") -> 16800 | J50: =IFERROR(ROUNDDOWN(F50*I50/1000,0),"") -> 12398 | L50: 〇 | P50: 耕作地 | R50: 農林太郎 | U50: 田急傾斜
A51: 通常地域（8法内） | B51: ○○地区 | C51: B5団地 | D51: ○○町○○番の１０ | E51: 田 | F51: 865 | G51: 急傾斜 | I51: =IFERROR(VLOOKUP(U51,プルダウンリスト!$D$15:$E$70,2,FALSE),"") -> 16800 | J51: 14532 | P51: 耕作地 | R51: 農林太郎 | U51: 田急傾斜
A52: 通常地域（8法内） | B52: ○○地区 | C52: B5団地 | D52: ○○町○○番の１０ | E52: 田 | F52: 463 | G52: 急傾斜 | I52: =IFERROR(VLOOKUP(U52,プルダウンリスト!$D$15:$E$70,2,FALSE),"") -> 16800 | J52: 7778 | P52: 耕作地 | R52: 農林太郎 | U52: 田急傾斜
A53: 通常地域（8法内） | B53: ○○地区 | C53: B5団地 | D53: ○○町○○番の１ | E53: 田 | F53: 162 | G53: 急傾斜 | I53: =IFERROR(VLOOKUP(U53,プルダウンリスト!$D$15:$E$70,2,FALSE),"") -> 16800 | J53: 2721 | P53: 耕作地 | R53: 農林太郎 | U53: 田急傾斜
A54: 通常地域（8法内） | B54: ○○地区 | C54: B6団地 | D54: ○○町○○番の２ | E54: 畑 | F54: 1840 | G54: 急傾斜 | I54: =IFERROR(VLOOKUP(U54,プルダウンリスト!$D$15:$E$70,2,FALSE),"") -> 9200 | J54: 16928 | P54: 耕作地 | R54: 農林太郎 | U54: 畑急傾斜
A55: 通常地域（8法内） | B55: ○○地区 | C55: B6団地 | D55: ○○町○○番の３ | E55: 畑 | F55: 1647 | G55: 交付対象外（田畑混在地以外） | I55: =IFERROR(VLOOKUP(U55,プルダウンリスト!$D$15:$E$70,2,FALSE),"") -> 0 | J55: 0 | P55: 耕作地 | R55: 農林太郎 | U55: 畑交付対象外（田畑混在地以外）
A56: 通常地域（8法内） | B56: ○○地区 | C56: B6団地 | D56: ○○町○○番の４ | E56: 畑 | F56: 975 | G56: 交付対象外（田畑混在地） | I56: =IFERROR(VLOOKUP(U56,プルダウンリスト!$D$15:$E$70,2,FALSE),"") -> 0 | J56: 0 | P56: 耕作地 | R56: 農林太郎 | U56: 畑交付対象外（田畑混在地）
A57: 通常地域（8法内） | B57: ○○地区 | C57: B7団地 | D57: ○○町○○番の５ | E57: 畑 | F57: 1233 | G57: 緩傾斜 | I57: =IFERROR(VLOOKUP(U57,プルダウンリスト!$D$15:$E$70,2,FALSE),"") -> 2800 | J57: 3452 | K57: 〇 | P57: 耕作地 | R57: 農林太郎 | U57: 畑緩傾斜
A58: 通常地域（8法内） | B58: ○○地区 | C58: B7団地 | D58: ○○町○○番の６ | E58: 畑 | F58: 869 | G58: 高齢化・耕作放棄率 | I58: =IFERROR(VLOOKUP(U58,プルダウンリスト!$D$15:$E$70,2,FALSE),"") -> 2800 | J58: 2433 | O58: 〇 | P58: 耕作地 | R58: 農林太郎 | U58: 畑高齢化・耕作放棄率
A59: 通常地域（8法内） | B59: ○○地区 | C59: B7団地 | D59: ○○町○○番の７ | E59: 畑 | F59: 1477 | G59: 特認基準 | I59: =IFERROR(VLOOKUP(U59,プルダウンリスト!$D$15:$E$70,2,FALSE),"") -> 2800 | J59: 4135 | P59: 耕作地 | R59: 農林太郎 | S59: 〇 | U59: 畑特認基準
A60: 通常地域（8法内） | B60: ○○地区 | C60: B7団地 | D60: ○○町○○番の８ | E60: 畑 | F60: 139 | G60: 交付対象外（田畑混在地） | I60: =IFERROR(VLOOKUP(U60,プルダウンリスト!$D$15:$E$70,2,FALSE),"") -> 0 | J60: 0 | P60: 耕作地 | R60: 農林太郎 | U60: 畑交付対象外（田畑混在地）
A61: 通常地域（8法内） | B61: ○○地区 | C61: B8団地 | D61: ○○町○○番の９ | E61: 草地 | F61: 1590 | G61: 急傾斜 | I61: =IFERROR(VLOOKUP(U61,プルダウンリスト!$D$15:$E$70,2,FALSE),"") -> 8400 | J61: 13356 | P61: 耕作地 | R61: 農林太郎 | U61: 草地急傾斜
A62: 通常地域（8法内） | B62: ○○地区 | C62: B8団地 | D62: ○○町○○番の１ | E62: 草地 | F62: 1444 | G62: 急傾斜 | I62: =IFERROR(VLOOKUP(U62,プルダウンリスト!$D$15:$E$70,2,FALSE),"") -> 8400 | J62: 12129 | P62: 耕作地 | R62: 農林太郎 | U62: 草地急傾斜
A63: 通常地域（8法内） | B63: ○○地区 | C63: B8団地 | D63: ○○町○○番の２ | E63: 田 | F63: 1105 | G63: 急傾斜 | I63: =IFERROR(VLOOKUP(U63,プルダウンリスト!$D$15:$E$70,2,FALSE),"") -> 16800 | J63: 18564 | P63: 耕作地 | R63: 農林太郎 | U63: 田急傾斜
A64: 特認地域 | B64: ○○地区 | C64: C1団地 | D64: ○○町○○番の７ | E64: 田 | F64: 84 | G64: 急傾斜 | I64: =IFERROR(VLOOKUP(U64,プルダウンリスト!$D$15:$E$70,2,FALSE),"") -> 16800 | J64: 1411 | P64: 耕作地 | R64: 農林太郎 | U64: 田急傾斜
A65: 特認地域 | B65: ○○地区 | C65: C1団地 | D65: ○○町○○番の８ | E65: 田 | F65: 220 | G65: 急傾斜 | I65: =IFERROR(VLOOKUP(U65,プルダウンリスト!$D$15:$E$70,2,FALSE),"") -> 16800 | J65: 3696 | P65: 耕作地 | R65: 農林太郎 | U65: 田急傾斜
A66: 特認地域 | B66: ○○地区 | C66: C1団地 | D66: ○○町○○番の９ | E66: 田 | F66: 275 | G66: 急傾斜 | I66: =IFERROR(VLOOKUP(U66,プルダウンリスト!$D$15:$E$70,2,FALSE),"") -> 16800 | J66: 4620 | P66: 耕作地 | R66: 農林太郎 | U66: 田急傾斜
A67: 特認地域 | B67: ○○地区 | C67: C1団地 | D67: ○○町○○番の１０ | E67: 田 | F67: 189 | G67: 急傾斜 | I67: =IFERROR(VLOOKUP(U67,プルダウンリスト!$D$15:$E$70,2,FALSE),"") -> 16800 | J67: 3175 | P67: 耕作地 | R67: 農林太郎 | U67: 田急傾斜
A68: 特認地域 | B68: ○○地区 | C68: C1団地 | D68: ○○町○○番の１ | E68: 田 | F68: 912 | G68: 高齢化・耕作放棄率 | I68: =IFERROR(VLOOKUP(U68,プルダウンリスト!$D$15:$E$70,2,FALSE),"") -> 6400 | J68: 5836 | P68: 耕作地 | R68: 農林太郎 | U68: 田高齢化・耕作放棄率
A69: 特認地域 | B69: ○○地区 | C69: C1団地 | D69: ○○町○○番の２ | E69: 田 | F69: 979 | G69: 小区画・不整形 | I69: =IFERROR(VLOOKUP(U69,プルダウンリスト!$D$15:$E$70,2,FALSE),"") -> 6400 | J69: 6265 | P69: 耕作地 | R69: 農林太郎 | U69: 田小区画・不整形
A70: 特認地域 | B70: ○○地区 | C70: C1団地 | D70: ○○町○○番の３ | E70: 田 | F70: 357 | G70: 急傾斜 | I70: =IFERROR(VLOOKUP(U70,プルダウンリスト!$D$15:$E$70,2,FALSE),"") -> 16800 | J70: 5997 | P70: 耕作地 | R70: 農林太郎 | S70: 〇 | U70: 田急傾斜
A71: 特認地域 | B71: ○○地区 | C71: C1団地 | D71: ○○町○○番の４ | E71: 田 | F71: 543 | G71: 急傾斜 | I71: =IFERROR(VLOOKUP(U71,プルダウンリスト!$D$15:$E$70,2,FALSE),"") -> 16800 | J71: 9122 | P71: 耕作地 | R71: 農林太郎 | U71: 田急傾斜
A72: 特認地域 | B72: ○○地区 | C72: C1団地 | D72: ○○町○○番の５ | E72: 田 | F72: 194 | G72: 急傾斜 | I72: =IFERROR(VLOOKUP(U72,プルダウンリスト!$D$15:$E$70,2,FALSE),"") -> 16800 | J72: 3259 | P72: 耕作地 | R72: 農林太郎 | U72: 田急傾斜
A73: 特認地域 | B73: ○○地区 | C73: C1団地 | D73: ○○町○○番の６ | E73: 田 | F73: 56 | G73: 急傾斜 | I73: =IFERROR(VLOOKUP(U73,プルダウンリスト!$D$15:$E$70,2,FALSE),"") -> 16800 | J73: 940 | P73: 耕作地 | R73: 農林太郎 | U73: 田急傾斜
A74: 特認地域 | B74: ○○地区 | C74: C1団地 | D74: ○○町○○番の７ | E74: 田 | F74: 637 | G74: 急傾斜 | I74: =IFERROR(VLOOKUP(U74,プルダウンリスト!$D$15:$E$70,2,FALSE),"") -> 16800 | J74: 10701 | P74: 耕作地 | R74: 農林太郎 | U74: 田急傾斜
A75: 特認地域 | B75: ○○地区 | C75: C1団地 | D75: ○○町○○番の８ | E75: 畑 | F75: 557 | G75: 特認基準 | I75: =IFERROR(VLOOKUP(U75,プルダウンリスト!$D$15:$E$70,2,FALSE),"") -> 2800 | J75: 1559 | P75: 耕作地 | R75: 農林太郎 | U75: 畑特認基準
A76: 特認地域 | B76: ○○地区 | C76: D1団地 | D76: ○○町○○番の２４ | E76: 畑 | F76: 39 | G76: 交付対象外（田畑混在地） | I76: =IFERROR(VLOOKUP(U76,プルダウンリスト!$D$15:$E$70,2,FALSE),"") -> 0 | J76: 0 | P76: 耕作地 | R76: 農林太郎 | U76: 畑交付対象外（田畑混在地）
A77: 特認地域 | B77: ○○地区 | C77: D1団地 | D77: ○○町○○番の２５ | E77: 畑 | F77: 3692 | G77: 緩傾斜 | I77: =IFERROR(VLOOKUP(U77,プルダウンリスト!$D$15:$E$70,2,FALSE),"") -> 2800 | J77: 10337 | P77: 耕作地 | R77: 農林太郎 | U77: 畑緩傾斜
A78: 特認地域 | B78: ○○地区 | C78: E1団地 | D78: ○○町○○番の２５ | E78: 草地 | F78: 110 | G78: 急傾斜 | I78: =IFERROR(VLOOKUP(U78,プルダウンリスト!$D$15:$E$70,2,FALSE),"") -> 8400 | J78: 924 | P78: 耕作地 | R78: 農林太郎 | U78: 草地急傾斜
A79: 特認地域 | B79: ○○地区 | C79: E1団地 | D79: ○○町○○番の２５ | E79: 草地 | F79: 120 | G79: 緩傾斜 | I79: =IFERROR(VLOOKUP(U79,プルダウンリスト!$D$15:$E$70,2,FALSE),"") -> 2400 | J79: 288 | O79: 〇 | P79: 耕作地 | R79: 農林太郎 | U79: 草地緩傾斜
A80: 特認地域 | B80: ○○地区 | C80: E1団地 | D80: ○○町○○番の２５ | E80: 草地 | F80: 130 | G80: 高齢化・耕作放棄率 | I80: =IFERROR(VLOOKUP(U80,プルダウンリスト!$D$15:$E$70,2,FALSE),"") -> 2400 | J80: 312 | P80: 耕作地 | R80: 農林太郎 | U80: 草地高齢化・耕作放棄率
A81: 特認地域 | B81: ○○地区 | C81: E1団地 | D81: ○○町○○番の２５ | E81: 草地 | F81: 140 | G81: 草地比率の高い草地 | I81: =IFERROR(VLOOKUP(U81,プルダウンリスト!$D$15:$E$70,2,FALSE),"") -> 1200 | J81: 168 | P81: 耕作地 | R81: 農林太郎 | U81: 草地草地比率の高い草地
A82: 特認地域 | B82: ○○地区 | C82: E1団地 | D82: ○○町○○番の２５ | E82: 草地 | F82: 150 | G82: 特認基準 | I82: =IFERROR(VLOOKUP(U82,プルダウンリスト!$D$15:$E$70,2,FALSE),"") -> 2400 | J82: =IFERROR(ROUNDDOWN(F82*I82/1000,0),"") -> 360 | P82: 耕作地 | R82: 農林太郎 | U82: 草地特認基準
A83: 特認地域 | B83: ○○地区 | C83: E1団地 | D83: ○○町○○番の２５ | E83: 草地 | F83: 160 | G83: 交付対象外（田草地混在地以外） | I83: =IFERROR(VLOOKUP(U83,プルダウンリスト!$D$15:$E$70,2,FALSE),"") -> 0 | J83: 0 | P83: 耕作地 | R83: 農林太郎 | U83: 草地交付対象外（田草地混在地以外）
A84: 特認地域 | B84: ○○地区 | C84: E1団地 | D84: ○○町○○番の２５ | E84: 草地 | F84: 170 | G84: 交付対象外（田草地混在地） | I84: =IFERROR(VLOOKUP(U84,プルダウンリスト!$D$15:$E$70,2,FALSE),"") -> 0 | J84: 0 | P84: 耕作地 | R84: 農林太郎 | U84: =$S$14&E84&G84 -> 草地交付対象外（田草地混在地）
A85: 特認地域 | B85: ○○地区 | C85: F1団地 | D85: ○○町○○番の２５ | E85: 採草放牧地 | F85: 210 | G85: 急傾斜 | I85: =IFERROR(VLOOKUP(U85,プルダウンリスト!$D$15:$E$70,2,FALSE),"") -> 800 | J85: 168 | P85: 耕作地 | R85: 農林太郎 | U85: 採草放牧地急傾斜
A86: 特認地域 | B86: ○○地区 | C86: F1団地 | D86: ○○町○○番の２５ | E86: 採草放牧地 | F86: 220 | G86: 急傾斜 | I86: =IFERROR(VLOOKUP(U86,プルダウンリスト!$D$15:$E$70,2,FALSE),"") -> 800 | J86: 176 | O86: 〇 | P86: 耕作地 | R86: 農林太郎 | U86: 採草放牧地急傾斜
A87: 特認地域 | B87: ○○地区 | C87: F1団地 | D87: ○○町○○番の２５ | E87: 採草放牧地 | F87: 230 | G87: 特認基準 | I87: =IFERROR(VLOOKUP(U87,プルダウンリスト!$D$15:$E$70,2,FALSE),"") -> 240 | J87: 55 | P87: 耕作地 | R87: 農林太郎 | U87: 採草放牧地特認基準
A88: 特認地域 | B88: ○○地区 | C88: F1団地 | D88: ○○町○○番の２５ | E88: 採草放牧地 | F88: 240 | G88: 交付対象外（田採草放牧地混在地） | I88: =IFERROR(VLOOKUP(U88,プルダウンリスト!$D$15:$E$70,2,FALSE),"") -> 0 | J88: 0 | P88: 耕作地 | R88: 農林太郎 | U88: 採草放牧地交付対象外（田採草放牧地混在地）
A89: 特認地域 | B89: ○○地区 | C89: F1団地 | D89: ○○町○○番の２５ | E89: 採草放牧地 | F89: 250 | G89: 交付対象外（田採草放牧地混在地以外） | I89: =IFERROR(VLOOKUP(U89,プルダウンリスト!$D$15:$E$70,2,FALSE),"") -> 0 | J89: 0 | P89: 耕作地 | R89: 農林太郎 | U89: 採草放牧地交付対象外（田採草放牧地混在地以外）
I90: =IFERROR(VLOOKUP(U90,プルダウンリスト!$D$15:$E$70,2,FALSE),"") -> 
I91: =IFERROR(VLOOKUP(U91,プルダウンリスト!$D$15:$E$70,2,FALSE),"") -> 
I92: =IFERROR(VLOOKUP(U92,プルダウンリスト!$D$15:$E$70,2,FALSE),"") -> 
I93: =IFERROR(VLOOKUP(U93,プルダウンリスト!$D$15:$E$70,2,FALSE),"") -> 
I94: =IFERROR(VLOOKUP(U94,プルダウンリスト!$D$15:$E$70,2,FALSE),"") -> 
I95: =IFERROR(VLOOKUP(U95,プルダウンリスト!$D$15:$E$70,2,FALSE),"") -> 
I96: =IFERROR(VLOOKUP(U96,プルダウンリスト!$D$15:$E$70,2,FALSE),"") -> 
I97: =IFERROR(VLOOKUP(U97,プルダウンリスト!$D$15:$E$70,2,FALSE),"") -> 
I98: =IFERROR(VLOOKUP(U98,プルダウンリスト!$D$15:$E$70,2,FALSE),"") -> 
I99: =IFERROR(VLOOKUP(U99,プルダウンリスト!$D$15:$E$70,2,FALSE),"") -> 
I100: =IFERROR(VLOOKUP(U100,プルダウンリスト!$D$15:$E$70,2,FALSE),"") -> 
I101: =IFERROR(VLOOKUP(U101,プルダウンリスト!$D$15:$E$70,2,FALSE),"") -> 
I102: =IFERROR(VLOOKUP(U102,プルダウンリスト!$D$15:$E$70,2,FALSE),"") -> 
I103: =IFERROR(VLOOKUP(U103,プルダウンリスト!$D$15:$E$70,2,FALSE),"") -> 
I104: =IFERROR(VLOOKUP(U104,プルダウンリスト!$D$15:$E$70,2,FALSE),"") -> 
I105: =IFERROR(VLOOKUP(U105,プルダウンリスト!$D$15:$E$70,2,FALSE),"") -> 
A106: 行を追加する場合はこれより上の行をコピーして「コピーしたセルの挿入」をしてください。
F107: =SUM(F18:F105) -> 38346 | U107: 〇
A110: 上記表は以下の表に従って記載するものとする

Sheet プルダウンリスト
A1: 地目、傾斜
A2: 田 | B2: 畑 | C2: 草地 | D2: 採草放牧地
A3: 急傾斜 | B3: 急傾斜 | C3: 急傾斜 | D3: 急傾斜
A4: 緩傾斜 | B4: 緩傾斜 | C4: 緩傾斜 | D4: 緩傾斜
A5: 小区画・不整形 | B5: 高齢化・耕作放棄率 | C5: 高齢化・耕作放棄率 | D5: 特認基準
A6: 高齢化・耕作放棄率 | B6: 特認基準 | C6: 草地比率の高い草地 | D6: 交付対象外（田採草放牧地混在地）
A7: 特認基準 | B7: 交付対象外（田畑混在地） | C7: 特認基準 | D7: 交付対象外（田採草放牧地混在地以外）
A8: 交付対象外 | B8: 交付対象外（田畑混在地以外） | C8: 交付対象外（田草地混在地） | D8: 協定に含めない管理すべき農用地
A9: 協定に含めない管理すべき農用地 | B9: 協定に含めない管理すべき農用地 | C9: 交付対象外（田草地混在地以外）
C10: 協定に含めない管理すべき農用地
A13: 単価一覧
A14: ネットワーク化活動計画 | B14: 地目 | C14: 傾斜 | D14: ネットワーク化活動計画＋地目＋傾斜 | E14: 交付単価
A15: 〇 | B15: 田 | C15: 急傾斜 | D15: =A15&B15&C15 -> 〇田急傾斜 | E15: 21000
A16: 〇 | B16: 田 | C16: 緩傾斜 | D16: =A16&B16&C16 -> 〇田緩傾斜 | E16: 8000
A17: 〇 | B17: 田 | C17: 小区画・不整形 | D17: 〇田小区画・不整形 | E17: 8000
A18: 〇 | B18: 田 | C18: 高齢化・耕作放棄率 | D18: 〇田高齢化・耕作放棄率 | E18: 8000
A19: 〇 | B19: 田 | C19: 特認基準 | D19: 〇田特認基準 | E19: 8000
A20: 〇 | B20: 田 | C20: 交付対象外 | D20: 〇田交付対象外 | E20: 0
A21: 〇 | B21: 田 | C21: 協定に含めない管理すべき農用地 | D21: 〇田協定に含めない管理すべき農用地 | E21: 0
A22: 〇 | B22: 畑 | C22: 急傾斜 | D22: 〇畑急傾斜 | E22: 11500
A23: 〇 | B23: 畑 | C23: 緩傾斜 | D23: =A23&B23&C23 -> 〇畑緩傾斜 | E23: 3500
A24: 〇 | B24: 畑 | C24: 高齢化・耕作放棄率 | D24: 〇畑高齢化・耕作放棄率 | E24: 3500
A25: 〇 | B25: 畑 | C25: 特認基準 | D25: 〇畑特認基準 | E25: 3500
A26: 〇 | B26: 畑 | C26: 交付対象外（田畑混在地） | D26: 〇畑交付対象外（田畑混在地） | E26: 0
A27: 〇 | B27: 畑 | C27: 交付対象外（田畑混在地以外） | D27: 〇畑交付対象外（田畑混在地以外） | E27: 0
A28: 〇 | B28: 畑 | C28: 協定に含めない管理すべき農用地 | D28: 〇畑協定に含めない管理すべき農用地 | E28: 0
A29: 〇 | B29: 草地 | C29: 急傾斜 | D29: 〇草地急傾斜 | E29: 10500
A30: 〇 | B30: 草地 | C30: 緩傾斜 | D30: 〇草地緩傾斜 | E30: 3000
A31: 〇 | B31: 草地 | C31: 高齢化・耕作放棄率 | D31: 〇草地高齢化・耕作放棄率 | E31: 3000
A32: 〇 | B32: 草地 | C32: 草地比率の高い草地 | D32: 〇草地草地比率の高い草地 | E32: 1500
A33: 〇 | B33: 草地 | C33: 特認基準 | D33: 〇草地特認基準 | E33: 3000
A34: 〇 | B34: 草地 | C34: 交付対象外（田草地混在地） | D34: 〇草地交付対象外（田草地混在地） | E34: 0
A35: 〇 | B35: 草地 | C35: 交付対象外（田草地混在地以外） | D35: 〇草地交付対象外（田草地混在地以外） | E35: 0
A36: 〇 | B36: 草地 | C36: 協定に含めない管理すべき農用地 | D36: 〇草地協定に含めない管理すべき農用地 | E36: 0
A37: 〇 | B37: 採草放牧地 | C37: 急傾斜 | D37: 〇採草放牧地急傾斜 | E37: 1000
A38: 〇 | B38: 採草放牧地 | C38: 緩傾斜 | D38: 〇採草放牧地緩傾斜 | E38: 300
A39: 〇 | B39: 採草放牧地 | C39: 特認基準 | D39: 〇採草放牧地特認基準 | E39: 300
A40: 〇 | B40: 採草放牧地 | C40: 交付対象外（田採草放牧地混在地） | D40: 〇採草放牧地交付対象外（田採草放牧地混在地） | E40: 0
A41: 〇 | B41: 採草放牧地 | C41: 交付対象外（田採草放牧地混在地以外） | D41: 〇採草放牧地交付対象外（田採草放牧地混在地以外） | E41: 0
A42: 〇 | B42: 採草放牧地 | C42: 協定に含めない管理すべき農用地 | D42: 〇採草放牧地協定に含めない管理すべき農用地 | E42: 0
B43: 田 | C43: 急傾斜 | D43: =A43&B43&C43 -> 田急傾斜 | E43: =E15*0.8 -> 16800
B44: 田 | C44: 緩傾斜 | D44: =A44&B44&C44 -> 田緩傾斜 | E44: 6400
B45: 田 | C45: 小区画・不整形 | D45: 田小区画・不整形 | E45: 6400
B46: 田 | C46: 高齢化・耕作放棄率 | D46: 田高齢化・耕作放棄率 | E46: 6400
B47: 田 | C47: 特認基準 | D47: 田特認基準 | E47: 6400
B48: 田 | C48: 交付対象外 | D48: 田交付対象外 | E48: 0
B49: 田 | C49: 協定に含めない管理すべき農用地 | D49: 田協定に含めない管理すべき農用地 | E49: 0
B50: 畑 | C50: 急傾斜 | D50: 畑急傾斜 | E50: =E22*0.8 -> 9200
B51: 畑 | C51: 緩傾斜 | D51: 畑緩傾斜 | E51: 2800
B52: 畑 | C52: 高齢化・耕作放棄率 | D52: 畑高齢化・耕作放棄率 | E52: 2800
B53: 畑 | C53: 特認基準 | D53: 畑特認基準 | E53: 2800
B54: 畑 | C54: 交付対象外（田畑混在地） | D54: 畑交付対象外（田畑混在地） | E54: 0
B55: 畑 | C55: 交付対象外（田畑混在地以外） | D55: 畑交付対象外（田畑混在地以外） | E55: 0
B56: 畑 | C56: 協定に含めない管理すべき農用地 | D56: 畑協定に含めない管理すべき農用地 | E56: 0
B57: 草地 | C57: 急傾斜 | D57: 草地急傾斜 | E57: 8400
B58: 草地 | C58: 緩傾斜 | D58: 草地緩傾斜 | E58: 2400
B59: 草地 | C59: 高齢化・耕作放棄率 | D59: 草地高齢化・耕作放棄率 | E59: 2400
B60: 草地 | C60: 草地比率の高い草地 | D60: 草地草地比率の高い草地 | E60: 1200
B61: 草地 | C61: 特認基準 | D61: 草地特認基準 | E61: 2400
B62: 草地 | C62: 交付対象外（田草地混在地） | D62: 草地交付対象外（田草地混在地） | E62: 0
B63: 草地 | C63: 交付対象外（田草地混在地以外） | D63: 草地交付対象外（田草地混在地以外） | E63: 0
B64: 草地 | C64: 協定に含めない管理すべき農用地 | D64: 草地協定に含めない管理すべき農用地 | E64: 0
B65: 採草放牧地 | C65: 急傾斜 | D65: 採草放牧地急傾斜 | E65: 800
B66: 採草放牧地 | C66: 緩傾斜 | D66: 採草放牧地緩傾斜 | E66: 240
B67: 採草放牧地 | C67: 特認基準 | D67: 採草放牧地特認基準 | E67: 240
B68: 採草放牧地 | C68: 交付対象外（田採草放牧地混在地） | D68: 採草放牧地交付対象外（田採草放牧地混在地） | E68: 0
B69: 採草放牧地 | C69: 交付対象外（田採草放牧地混在地以外） | D69: 採草放牧地交付対象外（田採草放牧地混在地以外） | E69: 0
B70: 採草放牧地 | C70: 協定に含めない管理すべき農用地 | D70: 採草放牧地協定に含めない管理すべき農用地 | E70: 0
A74: 農用地の現況及び活動内容
A75: 耕作地
A76: 維持管理農用地
A77: 荒廃農地
A78: 被災地
A79: 土地改良通年施行
A80: その他（具体的活動内容欄に記入）

Sheet 参４_申請
A1: （参考様式第４号） | AD1: 〇
E3: 年 月 日
A4: 市町村長 | C4: 殿
E5: =はじめに!D5&"" -> あいうえお集落協定
E6: =はじめに!D6&"" -> 中山間 太郎
A8: 多面的機能発揮促進事業に関する計画の認定［変更の認定］の申請について
A10: このことについて、農業の有する多面的機能の発揮の促進に関する法律（平成26年法律第78号）第７条第１項［８条第１項］の規定に基づき、下記関係書類を添えて認定を申請する。
A13: １ 事業計画
A15: ２ 農業の有する多面的機能の発揮の促進に関する活動計画書
B16: □ | C16: １号事業（多面的機能支払交付金）
B17: ☑ | C17: ２号事業（中山間地域等直接支払交付金）
B18: □ | C18: ３号事業（環境保全型農業直接支払交付金）
A20: ３ その他
B21: □ | C21: 都道府県の同意書の写し（都道府県営土地改良施設の管理）
B23: ※農山漁村の活性化のための定住等及び地域間交流の促進に関する法律（平成19年法律第48号）第５条第１項に規定する活性化計画が作成されている場合であって、その添付書類として、多面的機能発揮促進事業に関する計画の認定の申請（変更の認定の申請の場合も含む。）に必要な上記１から３までに掲げる書類が既に市町村長に提出されているときは、これらの書類の添付を省略することができる。
B25: □ | C25: ※に該当するため、書類の添付を省略する。
A27: ＜施行注意＞
A28: 変更の認定の申請の場合は、［ ］内の記載に置き換えるものとする。

Sheet 参４_申請_事業計画
A3: 多面的機能発揮促進事業に関する計画
G5: =参４_申請!E3 -> 年 月 日
G6: =はじめに!D5&"" -> あいうえお集落協定
A8: １ 多面的機能発揮促進事業の目標
A10: １．現況
B11: （例）本地域は、振興山村に指定されるなど、平場地域と比べて生産条件の格差が大きいことから、これを補正する取組を行うことが必要である。
A13: ２．目標
B14: （例）１を踏まえ、本地域では、機械の共同利用や農作業の共同化にも取り組み、農業生産活動を継続することにより、多面的機能の発揮の促進を図ることとする。
A16: ２ 多面的機能発揮促進事業の内容
A17: （１）多面的機能発揮促進事業の種類及び実施区域
A18: ① 種類（実施するものに○を付すこと。）
C19: １号事業（多面的機能支払交付金）
F20: 農業の有する多面的機能の発揮の促進に関する法律（平成26年法律第78号。以下「法」という。）第３条第３項第１号イに掲げる施設の維持その他の主として当該施設の機能の保持を図る活動（以下「イの活動」という。） （農地維持支払交付金）
F22: 法第３条第３項第１号ロに掲げる施設の改良その他の主として当該施設の機能の増進を図る活動（以下「ロの活動」という。） （資源向上支払交付金）
C24: 〇 | E24: ２号事業（中山間地域等直接支払交付金）
E25: ３号事業（環境保全型農業直接支払交付金）
E26: ４号事業（その他農業の有する多面的機能の発揮の促進に資する事業）
A28: ② 実施区域
C29: （例）別添の中山間地域等直接支払交付金に係る集落協定（以下、「集落協定」という。）「（別添１）実施区域位置図」のとおり。
A32: （２）活動の内容等
A33: ②２号事業
A34: １）農業生産活動の内容
C35: （例） ・集落協定「第３ 協定対象となる農用地」に記載のとおり。 ※集落協定に基づく活動を行う場合 ・個別協定「（別紙様式６）経営規模及び農業所得調書」の「第１ 経営規模」に記載のとおり。 ※個別協定に基づく活動を行う場合
A38: ２）農業生産活動の継続的な実施を推進するための活動
C39: （例） ・集落協定「第４ 集落マスタープラン」、「第５ 農業生産活動等として取り組むべき事項」、 「第８ 農業生産活動等の体制整備として取り組むべき事項」及び「第９ 加算措置適用のために取り組むべき事項」に記載のとおり。 ※ 集落協定に基づく活動を行う場合 ・個別協定「（別紙様式６）第３ 農業生産活動等として取り組むべき事項」、「（別紙様式６）第４ 加算措置適用のために取り組むべき事項」及び「（別紙様式７）協定農用地の概要」に記載のとおり。 ※ 個別協定に基づく活動を行う場合
A45: ３ 多面的機能発揮促進事業の実施期間
C46: （例） ・集落協定「Ⅰ．地区の概要」の「１．活動期間」のとおり。 ※中山間地域等直接支払のうち集落協定に基づく活動を行う場合 ・個別協定の認定日から４年経過後の最初の３月31日までの期間。 ※中山間地域等直接支払のうち個別協定に基づく活動を行う場合
A48: ４ 農業者団体等の構成員に係る事項
C49: （例） ・集落協定「（別添２）構成員一覧」に記載のとおり。 ※中山間地域等直接支払のうち集落協定に基づく活動を行う場合 ・個別協定「（別紙様式７）協定農用地の概要」に記載のとおり。 ※中山間地域等直接支払のうち個別協定に基づく活動を行う場合
A50: ＜施行注意＞
A51: 記入内容が集落協定もしくは個別協定と重複する場合は、「２（１）②実施区域」、「２（２）活動内容等」、「３ 多面的機能発揮促進事業の実施期間」及び「農業者団体等の構成員に係る事項」の記入を省略することも可能とする。

Sheet 別紙１①
R2: （別紙様式１）
B4: 農業の有する多面的機能の発揮の促進に関する活動計画書 （中山間地域等直接支払に係る集落協定）
D6: ふりがな | G6: あいうえおしゅうらくきょうてい
D7: 組織名 | G7: =はじめに!D5&"" -> あいうえお集落協定
D9: ふりがな | G9: ちゅうさんかん たろう
D10: 代表者氏名 | G10: =はじめに!D6&"" -> 中山間 太郎
D12: ふりがな | G12: まるけんさんかくしまるちょう
D13: 所在地 | G13: =はじめに!D7&"" -> ○○県△△市○町
D16: Ⅰ． | E16: 地区の概要（共通）
D18: ＜活動の計画＞
D19: =参４_申請!B16 -> □ | E19: Ⅱ． １号事業（多面的機能支払） | R19: 別紙
D20: =参４_申請!B17 -> ☑ | E20: Ⅲ． ２号事業（中山間地域等直接支払） | R20: 別紙1
D21: =参４_申請!B18 -> □ | E21: Ⅳ． ３号事業（環境保全型農業直接支払） | R21: 別紙
D22: □ | E22: Ⅴ． その他多面的機能の発揮の促進に資する事業に係る計画書 | R22: 別紙
D23: （注）該当する活動にチェックし、取り組む活動の別紙のみ添付すること
C25: ＜施行注意＞
C26: 提出の際に（ ）内は、多面的機能支払に係る活動計画書、中山間地域等直接支払に係る集落協定、環境保全型農業直接支払に係る営農活動計画書のうち該当する活動の計画書若しくは協定を記載すること。
A27: Ⅰ．地区の概要
B28: ※ 以下、（多面的機能支払、中山間地域等直接支払、環境保全型農業直接支払）をそれぞれ（多面支払、中山間直払、環境直払）と一部で表示
B29: １．活動期間
D30: 活動開始年度 (計画認定年度) | G30: 活動終了年度 | J30: 交付金の 交付年数 | L30: 計画変更 | O30: 計画変更
B31: 農地維持支払
D32: 令和 | F32: 年度 | G32: 令和 | I32: 年度 | L32: 令和 | N32: 年度 | O32: 令和 | Q32: 年度
B33: 資源向上支払（共同）
D34: 令和 | F34: 年度 | G34: 令和 | I34: 年度 | L34: 令和 | N34: 年度 | O34: 令和 | Q34: 年度
B35: 資源向上支払（長寿命化）
D36: 令和 | F36: 年度 | G36: 令和 | I36: 年度 | L36: 令和 | N36: 年度 | O36: 令和 | Q36: 年度
B37: 中山間地域等 直接支払
D38: 令和 | E38: 7 | F38: 年度 | G38: 令和 | H38: 11 | I38: 年度 | J38: =H38-E38+1 -> 5 | L38: 令和 | N38: 年度 | O38: 令和 | Q38: 年度
B39: 環境保全型農業直接支払
D40: 令和 | F40: 年度 | G40: 令和 | I40: 年度 | L40: 令和 | N40: 年度 | O40: 令和 | Q40: 年度
B41: ２．実施区域内の農用地、施設
B42: 協定農用地面積 又は認定農用地面積※１ | O42: 計 | R42: 解消する遊休農地面積 | S42: 年当たり 交付金額 上限
D43: 田 | G43: 畑 | J43: 草地 | L43: 採草放牧地
C44: 多面支払
D45: 0 | G45: 0 | J45: 0 | O45: =SUM(D45,G45,J45) -> 0 | R45: 0 | S45: 0
C46: 中山間 直払 | O46: =SUM(D46:N46) -> 0
D47: =別紙１④!$E$63/100 -> 207.14 | G47: =別紙１④!$J$63/100 -> 124.68 | J47: =別紙１④!$O$63/100 -> 40.14 | L47: =別紙１④!$T$63/100 -> 11.5 | O47: =別紙１④!$C$63/100 -> 383.46 | R47: =SUMIFS(別紙２①!$F$18:$F$105,別紙２①!$P$18:$P$105,"荒廃農地")/100 -> 0 | S47: =別紙１④!$I$63+別紙１④!$N$63+別紙１④!$S$63+別紙１④!$X$63+別紙１④!$T$71+別紙１④!$S$80+別紙１④!$S$88+別紙１④!$P$110+別紙１④!$P$119 -> 398474
D48: 傾斜 | E48: =IF(別紙１④!E56>0,別紙１④!F56,"")&CHAR(10)&IF(別紙１④!E57>0,別紙１④!F57,"")&CHAR(10)&IF(別紙１④!E58>0,別紙１④!F58,"")&CHAR(10)&IF(別紙１④!E59>0,別紙１④!F59,"")&CHAR(10)&IF(別紙１④!E60>0,別紙１④!F60,"")&CHAR(10)&IF(別紙１④!E61>0,別紙１④!F61,"") -> 急傾斜 小区画・不整形 高齢化・耕作放棄率 特認基準 交付対象外 | G48: 傾斜 | H48: =IF(別紙１④!J56>0,別紙１④!K56,"")&CHAR(10)&IF(別紙１④!J57>0,別紙１④!K57,"")&CHAR(10)&IF(別紙１④!J58>0,別紙１④!K58,"")&CHAR(10)&IF(別紙１④!J59>0,別紙１④!K59,"")&CHAR(10)&IF(別紙１④!J60>0,別紙１④!K60,"")&CHAR(10)&IF(別紙１④!J61>0,別紙１④!K61,"") -> 急傾斜 緩傾斜 高齢化・耕作放棄率 特認基準 交付対象外（田畑混在地） 交付対象外（田畑混在地以外） | J48: 傾斜 | K48: =IF(別紙１④!O56>0,別紙１④!P56,"")&CHAR(10)&IF(別紙１④!O57>0,別紙１④!P57,"")&CHAR(10)&IF(別紙１④!O58>0,別紙１④!P58,"")&CHAR(10)&IF(別紙１④!O59>0,別紙１④!P59,"")&CHAR(10)&IF(別紙１④!O60>0,別紙１④!P60,"")&CHAR(10)&IF(別紙１④!O61>0,別紙１④!P61,"")&CHAR(10)&IF(別紙１④!O62>0,別紙１④!P62,"") -> 急傾斜 緩傾斜 高齢化・耕作放棄率 草地比率の高い草地 特認基準 交付対象外（田草地混在地） 交付対象外（田草地混在地以外） | L48: 傾斜 | M48: =IF(別紙１④!T56>0,別紙１④!U56,"")&CHAR(10)&IF(別紙１④!T57>0,別紙１④!U57,"")&CHAR(10)&IF(別紙１④!T58>0,別紙１④!U58,"")&CHAR(10)&IF(別紙１④!T59>0,別紙１④!U59,"")&CHAR(10)&IF(別紙１④!T60>0,別紙１④!U60,"") -> 急傾斜 特認基準 交付対象外（田採草放牧地混在地） 交付対象外（田採草放牧地混在地以外）
B49: 農地面積 | C49: 環境 直払※２ | D49: 0
D50: 0 | S50: 0
B51: ※１ 多面支払の認定農用地面積は、集落が管理する農用地面積を記載する。 ※２ 環境直払に取り組む場合は、Ⅳの４の交付金額の取組面積の合計及び年当たり交付金額上限の合計を 記載するものとする。
B52: 農業用施設 （多面支払） | G52: 水路 | J52: 農道 | L52: ため池
G54: 0 | J54: 0 | L54: 0
C55: うち、資源向上支払 （長寿命化）の対象施設
G56: 0 | J56: 0 | L56: 0
B57: ※ 延長は、小数点以下第１位まで記入する。
B58: ３．実施区域位置図
B59: 別添１「実施区域位置図」のとおり
B60: ４．組織構成員一覧
B61: 別添２「構成員一覧」のとおり ※ 多面支払のみに取り組む場合は、活動組織規約の別紙「構成員一覧」に代えることができる。
B62: ５．多面的機能支払と中山間地域等直接支払との重複面積
B63: 重複面積 （多面支払・中山間直払）
B64: =O44+O46-D64 -> 0
B67: ※多面支払の活動計画書及び中山間直払の集落協定に位置づけられている施設等については、多面支払 の活動組織により活動を実施し、また、多面支払の交付金を充てることとする。
B68: ＜施行注意＞
B69: 計画書の変更の際には、容易に比較対照できるよう変更部分を二段書きとし、変更前を（ ）書で上段に記載するものとする。

Sheet 別紙１②
B1: （別添１）
B2: 実施区域位置図 | H2: 組織名称：
B3: =別紙１①!D19 -> □ | C3: １号事業（多面支払） | D3: =別紙１①!D20 -> ☑ | E3: 2号事業（中山間直払） | F3: =別紙１①!D21 -> □ | G3: ３号事業（環境直払） | H3: =はじめに!D5&"" -> あいうえお集落協定

Sheet 別紙１③
A1: （別添２）
A2: 構成員一覧
I3: =参４_申請!E3 -> 年 月 日
A4: 役職名 | B4: 氏名 （代表者名、 団体名） | C4: 住所 | D4: 農業所得の確認に関する承諾 | E4: 多面的機能支払 | H4: 中山間地域等直接支払 | K4: 環境保全型農業直接支払
F5: 分類 記号 | G5: 備考 活動支援班員 | I5: 分類 記号 | J5: 年齢 分類 記号 | L5: 他の市町村で環境保全型農業直接支払を実施している場合は、その市町村名を全て記載 | M5: みどり認定
M6: 認定済 | N6: 申請中又は申請予定 | O6: 申請予定無し
A7: 代表者 | B7: ○○ ○○ | C7: ○○県○○市○○ | D7: 〇 | H7: ○ | I7: A | J7: ア | AK7: 〇
A8: 書記担当 | B8: ○○ ○○ | C8: ○○県○○市○○ | D8: 〇 | H8: ○ | I8: B | J8: イ | AK8: 〇
A9: 会計担当 | B9: ○○ ○○ | C9: ○○県○○市○○ | D9: 〇 | H9: ○ | I9: B | J9: ウ | AK9: 〇
B10: 農事組合法人 ○○営農 | C10: ○○県○○市○○ | D10: 〇 | H10: ○ | I10: C | J10: − | AK10: 〇
B11: 農事組合法人 ××営農 | C11: ○○県○○市○○ | D11: 〇 | H11: ○ | I11: E | J11: − | AK11: 〇
B12: ○○組合 | C12: ○○県○○市○○ | D12: 〇 | H12: ○ | I12: F | J12: − | AK12: 〇
B13: ××組合 | C13: ○○県○○市○○ | D13: 〇 | H13: ○ | I13: G | J13: − | AK13: 〇
B14: ○○ ○○ | C14: ○○県○○市○○ | D14: 〇 | H14: ○ | I14: H | J14: − | AK14: 〇
B15: NPO法人 ○○○○ | C15: ○○県○○市○○ | D15: 〇 | H15: ○ | I15: I | J15: − | AK15: 〇
B16: ○○ ○○土地改良区 | C16: ○○県○○市○○ | D16: × | H16: ○ | I16: J | J16: − | AK16: 〇
B17: ○○ ○○ | C17: ○○県○○市○○ | D17: 〇 | H17: ○ | I17: K | J17: − | AK17: 〇
B18: ○○ ○○ | C18: ○○県○○市○○ | D18: 〇 | H18: ○ | I18: L | J18: エ | AK18: 〇
B19: ○○ ○○ | C19: ○○県○○市○○ | D19: 〇 | H19: ○ | I19: M | J19: − | AK19: 〇
B20: ○○ ○○ | C20: ○○県○○市○○ | D20: 〇 | H20: ○ | I20: A | J20: カ | AK20: 〇
B21: ○○ ○○ | C21: ○○県○○市○○ | D21: 〇 | H21: ○ | I21: B | J21: キ | AK21: 〇
B22: ○○ ○○ | C22: ○○県○○市○○ | D22: 〇 | H22: ○ | I22: C | J22: − | AK22: 〇
B23: ○○ ○○ | C23: ○○県○○市○○ | D23: 〇 | H23: ○ | I23: L | J23: − | AK23: 〇
B24: ○○ ○○ | C24: ○○県○○市○○ | D24: 〇 | H24: ○ | I24: M | J24: − | AK24: 〇
B25: ○○ ○○ | C25: ○○県○○市○○ | D25: 〇 | H25: ○ | I25: A | J25: イ | AK25: 〇
B26: ○○ ○○ | C26: ○○県○○市○○ | D26: 〇 | H26: ○ | I26: B | J26: キ | AK26: 〇
B27: ○○ ○○ | C27: ○○県○○市○○ | D27: 〇 | H27: ○ | I27: A | J27: カ | AK27: 〇
B28: ○○ ○○ | C28: ○○県○○市○○ | D28: 〇 | H28: ○ | I28: B | J28: ケ | AK28: 〇
C33: 行を追加する場合はこれより上の行をコピーして「コピーしたセルの挿入」をしてください。
A39: 多面的機能支払分類番号リスト | C39: 中山間地域等直接支払分類記号リスト | I39: 年齢分類記号リスト
A57: 注１：「多面的機能支払」「中山間地域等直接支払」「環境保全型農業直接支払」の欄は、各支払に取り組む者に○印を記入。
A58: 注２：多面的機能支払に取り組む場合は、「分類番号」を分類番号リストの１～13から選択。
A59: 注３：「農業者」とは、協定に位置付けられている農用地において農業生産活動等（多面的機能支払においては、耕作又は養畜）を実施する農業者又は団体である。
A60: 注４：中山間地域等直接支払の場合には、「分類記号」を分類記号リストA～Mから選択するとともに、「年齢分類記号」を年齢分類記号リストのア～コから選択。また、市町村の中山間地域等直接支払担当部局と税務部局との間で調整が調っている場合には、例えば、「農業所得の確認に関する承諾」欄や「生年月日」欄など、農業所得の確認の承諾に必要な欄を本様式に設けることができる。この場合、「農業所得の確認に関する承諾書」（参考様式第４号別紙様式５）の作成は不要。
A61: 注５：他の市町村で環境保全型農業直接支払を実施している場合は、その市町村名を全て記載すること。
A62: 注６：「みどり認定」の欄は、みどりの食料システム法に基づき、環境負荷低減事業活動実施計画又は特定環境負荷低減事業活動実施計画を作成し、都道府県知事の認定を受けた若しくは受ける予定がある、又は申請予定がない場合についてもいずれかに○をすること。
A63: 注７：「多面的機能支払」のみに取り組む場合、住所の記入は不要。

Sheet 別紙１④
A1: ="（"&別紙１①!R20&"）" -> （別紙1）
A3: ２号事業様式
A4: （中山間地域等直接支払交付金）
A6: 第１ 集落協定の実施体制
A8: １ 集落協定の管理体制（構成員の役割分担）
A10: 役職名等 | K10: 氏名
A11: 代表者 | K11: 丙川 三郎
A12: 書記担当 | K12: 丙川 三郎
A13: 会計担当 | K13: 乙山 次郎
A14: 共同機械担当 | K14: 乙山 次郎
A15: 土地改良施設担当 | K15: 甲田 太郎
A16: 法面点検担当 | K16: 丙川 三郎
A17: 注）事務作業が一部の者に集中して過大な負担となっていないか、事務作業を担う者への報酬が適正な水準となっているか等について、協定参加者で確認すること。
A19: ２ 集落協定上の基幹的活動において中核的なリーダーとしての役割を果たす担い手として指定する者
A21: 氏 名 | F21: 実施要領の運用第６の１の(1)のオの役割 | K21: 活動の対象地区又は施設 | O21: 活動内容
A22: ○○○○ | F22: ア | K22: 集落全体 | O22: ○○の実施に当たって集落全体の企画・立案・取りまとめを行う
A23: ○○○○ | F23: イ | K23: ○○地区 | O23: ○○の実施に当たって○○地区の企画・立案・取りまとめを行う
A24: ○○○○ | F24: ウ | K24: ○○地区 | O24: ○○の実施に当たって○○地区の企画・立案・取りまとめを行う
A25: ○○○○ | F25: イ | K25: ○○地区 | O25: ○○の実施に当たって○○地区の企画・立案・取りまとめを行う
F27: 行を追加する場合はこれより上の行をコピーして「コピーしたセルの挿入」をしてください。
A31: 当該協定における中核的リーダーの協定参加者に占める割合
A32: 中核的リーダーの人数（人） | H32: 協定参加者数（人） | N32: 協定参加者に占める中核的リーダーの割合（％）
A33: =COUNTA(A22:E27) -> 4 | H33: =COUNTA(別紙１③!B7:B33) -> 22 | N33: =A33/H33 -> 0.1818181818
A34: 注）協定参加者に占める中核的リーダーの割合は、中核的リーダーの人数を協定参加者数で除した率とする。
A36: 第２ 農用地の管理方法
A38: 以下の項目のうち該当項目に○印を記入
A39: 該 当 | C39: 内 容
A40: (1) 農用地
A41: 〇 | C41: ①耕作者が農作業を継続できなくなった場合には、速やかに農業委員会のあっせんを受ける。
C42: ②農業公社が受託する。
C43: ③集落協定参加者が協定内容に従って管理する。
C44: ④その他（ ）
A46: 該 当 | C46: 内 容
A47: (2) 水路・農道等
C48: ①協定参加者全員で泥上げ、草刈りを行う。
C49: ②集落申し合わせ事項により定期的な除草等の作業を行う。
A50: 〇 | C50: ③その他（別途の規約） （例：泥上げ、草刈り等の水路・農道の管理等は多面的機能支払交付金により行う。）
A52: 第３ 協定対象となる農用地
A53: （基本分） | T53: （単位：㎡）
A54: 項目 | C54: 協定農用地 面積 | E54: 田 | J54: 畑 | O54: 草地 | T54: 採草放牧地
E55: 面積 | F55: 交付基準（傾斜等） | G55: 単価区分 | H55: 上限 単価 | I55: 交付 上限額 | J55: 面積 | K55: 交付基準（傾斜等） | L55: 単価区分 | M55: 上限 単価 | N55: 交付 上限額 | O55: 面積 | P55: 交付基準（傾斜等） | Q55: 単価区分 | R55: 上限 単価 | S55: 交付 上限額 | T55: 面積 | U55: 交付基準（傾斜等） | V55: 単価区分 | W55: 上限 単価 | X55: 交付 上限額
A56: 協定全体 | E56: =ROUNDDOWN(SUMIFS(別紙２①!$F$18:$F$105,別紙２①!$U$18:$U$105,別紙１④!G56),0) -> 16569 | F56: 急傾斜 | G56: =別紙２①!$S$14&別紙１④!$E$54&別紙１④!$F56 -> 田急傾斜 | H56: =VLOOKUP($G56,プルダウンリスト!$D$15:$E$70,2,FALSE) -> 16800 | I56: =ROUNDDOWN(E56*H56/1000,0) -> 278359 | J56: =ROUNDDOWN(SUMIFS(別紙２①!$F$18:$F$105,別紙２①!$U$18:$U$105,別紙１④!L56),0) -> 1840 | K56: 急傾斜 | L56: =別紙２①!$S$14&$J$54&K56 -> 畑急傾斜 | M56: =VLOOKUP(L56,プルダウンリスト!$D$15:$E$70,2,FALSE) -> 9200 | N56: =ROUNDDOWN(J56*M56/1000,0) -> 16928 | O56: =ROUNDDOWN(SUMIFS(別紙２①!$F$18:$F$105,別紙２①!$U$18:$U$105,別紙１④!Q56),0) -> 3144 | P56: 急傾斜 | Q56: =別紙２①!$S$14&$O$54&P56 -> 草地急傾斜 | R56: =VLOOKUP(Q56,プルダウンリスト!$D$15:$E$70,2,FALSE) -> 8400 | S56: =ROUNDDOWN(O56*R56/1000,0) -> 26409 | T56: =ROUNDDOWN(SUMIFS(別紙２①!$F$18:$F$105,別紙２①!$U$18:$U$105,別紙１④!V56),0) -> 430 | U56: 急傾斜 | V56: =別紙２①!$S$14&$T$54&U56 -> 採草放牧地急傾斜 | W56: =VLOOKUP(V56,プルダウンリスト!$D$15:$E$70,2,FALSE) -> 800 | X56: =ROUNDDOWN(T56*W56/1000,0) -> 344
E57: =ROUNDDOWN(SUMIFS(別紙２①!$F$18:$F$105,別紙２①!$U$18:$U$105,別紙１④!G57),0) -> 0 | F57: 緩傾斜 | G57: =別紙２①!$S$14&別紙１④!$E$54&別紙１④!$F57 -> 田緩傾斜 | H57: =VLOOKUP($G57,プルダウンリスト!$D$15:$E$70,2,FALSE) -> 6400 | I57: =ROUNDDOWN(E57*H57/1000,0) -> 0 | J57: =ROUNDDOWN(SUMIFS(別紙２①!$F$18:$F$105,別紙２①!$U$18:$U$105,別紙１④!L57),0) -> 4925 | K57: 緩傾斜 | L57: =別紙２①!$S$14&$J$54&K57 -> 畑緩傾斜 | M57: =VLOOKUP(L57,プルダウンリスト!$D$15:$E$70,2,FALSE) -> 2800 | N57: =ROUNDDOWN(J57*M57/1000,0) -> 13790 | O57: =ROUNDDOWN(SUMIFS(別紙２①!$F$18:$F$105,別紙２①!$U$18:$U$105,別紙１④!Q57),0) -> 120 | P57: 緩傾斜 | Q57: =別紙２①!$S$14&$O$54&P57 -> 草地緩傾斜 | R57: =VLOOKUP(Q57,プルダウンリスト!$D$15:$E$70,2,FALSE) -> 2400 | S57: =ROUNDDOWN(O57*R57/1000,0) -> 288 | T57: =ROUNDDOWN(SUMIFS(別紙２①!$F$18:$F$105,別紙２①!$U$18:$U$105,別紙１④!V57),0) -> 0 | U57: 緩傾斜 | V57: =別紙２①!$S$14&$T$54&U57 -> 採草放牧地緩傾斜 | W57: =VLOOKUP(V57,プルダウンリスト!$D$15:$E$70,2,FALSE) -> 240 | X57: =ROUNDDOWN(T57*W57/1000,0) -> 0
E58: =ROUNDDOWN(SUMIFS(別紙２①!$F$18:$F$105,別紙２①!$U$18:$U$105,別紙１④!G58),0) -> 1515 | F58: 小区画・不整形 | G58: =別紙２①!$S$14&別紙１④!$E$54&別紙１④!$F58 -> 田小区画・不整形 | H58: =VLOOKUP($G58,プルダウンリスト!$D$15:$E$70,2,FALSE) -> 6400 | I58: =ROUNDDOWN(E58*H58/1000,0) -> 9696 | J58: =ROUNDDOWN(SUMIFS(別紙２①!$F$18:$F$105,別紙２①!$U$18:$U$105,別紙１④!L58),0) -> 869 | K58: 高齢化・耕作放棄率 | L58: =別紙２①!$S$14&$J$54&K58 -> 畑高齢化・耕作放棄率 | M58: =VLOOKUP(L58,プルダウンリスト!$D$15:$E$70,2,FALSE) -> 2800 | N58: 2433 | O58: =ROUNDDOWN(SUMIFS(別紙２①!$F$18:$F$105,別紙２①!$U$18:$U$105,別紙１④!Q58),0) -> 130 | P58: 高齢化・耕作放棄率 | Q58: =別紙２①!$S$14&$O$54&P58 -> 草地高齢化・耕作放棄率 | R58: =VLOOKUP(Q58,プルダウンリスト!$D$15:$E$70,2,FALSE) -> 2400 | S58: 312 | T58: =ROUNDDOWN(SUMIFS(別紙２①!$F$18:$F$105,別紙２①!$U$18:$U$105,別紙１④!V58),0) -> 230 | U58: 特認基準 | V58: =別紙２①!$S$14&$T$54&U58 -> 採草放牧地特認基準 | W58: =VLOOKUP(V58,プルダウンリスト!$D$15:$E$70,2,FALSE) -> 240 | X58: 55
E59: =ROUNDDOWN(SUMIFS(別紙２①!$F$18:$F$105,別紙２①!$U$18:$U$105,別紙１④!G59),0) -> 1403 | F59: 高齢化・耕作放棄率 | G59: =別紙２①!$S$14&別紙１④!$E$54&別紙１④!$F59 -> 田高齢化・耕作放棄率 | H59: =VLOOKUP($G59,プルダウンリスト!$D$15:$E$70,2,FALSE) -> 6400 | I59: 8979 | J59: =ROUNDDOWN(SUMIFS(別紙２①!$F$18:$F$105,別紙２①!$U$18:$U$105,別紙１④!L59),0) -> 2034 | K59: 特認基準 | L59: =別紙２①!$S$14&$J$54&K59 -> 畑特認基準 | M59: =VLOOKUP(L59,プルダウンリスト!$D$15:$E$70,2,FALSE) -> 2800 | N59: 5695 | O59: =ROUNDDOWN(SUMIFS(別紙２①!$F$18:$F$105,別紙２①!$U$18:$U$105,別紙１④!Q59),0) -> 140 | P59: 草地比率の高い草地 | Q59: =別紙２①!$S$14&$O$54&P59 -> 草地草地比率の高い草地 | R59: =VLOOKUP(Q59,プルダウンリスト!$D$15:$E$70,2,FALSE) -> 1200 | S59: 168 | T59: =ROUNDDOWN(SUMIFS(別紙２①!$F$18:$F$105,別紙２①!$U$18:$U$105,別紙１④!V59),0) -> 240 | U59: 交付対象外（田採草放牧地混在地） | V59: =別紙２①!$S$14&$T$54&U59 -> 採草放牧地交付対象外（田採草放牧地混在地） | W59: =VLOOKUP(V59,プルダウンリスト!$D$15:$E$70,2,FALSE) -> 0 | X59: 0
E60: =ROUNDDOWN(SUMIFS(別紙２①!$F$18:$F$105,別紙２①!$U$18:$U$105,別紙１④!G60),0) -> 813 | F60: 特認基準 | G60: =別紙２①!$S$14&別紙１④!$E$54&別紙１④!$F60 -> 田特認基準 | H60: =VLOOKUP($G60,プルダウンリスト!$D$15:$E$70,2,FALSE) -> 6400 | I60: 5203 | J60: =ROUNDDOWN(SUMIFS(別紙２①!$F$18:$F$105,別紙２①!$U$18:$U$105,別紙１④!L60),0) -> 1153 | K60: 交付対象外（田畑混在地） | L60: =別紙２①!$S$14&$J$54&K60 -> 畑交付対象外（田畑混在地） | M60: =VLOOKUP(L60,プルダウンリスト!$D$15:$E$70,2,FALSE) -> 0 | N60: 0 | O60: =ROUNDDOWN(SUMIFS(別紙２①!$F$18:$F$105,別紙２①!$U$18:$U$105,別紙１④!Q60),0) -> 150 | P60: 特認基準 | Q60: =別紙２①!$S$14&$O$54&P60 -> 草地特認基準 | R60: =VLOOKUP(Q60,プルダウンリスト!$D$15:$E$70,2,FALSE) -> 2400 | S60: 360 | T60: =ROUNDDOWN(SUMIFS(別紙２①!$F$18:$F$105,別紙２①!$U$18:$U$105,別紙１④!V60),0) -> 250 | U60: 交付対象外（田採草放牧地混在地以外） | V60: =別紙２①!$S$14&$T$54&U60 -> 採草放牧地交付対象外（田採草放牧地混在地以外） | W60: =VLOOKUP(V60,プルダウンリスト!$D$15:$E$70,2,FALSE) -> 0 | X60: 0
E61: =ROUNDDOWN(SUMIFS(別紙２①!$F$18:$F$105,別紙２①!$U$18:$U$105,別紙１④!G61),0) -> 414 | F61: 交付対象外 | G61: =別紙２①!$S$14&別紙１④!$E$54&別紙１④!$F61 -> 田交付対象外 | H61: =VLOOKUP($G61,プルダウンリスト!$D$15:$E$70,2,FALSE) -> 0 | I61: 0 | J61: =ROUNDDOWN(SUMIFS(別紙２①!$F$18:$F$105,別紙２①!$U$18:$U$105,別紙１④!L61),0) -> 1647 | K61: 交付対象外（田畑混在地以外） | L61: =別紙２①!$S$14&$J$54&K61 -> 畑交付対象外（田畑混在地以外） | M61: =VLOOKUP(L61,プルダウンリスト!$D$15:$E$70,2,FALSE) -> 0 | N61: 0 | O61: =ROUNDDOWN(SUMIFS(別紙２①!$F$18:$F$105,別紙２①!$U$18:$U$105,別紙１④!Q61),0) -> 170 | P61: 交付対象外（田草地混在地） | Q61: =別紙２①!$S$14&$O$54&P61 -> 草地交付対象外（田草地混在地） | R61: =VLOOKUP(Q61,プルダウンリスト!$D$15:$E$70,2,FALSE) -> 0 | S61: 0
O62: =ROUNDDOWN(SUMIFS(別紙２①!$F$18:$F$105,別紙２①!$U$18:$U$105,別紙１④!Q62),0) -> 160 | P62: 交付対象外（田草地混在地以外） | Q62: =別紙２①!$S$14&$O$54&P62 -> 草地交付対象外（田草地混在地以外） | R62: =VLOOKUP(Q62,プルダウンリスト!$D$15:$E$70,2,FALSE) -> 0 | S62: 0
A63: 計 | C63: =E63+J63+O63+T63 -> 38346 | E63: =SUM(E56:E62) -> 20714 | I63: =SUM(I56:I62) -> 302237 | J63: =SUM(J56:J62) -> 12468 | N63: =SUM(N56:N62) -> 38846 | O63: =SUM(O56:O62) -> 4014 | S63: =SUM(S56:S62) -> 27537 | T63: =SUM(T56:T62) -> 1150 | X63: =SUM(X56:X62) -> 399
A65: （加算措置に取り組む場合）
A67: １ 棚田地域振興活動加算
B68: 棚田地域振興活動加算
B69: 面積（㎡） | M69: 上限単価 （円/10a） | P69: 面積×上限単価 （円） | T69: 加算上限額 （円）
B70: 田 1/20以上 | E70: 畑 15度以上 | H70: 田 1/10以上 | J70: 畑 20度以上
B71: =ROUNDDOWN(SUMIFS(別紙２①!$F$18:$F$105,別紙２①!$E$18:$E$105,"田",別紙２①!$H$18:$H$105,"",別紙２①!$K$18:$K$105,"〇"),0) -> 907 | E71: =ROUNDDOWN(SUMIFS(別紙２①!$F$18:$F$105,別紙２①!$E$18:$E$105,"畑",別紙２①!$H$18:$H$105,"",別紙２①!$K$18:$K$105,"〇"),0) -> 1233 | M71: 10000 | P71: =ROUNDDOWN((B71+E71)*M71/1000,0) -> 21400 | T71: =SUM(P71:S72) -> 21400
H72: =ROUNDDOWN(SUMIFS(別紙２①!$F$18:$F$105,別紙２①!$E$18:$E$105,"田",別紙２①!$H$18:$H$105,"〇",別紙２①!$K$18:$K$105,"〇"),0) -> 0 | J72: =ROUNDDOWN(SUMIFS(別紙２①!$F$18:$F$105,別紙２①!$E$18:$E$105,"畑",別紙２①!$H$18:$H$105,"〇",別紙２①!$K$18:$K$105,"〇"),0) -> 0 | M72: 14000 | P72: =ROUNDDOWN((H72+J72)*M72/1000,0) -> 0
B73: 注１）面積×上限単価（円）は、面積（㎡）の千分の一の値に上限単価（円/10a）を乗じた額とする。
B74: 注２）加算上限額（円）は、面積×上限単価（円）の合計額とする。
A76: ２ 超急傾斜農地保全管理加算
B77: 超急傾斜農地保全管理加算
B78: 面積（㎡） | I78: 上限単価 （円/10a） | N78: 面積×上限単価 （円） | S78: 加算上限額 （円）
B79: 田 1/10以上 | E79: 畑 20度以上
B80: =ROUNDDOWN(SUMIFS(別紙２①!$F$18:$F$105,別紙２①!$E$18:$E$105,"田",別紙２①!$L$18:$L$105,"〇"),0) -> 738 | E80: =ROUNDDOWN(SUMIFS(別紙２①!$F$18:$F$105,別紙２①!$E$18:$E$105,"畑",別紙２①!$L$18:$L$105,"〇"),0) -> 0 | I80: 6000 | N80: =ROUNDDOWN((B80+E80)*I80/1000,0) -> 4428 | S80: =N80 -> 4428
B81: 注１）面積×上限単価（円）は、面積（㎡）の千分の一の値に上限単価（円/10a）を乗じた額とする。
B82: 注２）加算上限額（円）は、面積×上限単価（円）の合計額とする。
A84: ３ ネットワーク化加算
B85: ネットワーク化加算
B86: 面積（㎡） | K86: 上限単価 (円/10a) | N86: 面積×上限単価 （円） | P86: 面積×上限単価の計 （円） | S86: 加算上限額 （円）
B87: 田 | D87: 畑 | F87: 草地 | I87: 採草放牧地
K88: 10000 | N88: =ROUNDDOWN((B88+D88+F88+I88)*K88/1000,0) -> 0 | P88: =N88+N89+N90 -> 0 | S88: =IF(P88<U88,P88,U88) -> 0 | U88: 1000000
K89: 4000 | N89: =ROUNDDOWN((B89+D89+F89+I89)*K89/1000,0) -> 0
K90: 1000 | N90: =ROUNDDOWN((B90+D90+F90+I90)*K90/1000,0) -> 0
B91: 注１）面積×上限単価（円）は、面積（㎡）の千分の一の値に上限単価（円/10a）を乗じた額とする。
B92: 注２）加算上限額（円）は、面積×上限単価の計（円）及び100万円のうち、いずれか低い額とする。ただし、統合については、統合前の協定単位で上限を設定する。
A95: ネットワーク化又は統合状況
B96: ネットワーク化する集落協定名 | H96: 統合する集落協定名 | K96: 対象農用地面積（㎡）
B97: ○○集落 | K97: 20000
B98: ○○集落 | K98: 100000
B102: 行を追加する場合はこれより上の行を「コピーして追加」してください。
B103: =COUNTIFS($B$97:$H$101,"<>") -> 2 | K103: =SUM(K97:R101) -> 120000
A106: ４ スマート農業加算
B107: スマート農業加算
B108: 面積（㎡） | K108: 上限単価 (円/10a) | N108: 面積×上限単価 （円） | P108: 加算上限額 （円）
B109: 田 | D109: 畑 | F109: 草地 | I109: 採草放牧地
B110: =ROUNDDOWN(SUMIFS(別紙２①!$F$18:$F$105,別紙２①!$E$18:$E$105,"田",別紙２①!$N$18:$N$105,"〇"),0) -> 0 | D110: =ROUNDDOWN(SUMIFS(別紙２①!$F$18:$F$105,別紙２①!$E$18:$E$105,"畑",別紙２①!$N$18:$N$105,"〇"),0) -> 0 | F110: =ROUNDDOWN(SUMIFS(別紙２①!$F$18:$F$105,別紙２①!$E$18:$E$105,"草地",別紙２①!$N$18:$N$105,"〇"),0) -> 0 | I110: =ROUNDDOWN(SUMIFS(別紙２①!$F$18:$F$105,別紙２①!$E$18:$E$105,"採草放牧地",別紙２①!$N$18:$N$105,"〇"),0) -> 0 | K110: 5000 | N110: =ROUNDDOWN((B110+D110+F110+I110)*K110/1000,0) -> 0 | P110: =IF(N110<S110,N110,S110) -> 0 | S110: 2000000
B111: 注１）面積×上限単価（円）は、面積（㎡）の千分の一の値に上限単価（円/10a）を乗じた額とする。
B112: 注２）加算上限額（円）は、面積×上限単価（円）及び200万円のうち、いずれか低い額とする。
A115: ５ 集落機能強化加算の経過措置
B116: 集落機能強化加算の経過措置
B117: 面積（㎡） | K117: 上限単価 (円/10a) | N117: 面積×上限単価 （円） | P117: 加算上限額 （円）
B118: 田 | D118: 畑 | F118: 草地 | I118: 採草放牧地
B119: =ROUNDDOWN(SUMIFS(別紙２①!$F$18:$F$105,別紙２①!$E$18:$E$105,"田",別紙２①!$O$18:$O$105,"〇"),0) -> 0 | D119: =ROUNDDOWN(SUMIFS(別紙２①!$F$18:$F$105,別紙２①!$E$18:$E$105,"畑",別紙２①!$O$18:$O$105,"〇"),0) -> 869 | F119: =ROUNDDOWN(SUMIFS(別紙２①!$F$18:$F$105,別紙２①!$E$18:$E$105,"草地",別紙２①!$O$18:$O$105,"〇"),0) -> 120 | I119: =ROUNDDOWN(SUMIFS(別紙２①!$F$18:$F$105,別紙２①!$E$18:$E$105,"採草放牧地",別紙２①!$O$18:$O$105,"〇"),0) -> 220 | K119: 3000 | N119: =ROUNDDOWN((B119+D119+F119+I119)*K119/1000,0) -> 3627 | P119: =IF(N119<S119,N119,S119) -> 3627 | S119: 2000000
B120: 注１）面積×上限単価（円）は、面積（㎡）の千分の一の値に上限単価（円/10a）を乗じた額とする。
B121: 注２）加算上限額（円）は、面積×上限単価（円）及び200万円のうち、いずれか低い額とする。
A125: 第４ 集落マスタープラン（必須事項）
A126: １ 集落における将来像
B127: 集落の目指すべき将来像に○印を記入する（複数可）。
D129: 目指すべき将来像
B130: 〇 | D130: ①将来にわたり農業生産活動等が可能となる集落内の実施体制構築
B131: 〇 | D131: ②協定の担い手となる新たな人材の育成・確保
D132: ③協定参加者それぞれが、作物生産、加工・直売等さまざまな工夫により再生産可能な所得を確保
D133: ④その他（自由記載）
D134: 例)農業生産活動の継続に向けた集落機能強化
B135: 注）④を選択する場合は将来像を記載。
B136: ２ 将来像を実現するための目標と活動計画
B137: 集落の目指すべき将来像を実現するための活動方策について○印を記入する（複数可）。また、活動方策に対する５年間の活動計画（目標）を記載する。
B138: 活動方策 | N138: 活動計画（目標）
B139: 〇 | D139: 機械・農作業の共同化等営農組織の育成
D140: 高付加価値型農業
D141: 農業生産条件の強化
D142: 担い手への農地集積
D143: 担い手への農作業の委託
D144: 新規就農者等による農業生産
D145: 地場産農産物等の加工・販売
B146: 〇 | D146: 消費・出資の呼び込み | N146: 体験農園を実施し、都市住民との交流を深める。
D147: 共同で支え合う集団的かつ持続可能な体制整備
D148: その他（自由記載） | N148: （自由記載）
D149: 例)地域運営組織と連携した集落機能強化
B150: 注）体制整備単価の取組を行う協定については、第８との整合を図ること。
A152: 第５ 農業生産活動等として取り組むべき事項
A153: １ 農用地に関する事項
B154: 以下の項目から１項目以上（２で管理の対象とする水路・農道等が、多面的機能支払交付金実施要綱別紙１第５の２に基づく活動計画に定める施設と同一である場合は、２項目以上）を選択する。
A155: ✓ | C155: 多面的機能支払交付金実施要綱別紙１第５の２に基づく活動計画に定める施設と同一。
A156: 該 当 | C156: 具 体 的 に 取 り 組 む 行 為
A157: 〇 | C157: ①耕作放棄されそうな農用地については、集落内外の担い手農家や第３セクター等による利用権の設定等や農作業の委託を行う。
C158: ②既荒廃農地を協定農用地に含める場合には、荒廃農地の復旧又は畜産的利用を行う。
C159: ③既荒廃農地を協定農用地に含めない場合には、協定農用地に悪影響を与えないよう草刈り、防虫対策等の保全管理を行う。
C160: ④農地法面の崩壊を未然に防止するため、集落内の担い手を中心に定期的な点検を行う。
C161: ⑤協定農用地への柵、ネット等の設置等により鳥獣害防止対策を行う。
C162: ⑥作業道の設置、排水改良等簡易な基盤整備を行う。
C163: ⑦定農用地における農業生産活動が維持されるよう担い手（認定農業者、これに準ずるものとして市町村長が認定した者、第３セクター、特定農業法人、農業協同組合、生産組織等）を確保する。
C164: ⑧集落の新たな雇用創出や地域経済の活性化に資する地場農産物の加工・販売を行う。
C165: ⑨その他（土地改良事業、災害復旧及び地目変換（田から畑等へ）等）
A167: ２ 水路・農道等の管理方法（①②について該当する取組に○印を記入（複数可））
A168: 具 体 的 に 取 り 組 む 行 為
A169: ①水 路 | D169: ア）水路清掃 | H169: 〇 | J169: イ）草刈り | N169: 〇 | P169: ウ）その他（ | X169: ）
A170: ②農 道 | D170: ア）簡易補修 | H170: 〇 | J170: イ）草刈り | P170: ウ）その他（ | X170: ）
A171: ③その他 | D171: ○○を実施する
A174: ３ 多面的機能を増進する活動として以下の項目から１項目以上選択し、実施する。
B175: 以下の項目のうち該当項目に○印を記入する。
A176: 該 当 | C176: 具 体 的 に 取 り 組 む 行 為
A177: 〇 | C177: ①農地と一体となった周辺林地の下草刈り等を行う。
C178: ②棚田オーナー制度の実施、市民農園・体験農園の開設・運営を行う。
C179: ③景観作物を作付ける。
A180: 〇 | C180: ④土壌流亡に配慮した営農を行う（等高線栽培、根の張る植物を畝間に植栽）。
C181: ⑤体験民宿を実施する（グリーン・ツーリズム）。
C182: ⑥魚類・昆虫類の保護を行う（ビオトープの確保）。
A183: 〇 | C183: ⑦冬期の湛水化、不作付地での水張り等の鳥類の餌場の確保を図る。
C184: ⑧粗放的畜産を行う。
A185: 〇 | C185: ⑨堆きゅう肥の施肥、拮抗植物の利用、アイガモ・鯉の利用、輪作の徹底、緑肥作物の作付け等を行う。
C186: ⑩その他 （ ）
A187: 注）法律で義務づけられている行為及び国庫補助事業の補助対象として行われる行為以外のものを１つ以上選択。
A188: 注）上記１～３で定めた共同取組活動を行う際は、作業安全対策の観点から、以下の点に努めること。
B189: ・ | C189: 作業環境の点検（作業前の危険箇所の確認・共有、機器の定期点検等）
B190: ・ | C190: 共同取組活動で使用する機械又は使用頻度が高い機械（刈払機等）の安全な使用に関する取組の実施（研修・講習の開催又は参加等）
A193: 第６ 促進計画の「その他促進計画の実施に関し当該市町村が必要と認める事項」により 規定すべき事項
B194: １ 土地改良事業（別紙様式４参照） (1) 事業実施の目的 (2) 事業の実施主体 (3) 実施する事業種目、事業内容及び事業規模 ２ 災害復旧事業 (1) 事業実施の目的 (2) 事業の実施主体 (3) 実施する事業種目、事業内容及び事業規模 ３ 地目の変更 (1) 耕作者（所有者）名 (2) 変更前後の地目及び面積（例：田○○㎡→畑○○㎡） ４ 集落相互間等の連携 (1) 近隣の担い手のいる集落等との連携 （当該集落名、連携の活動内容、スケジュール） (2) 農業公社、ＮＰＯ法人、農作業受委託組織、民間法人等の集落協定への参加・連携 （当該法人名、連携の活動内容、参加内容、スケジュール） (3) 近隣の小規模な集落協定との統合・連携
A199: 第７ 交付金の使用方法等
A200: １ 交付金は、集落を代表して | H200: 〇〇 〇〇（氏名） | K200: が市町村より受け取る。
A202: ２ 次の通り支出する。
C204: 項 目 | J204: 交付金使途の内容(項目) | R204: 金 額
A205: 共同取組活動 | C205: ①役員等の各担当者の活動に対する経費 | J205: 役員報酬 | R205: 300000
J206: 研修会開催費 | R206: 30000
C207: ②農業生産活動等の体制整備に向けた活動等の集落マスタープランの将来像を実現するための活動に対する経費 | J207: 農産物等の販売促進関係費 | R207: 20000
J208: 都市住民との交流促進関係費 | R208: 100000
J209: 法人設立関係費 | R209: 100000
J210: 土地利用調整関係費 | R210: 20000
C211: ③水路、農道等の維持・管理等集落の共同取組活動に要する経費 | J211: 道・水路管理費 | R211: 1000000
J212: （うち道・水路整備費） | R212: 700000
J213: 農地管理費 | R213: 800000
J214: （うち農地整備費） | R214: 500000
C215: ④農用地の維持・管理活動を行う者に対する経費 | J215: 鳥獣害防止対策費 | R215: 500000
J216: 共同利用機械購入等費 | R216: 500000
J217: 共同利用施設整備等費 | R217: 600000
J218: 多面的機能増進活動費 | R218: 30000
C219: ⑤毎年の積立額又は次年度への繰越予定額 | J219: ３のとおり | R219: 100000
A221: ３ 交付金の積立・繰越に係る計画
A222: ① 交付金の積立
B223: （ｱ）積立計画
F224: 令和7年度 | J224: 令和8年度 | N224: 令和9年度
B225: 積立予定額 | F225: 100000 | J225: 100000 | N225: 100000
B226: 積立累計額 | F226: 100000 | J226: 200000 | N226: 300000
B228: （ｲ）取り崩し予定等
B229: ○ 取り崩し予定年度： | J229: （協定期間内）
B230: ○ 取り崩し予定年度における積立累計額： | J230: 300000 | K230: 円
B231: ○ 使途： | F231: 畦塗り機購入
F232: に要する経費（具体的に記入）
A233: ② 次年度への繰越
B234: ○ 繰越予定年度： | J234: （当該年度の翌年度）
B235: ○ 繰越予定額： | I235: 300000 | J235: 円
B236: ○ 使途： | F236: 災害の発生が想定される箇所・施設に対する災害発生時の復旧等
F237: に要する経費（具体的に記入）
A238: ４ 次のとおり支出する。
A239: 個 人 配 分 分 | M239: 金 額
M240: （配分割合： | U240: =IFERROR($M$241/($I$63+$N$63+$S$63+$X$63+$T$71+$S$80+$S$88+$P$110+$P$119),"") -> 0.501914805 | X240: ）
M241: 200000
A243: 【体制整備単価の場合に使用】
A245: 第８ 農業生産活動等の体制整備として取り組むべき事項（体制整備単価交付必須事項）
B246: ネットワーク化活動計画を作成する。
A247: 該 当 | D247: 取 り 組 む べ き 事 項
... 27 more rows

Sheet 別紙３
AH1: （別紙様式３）
B2: 協定対象施設の管理方法
B3: 区 分 | F3: 施 設 | L3: 管理作業者 | S3: 管理方法等 | AC3: 管理作業の 代 表 者
B4: 用水路 | F4: ○○用水路 （水路の延長○m) | L4: ○○地区水利組合 | S4: ○○地区水利組合規程による | AC4: 代表者 ○○○○
B5: 排水路 | F5: ○○排水路 （水路の延長○m) | L5: ○○地区水利組合 | S5: ○○地区水利組合規程による | AC5: 代表者 ○○○○
B6: 道 路 | F6: ○○農道 （水路の延長○m) | L6: ○○○○他 | S6: ○○集落申し合わせ事項による | AC6: ○○○○

Sheet 別紙８
J1: （ 別紙様式８ ）
D3: 環境負荷低減のチェックシート（集落協定向け）
C5: 申請時 （します） | D5: （１）適正な施肥 | E5: 報告時 （しました） | H5: 申請時 （します） | I5: （５）廃棄物の発生抑制、 適正な循環的な利用及び適正な処分 | J5: 報告時 （しました）
B7: ① | C7: □ | D7: ※共同取組活動で施肥を行う場合 肥料の適正な保管 （該当しない ） | E7: □
G8: ⑧ | H8: □ | I8: 共同取組活動を行う場合には、 プラ等廃棄物の削減に努め、適正に処理 | J8: □
B11: ② | C11: □ | D11: ※共同取組活動で施肥を行う場合 肥料の使用状況等の記録・保存に努める （該当しない ） | E11: □
H12: 申請時 （します） | I12: （６）生物多様性への悪影響の防止 | J12: 報告時 （しました）
G14: ⑨ | H14: □ | I14: ※共同取組活動で農薬を使った防除を行う場合 農薬の適正な使用・保管 （該当しない ） | J14: □
C16: 申請時 （します） | D16: （２）適正な防除 | E16: 報告時 （しました）
B18: ③ | C18: □ | D18: ※共同取組活動で農薬を使った防除を行う場合 農薬の適正な使用・保管 （該当しない ） | E18: □ | G18: ⑩ | H18: □ | I18: ※共同取組活動で農薬を使った防除を行う場合 農薬の使用状況等の記録・保存 （該当しない ） | J18: □
B22: ④ | C22: □ | D22: ※共同取組活動で農薬を使った防除を行う場合 農薬の使用状況等の記録・保存 （該当しない ） | E22: □ | G22: ⑪ | H22: □ | I22: ※生物多様性への影響が想定される工事等を 実施する場合 生物多様性に配慮した事業実施に努める （該当しない ） | J22: □
C27: 申請時 （します） | D27: （３）エネルギーの節減 | E27: 報告時 （しました）
H28: 申請時 （します） | I28: （７）環境関係法令の遵守等 | J28: 報告時 （しました）
B29: ⑤ | C29: □ | D29: ※共有資産として入手した50万円以上の農機等が ある場合 農機等の燃料の使用状況の記録・保存に努める （該当しない ） | E29: □
G30: ⑫ | H30: □ | I30: 「みどりの食料システム戦略」を理解し、適切な事業実施に努める | J30: □
G33: ⑬ | H33: □ | I33: 関係法令の遵守 | J33: □
B34: ⑥ | C34: □ | D34: ※共有資産として入手した50万円以上の農機等が ある場合 省エネを意識し、不必要・非効率なエネルギー消費をしないよう努める （該当しない ） | E34: □
G35: ⑭ | H35: □ | I35: ※機械等を扱う事業者である場合 機械等の適切な整備と管理に努める （該当しない ） | J35: □
G39: ⑮ | H39: □ | I39: 正しい知識に基づく作業安全に努める | J39: □
C41: 申請時 （します） | D41: （４）悪臭及び害虫の発生防止 | E41: 報告時 （しました）
B43: ⑦ | C43: □ | D43: 共同取組活動を行う場合には、 悪臭・害虫の発生防止・低減に努める | E43: □
B47: 注１ 申請時は「します」の□、報告時は「しました」の□にチェックしてください。
B48: 注２ 「※」の記載内容に該当しない場合は「（該当しない □）」にチェックしてください。 この場合、当該項目の申請時・報告時のチェックは不要です。

Sheet 別紙２②（ネットワーク化活動計画）
B2: ○ネットワーク化活動計画
A4: １．体制整備の基本方針
B5: １－１．集落協定名
B6: =はじめに!D5 -> あいうえお集落協定
B8: １－２．ネットワーク化活動計画作成時点
B9: 当初 | F9: 令和８年６月
B10: 第１回変更
B11: 第２回変更
B12: 第３回変更
B13: 注１）本計画を作成したときは、遅滞なく協定農用地の存する市町村に提出すること。 注２）２－２のネットワークに参加する集落協定、３－２の統合に参加する集落協定、３－６の役員の継承計画、４－１の協定活動に参画する多様な組織等に変更が必要になった場合や、計画内容の大幅な変更が必要になった場合は本計画の変更を行い市町村に提出すること。
B15: １－３．体制整備のために行おうとする取組
B16: 該当注１） | D16: 取組 | G16: 対象協定 | L16: 要記載項目
B17: ○ | D17: ①ネットワーク化注２） | G17: 新たにネットワーク化を行い10ha以上のネットワークを形成する集落協定 | L17: ２－１～２－７
G18: 新たにネットワーク化を行う予定はないが、既に10ha以上のネットワークを形成しており、体制の維持、向上を図ろうとする集落協定
B19: ○ | D19: ②統合注３） | G19: 新たに統合を行い10ha以上の集落協定を形成する集落協定 | L19: ３－１～３－５
G20: 新たに統合を行う予定はないが、既に10ha以上の集落協定となっており、体制の維持、向上を図ろうとする集落協定 | L20: ３－２、 ３－６、３－７
B21: ○ | D21: ③多様な組織等の参画注４） | G21: １組織以上の農業者団体以外の組織又は構成員の10%以上の非農業者が活動に参画する集落協定 | L21: ４－１～４－３
B22: 注１）該当する取組を全て選択すること。 注２）「ネットワーク化」とは、複数の集落協定間において活動の連携体制を構築することをいう。「新たにネットワーク化を行う予定はないが、既に10ha以上のネットワークを形成しており、体制の維持、向上を図ろうとする集落協定」の場合は、計画作成時点で10ha以上のネットワークを形成していること。ネットワーク化は自協定が存する地域計画区域内の他の集落協定と行うことを基本とするが、自協定が存する地域計画区域内に他の集落協定がない場合など、合理的な理由がある場合は、他の地域計画区域内に存する集落協定とネットワーク化することも可とする。 注３）「統合」とは、他の集落協定と１つの集落協定に統合することをいう。「新たに統合を行う予定はないが、既に10ha以上の集落協定となっており、体制の維持、向上を図ろうとする集落協定」の場合は、計画作成時点で10ha以上の集落協定となっていること。統合は自協定が存する地域計画区域内の他の集落協定と行うことを基本とするが、自協定が存する地域計画区域内に他の集落協定がない場合など、合理的な理由がある場合は、他の地域計画区域内に存する集落協定と統合することも可とする。 注４）「多様な組織等の参画」とは、農業者団体以外の組織や非農業者が集落協定の活動に参画するこという。参画にあたっては、集落協定の構成員となるか、別途で協定等を結ぶこと。計画作成時点で１組織以上の農業者団体以外の組織又は構成員の10%以上の非農業者が活動に参画していること。

Sheet 別紙２③（ネットワーク化）
A2: ２．ネットワーク化の計画
B3: 注１）ネットワーク化を行っている、又は行おうとする他の集落協定のネットワーク化活動計画におけるネットワーク化の計画と整合がとれたものとすること。 注２）２－１～２－７の全てを記載すること。
B5: ２－１．ネットワークの名称（予定）
B6: 農林地域集落協定ネットワーク協議会
B8: ２－２．ネットワークに参加する集落協定
B9: 集落協定名 | F9: 協定面積 | H9: 地域計画 | L9: 現在の連携状況
H10: 自協定が存する計画区域内 | J10: 別の計画区域内 | L10: 連携済 | M10: 今後連携
B11: ="（自協定）"&はじめに!D5 -> （自協定）あいうえお集落協定 | C11: （自協定） | D11: （自協定） | E11: （自協定） | F11: =別紙１④!$C$63/10000 -> 3.8346
B12: Ｂ協定 | F12: 13.7 | H12: ○ | L12: ○
B13: Ｃ協定 | F13: 3.2 | H13: ○ | M13: ○
B15: 合計 | C15: 合計 | D15: 合計 | E15: 合計 | F15: =SUM(F11:G14) -> 20.7346
B16: 注）合計協定面積は10ha以上であること。
B18: ２－３．ネットワーク化で解決しようとする課題
B19: 該当 | H19: 該当
D20: ①リーダーの人材不足 | J20: ⑤農作業機械や施設の不足
B21: ○ | D21: ②事務担当者の人材不足 | H21: ○ | J21: ⑥知見や技術の不足
D22: ③共同取組活動参加者の附則 | J22: ⑦その他（※内容は↓欄に記載ください）
B23: ○ | D23: ④農業の担い手の人材不足
B24: （該当する課題について詳細を記載） ②現在の事務担当者は70歳代で高齢であるが、後継者が見つからず10年間、事務担当を担っている。あと数年のうちに後継者を確保する必要がある。 ④高齢で小規模な自給的農家や兼業農家が協定内の農地の多くを担っている。あと５年のうちに引退を希望する農業者が複数いるが、農地の引き受け手の見込みが立っていない。 ⑥農地の担い手を育成するため、ソバや施設園芸の導入に取り組みたい。また、販路拡大のため、加工品の販売にも取り組みたいが、協定内に加工や販売の知見を持っている人材がいない。
B25: 注）地域計画や集落マスタープラン、第５期対策で作成した集落戦略に位置付けられた内容を踏まえて検討すること。
B27: ２－４．ネットワーク化により連携して実施する活動
B28: 該当 | D28: 連携して実施する活動 | H28: 該当 | J28: 連携して実施する活動
B29: ○ | D29: ①事務の一元化（共同事務局の設置や外部委託） | H29: ○ | J29: ⑥農業の担い手育成
H30: ○ | J30: ⑦地場農産物の加工・販売
D31: ②農地保全（草刈り、荒廃防止活動等） | H31: ○ | J31: ⑧鳥獣害対策
D32: ③水路・農道等の維持管理 | J32: ⑨多面的機能を増進する活動
D33: ④機械・施設の共同利用 | J33: ⑩その他（※内容は↓欄に記載ください ）
B34: ○ | D34: ⑤農作業の共同化
B36: ２－５．連携方法
B37: 該当 | D37: 連携方法 | G37: 該当 | I37: 連携方法
B38: ○ | D38: ①協議会型注１） | I38: ③共同委託型注３）
B39: ○ | D39: ②活動連携型注２） | I39: ④その他（ | L39: ）
B40: 注１）協議会、委員会等を設置し、ネットワークでの活動の調整や事務等を行う場合。 注２）作業の共同化や機械・施設の共同利用などの共通のルールを覚書等で定めるなどにより連携した活動を行う場合。 注３）各集落協定から同一の外部団体又は同一の外部人材に同じ活動を委託する場合。
B42: ２－６．ネットワーク化の工程
B43: （工程の概略）
B44: 取組 | H44: R6以前 | I44: R7 | J44: R8 | K44: R9 | L44: R10 | M44: R11 | N44: R12以降
B45: ネットワーク化に向けた話合い（協定内） | I45: ○ | J45: ○
B46: ネットワーク化に向けた話合い（協定間） | I46: ○ | J46: ○
B47: ネットワーク化により連携して実施する活動の開始注） | H47: ⑧ | J47: ① | L47: ⑥
J48: ⑤ | L48: ⑦
B50: 協議会等の設置（協議会型の場合） | J50: ○
B51: ネットワーク化加算の適用（加算措置を利用する場合） | J51: ○ | K51: ○ | L51: ○ | M51: ○
B52: （２－２～２－５を踏まえたネットワーク化の進め方を記載） ・令和５年度から地域一帯で鳥獣防護柵を設置する作業をＢ集落と共同で実施（活動連携型）している。 ・同じ地域計画区域内にあり、協定廃止を検討していたＣ集落協定もネットワークに加え、令和８年度より協議会型へ移行し、事務局の一元化を行う。共同事務局の事務員は、元地域おこし協力隊の移住者を非常勤で雇用する。また、ネットワーク化加算を申請し、加算措置を利用してネットワークの中で中心的な農業者となる就農者の募集を開始する。Ｂ集落協定でソバを栽培している農業生産法人の活動範囲を広げ、Ａ集落協定及びＣ集落協定の農地においても栽培を開始する。ソバの加工・販売を目指して研修会へ参加するなど、技術習得を目指す。 ・令和９年度には、ネットワーク内の概ね６割の農地をＢ集落協定で活動していた農業生産法人に集約する。 ・令和10年度にネットワーク内に加工・販売部を結成し、ソバの加工・販売を始める。農業生産法人の新規雇用者を確保し、JAや地域外の農業生産法人の協力のもと、施設園芸の技術研修を行う。農業生産法人の新規雇用者を各集落協定の「主導的な役割を担う人材」に位置付ける。 ・令和11年度に補助事業を活用して農業用ハウスを１棟導入し、農業生産法人においてアスパラガスの栽培を始める。収穫等の人手が必要な作業は、協議会で話し合い、各集落協定から分担して人員を確保することとする。 ・令和12年度以降にネットワークの拡大や集落協定の統合を検討する。
B61: 注）工程の概略における「ネットワーク化により連携して実施する活動の開始」には２－４の「ネットワーク化により連携して実施する活動」の番号を記載。
B63: ２－７．ネットワーク化後の統合予定
B64: 該当 | D64: 統合の予定
D65: ①第６期対策期間中（令和７年度～令和11年度）での統合を検討する
B66: ○ | D66: ②第６期対策終了後の令和12年度以降での統合を検討する
D67: ③時期は未定だが将来的に統合を検討する
D68: ④未定
D69: ⑤統合は必要ないと考えている
D70: ⑥その他（ | K70: ）

Sheet 別紙２④（統合）
A2: ３．統合の計画
B3: 注１）統合をこれから行う場合は、統合を行おうとする他の集落協定のネットワーク化活動計画における統合の計画と整合がとれたものとすること。 注２）「新たに統合を行い10ha以上の集落協定を形成する集落協定」は、３－１～３－５を記載すること。「新たに統合を行う予定はないが、既に10ha以上の集落協定となっており、体制の維持、向上を図ろうとする集落協定」は、３－２、３－６、３－７を記載すること。
B5: ３－１．統合後の集落協定の名称（予定）
B6: 農林地域広域集落協定
B8: ３－２．統合に参加する集落協定
B9: 集落協定名 | F9: 協定面積 | H9: 地域計画
H10: 自協定が存する計画区域内 | J10: 別の計画区域内
B11: ="（自協定）"&はじめに!D5 -> （自協定）あいうえお集落協定 | C11: （自協定） | D11: （自協定） | E11: （自協定） | F11: =別紙１④!$C$63/10000 -> 3.8346
B12: Ｅ協定 | F12: 5.5 | H12: ○
B13: Ｆ協定 | F13: 8.7 | H13: ○
B15: 合計 | C15: 合計 | D15: 合計 | E15: 合計 | F15: =SUM(F11:G14) -> 18.0346
B16: 注１）合計協定面積は10ha以上であること。 注２）統合する予定がない場合は自協定のみ記載すること。
B18: ３－３．統合で解決しようとする課題
B19: 該当 | H19: 該当
D20: ①リーダーの人材不足 | J20: ⑤農作業機械や施設の不足
B21: ○ | D21: ②事務担当者の人材不足 | J21: ⑥知見や技術の不足
D22: ③共同取組活動参加者の不足 | H22: ○ | J22: ⑦その他（※内容は↓欄に記載ください）
B23: ○ | D23: ④農業の担い手の人材不足 | J23: 農作業機械の老朽化及びオペレーターの不足
B24: （該当する課題について詳細を記載） ①代表者が固定化されており、後継者の確保の目途が立っていない。 ③構成員には若手が２名いるが、その他の構成員は高齢であり、共同取組活動の作業負担が２名の若手の集中する傾向がある。 ⑦集落協定内の農業者が所有する農作業機械の老朽化が進んでいる。現在は農業者間の貸し借りでなんとかまかなっているが、今後故障する機械が増えれば、農作業機械の確保が困難になる。また、世代交代が行われた小規模農業者から作業委託のニーズが増えているが、農作業を受託できるオペレーターが減ってきている。
B25: 注）地域計画や集落マスタープラン、第５期対策で作成した集落戦略に位置付けられた内容を踏まえて検討すること。
B27: ３－４．統合により体制を強化したい活動
B28: 該当 | D28: 体制を強化したい活動 | H28: 該当 | J28: 体制を強化したい活動
B29: ○ | D29: ①リーダー等の人材確保 | J29: ⑦農業の担い手育成
D30: ②事務局機能の強化 | J30: ⑧地場農産物の加工・販売
B31: ○ | D31: ③農地保全（草刈り、荒廃防止活動等） | J31: ⑨鳥獣害対策
B32: ○ | D32: ④水路・農道等の維持管理 | H32: ○ | J32: ⑩多面的機能を増進する活動
B33: ○ | D33: ⑤機械・施設の共同利用 | H33: ○ | J33: ⑪その他（※内容は↓欄に記載ください）
D34: ⑥農作業の共同化 | J34: 農作業機械のオペレーターの確保
B36: ３－５．統合の工程
B37: （工程の概略）
B38: 取組 | H38: R6以前 | I38: R7 | J38: R8 | K38: R9 | L38: R10 | M38: R11 | N38: R12以降
B39: ①統合に向けた話合い（協定内） | I39: ○ | J39: ○
B40: ②統合に向けた話合い（協定間） | H40: ○ | I40: ○ | J40: ○
B41: ③統合 | J41: ○
B42: ④ネットワーク化加算の適用（加算措置を利用する場合） | K42: ○ | L42: ○ | M42: ○
B43: （３－２～３－４を踏まえた統合の進め方を記載） ・令和５年度から地域計画作成に向けた協議が開始されたことをきっかけに、周辺にあるＥ集落協定、Ｆ集落協定と統合に向けた意見交換を行ってきた。リーダーの人員不足や共同取組活動参加者の不足という共通の課題を抱えている。 ・令和７年度初旬の集落協定総会において、統合の方向性について承認が得られたため、令和７年度中にＥ集落協定、Ｆ集落協定と統合後の活動計画や個人配分、作業日当等のルールについて意見調整を行う。令和８年度初旬の総会において統合の承認をとり、令和８年度内の統合を目指す。 ・令和９年度よりネットワーク化加算を申請する。 ・統合後の協定では、集落協定の代表者を、旧集落協定による３年毎の輪番制とすることを検討する。 ・草刈等の作業が一部の構成員に集中しないように、旧集落協定間で人手を出し合う体制を構築するとともに、土地持ち非農家の参加も呼び掛けるようにする。 ・農作業機械については、協定内で引退する農家から農作業機械を集約し、機械共同利用組合を立ち上げる。ネットワーク化加算を利用して、共同利用する農作業機械の保管庫を整備する。Ｆ集落協定内のＵターン予定者を機械共同利用組合の管理者兼オペレーターに育成し、統合した集落協定の「主導的な役割を担う人材」に位置付ける。 ・統合後は、農村関係人口の拡大に向けた検討を進める。管理が十分行われていなかった梅や柿の収穫体験や、道の駅周辺での景観作物の栽培などの計画を検討する。また、当集落協定で行ってきた野鳥のための冬季水張りをＥ集落協定及びＦ集落協定のエリアにも広げる検討を行う。
B45: ３－６．役員の継承計画
B46: 役職名等 | D46: 氏名（現体制） | G46: 氏名（後任予定者） | J46: 継承予定時期
B47: 代表者 | D47: =別紙１④!K11 -> 丙川 三郎 | G47: 丙川 三郎 | J47: 令和 | K47: 10 | L47: 年度
B48: 書記担当 | D48: =別紙１④!K12 -> 丙川 三郎 | G48: 丁本 四郎 | J48: 令和 | K48: 12 | L48: 年度
B49: 会計担当 | D49: =別紙１④!K13 -> 乙山 次郎 | G49: 戊部 花子 | J49: 令和 | K49: 12 | L49: 年度
B50: 共同機械担当 | D50: =別紙１④!K14 -> 乙山 次郎 | G50: 己藤 五郎 | J50: 令和 | K50: 10 | L50: 年度
B51: 土地改良施設担当 | D51: =別紙１④!K15 -> 甲田 太郎 | G51: 丁本 四郎 | J51: 令和 | K51: 12 | L51: 年度
B52: 法面点検担当 | D52: =別紙１④!K16 -> 丙川 三郎 | G52: 戊部 花子 | J52: 令和 | K52: 10 | L52: 年度
B53: 注）「氏名（現体制）」は、本計画作成時点での役職者名を記載。「氏名（後任予定者）」は、現体制の担当者の次に担当となる人（予定）の氏名を記載。「氏名（現体制）」とは別の人を「氏名（後任予定者）」記載すること（同一人物の記載は不可）。
B55: ３－７．体制の維持・向上に向けた活動事項
B56: （役員の継承に向けた取組を記載） ・代表者の後任予定者は丙川三郎とし、令和10年度の継承予定時期まで書記担当として代表者の業務の補助を行いながら、徐々に代表者業務の習得を行う。 ・その他の役員については、代表者交代時期の令和10年度と対策期切り替わりの令和12年度に分けて段階的に交代を行うことで、役員業務の引継ぎを計画的に進めていく。 ・令和10年度より共同機械担当となる予定の己藤五郎は、令和９年度までにドローン操作の研修を受講を行うとともに、乙山次郎の指導のもと自走型草刈機の操作方法の習得を行う。
B57: （構成員や活動参加者の安定的な確保に向けた取組を記載） ・大型連休期間に共同取組活動による草刈作業を実施し、構成員の親族にも可能な限りの参加を呼び掛ける。また、作業実施後には収穫祭を実施し、構成員間の懇親を図る。 ・総会の際に構成員に対し、農地の相続予定者に中山間地域等直接支払の活動についても引継ぎ予定があることを伝えるよう周知する。 ・○○市と連携し、令和８年度から地域おこし協力隊制度を活用して地域内の農地保全に関わる人材の移住受け入れを目指す。 ・集落外に在住している農地所有者に対して、毎年、活動報告と合わせて共同取組活動の案内を送付することで、共同取組活動への参加を促す。 ・地元米の直販先に対して収穫等の体験活動への参加募集をかけることで関係人口拡大に取り組む。 ・市民農園を開設し非農業者との交流を深めるとともに、多面的機能の増進活動への参加を募集する。 ・一律の作業単価を見直し、傾斜が厳しい場所での作業等の負担が大きい作業については高い作業単価を設定するなど、共同取組活動に参加しやすくなる環境を整備する。また、令和７年度より適用を受けているスマート農業加算を利用して令和９年度にリモコン式自走草刈機を導入し、急傾斜地域での作業の省力化と安全な作業実施が可能となる環境を整備する。

Sheet 別紙２⑤（多様な組織等の参画）
A2: ４.多様な組織等の参画
B3: 注）４－１～４－３の全てを記載すること。
B5: ４－１．協定活動に参画する多様な組織等
B6: 注）（１）又は（２）の該当する項目を記載すること。
B7: （１）農業者団体以外の組織
B8: 参画方法 | F8: 組織名
B9: ①集落協定の構成員 | F9: Ｇ地域づくり協議会
F10: Ｈ子供会
F11: Ｉ土地改良区
F12: Ｊ農地保全会（多面的機能支払活動組織）
B13: ②別途協定等を締結 | F13: Ｋ大学
B17: 注１）「別途協定等を締結」とは集落協定の構成員とはならないが、協定の活動への参画に関する協定、覚書等を結ぶなど、連携関係を明確にすることをいう。 注２）②の場合は連携関係を証明する書類を添付すること。
B19: （２）非農業者
B20: 参画方法 | G20: 人数
B21: ①集落協定の構成員 | G21: =COUNTIF(別紙１③!I7:I500,"L") -> 2
B22: ②別途協定等を締結 | G22: 5
B23: 合計 | G23: =SUM(G21:J22) -> 7
B24: ③集落協定の全構成員数（集落協定の構成員数（農業者数＋①※組織数は含めない）に②を加えた人数） | L24: =COUNTIF(別紙１③!I7:I500,"A")+COUNTIF(別紙１③!I7:I500,"B")+COUNTIF(別紙１③!I7:I500,"L")+G22 -> 16
B25: ①＋②が③に占める割合 | E25: =ROUNDDOWN((G23/L24)*100,0) -> 43 | F25: ％ | G25: （小数点以下切り捨て）
B27: 注１）「別途協定等を締結」とは集落協定の構成員とはならないが、協定の活動への参画に関する協定、覚書等を結ぶなど、連携関係を明確にすることをいう。 注２）②の場合は連携関係を証明する書類を添付すること。 注３）協定活動に参画する組織の構成員は人数に含めない。
B29: ４－２．多様な組織等の参画で解決しようとする課題
B30: 該当 | H30: 該当
B31: ○ | D31: ①事務担当者の人材不足 | J31: ④知見や技術の不足
B32: ○ | D32: ②共同取組活動参加者の不足 | H32: ○ | J32: ⑤その他（※内容は↓欄に記載ください）
D33: ③農業作業の人材不足 | J33: 棚田の荒廃
B34: （該当する課題について詳細を記載） ①構成員は高齢者が多く、事務の引き受け手の確保が困難である。 ②③棚田の石積の草取りや補修は集落総出で行ってきてが、高齢者の参加が難しくなり、人手の確保が困難になってきている。また、高齢のために棚田での水稲作の継続が困難な農地が増えてきている。
B35: 注）地域計画や集落マスタープラン、第５期対策で作成した集落戦略に位置付けられた内容を踏まえて検討すること。
B37: ４－３．多様な組織等の参画により連携して実施する活動
B38: 該当 | D38: 連携して実施する活動 | H38: 該当 | J38: 連携して実施する活動
B39: ○ | D39: ①事務の適切な実施 | J39: ⑥鳥獣害対策
B40: ○ | D40: ②農地保全（草刈り、荒廃防止活動等） | H40: ○ | J40: ⑦多面的機能を増進する活動
D41: ③水路・農道等の維持管理 | H41: ○ | J41: ⑤その他（※内容は↓欄に記載ください）
B42: ○ | D42: ④農作業 | J42: 棚田資源を活かした振興活動
D43: ⑤地場農産物の加工・販売
B44: （連携して実施する活動の詳細について、今後の活動の維持、向上に向けた方向性も含めて記載） ・多面的機能支払交付金の事務支援も行っていた土地改良区が令和５年度より構成員に加わり、土地改良区が集落協定の事務を担当している。集落協定の対象農用地の一部は多面的機能支払の対象にもなっており、効率的な事務作業ができることから、今後も引き続き土地改良区が事務を担当する予定である。 ・Ｊ農地保全会では、令和８年度に草刈隊を結成する予定である。草刈隊が水路・農道の草刈を実施する際に、水路等の周辺にある集落協定の農地の法面の草刈も草刈隊と連携して行うことで、作業の効率化を図る。 ・県の棚田サポーター事業を利用し、毎年、５名程度の登録者に棚田の石積みの草刈や補修の作業を手伝ってもらっている。今後は、サポーター、構成員の非農家、子供会と連携し、棚田の法面に彼岸花を植えるなど、棚田の観光資源活用に取り組む予定である。 ・以前からＫ大学が当集落へフィールドワークに来ていた縁により、令和７年度にＫ大学、Ｇ地域づくり協議会、当集落協定の３者で棚田振興のための連携協定を締結した。令和７年度より、農作業が困難となっていた棚田において、Ｋ大学の教員や学生と連携し、田植えや収穫作業を始める予定である。大学との連絡調整や宿泊場所の手配はＧ地域づくり協議会が担当し、作業当日の作業方法の説明や必要な物品の準備は当集落協定が担当する。将来的には、Ｇ地域づくり協議会を中心に棚田を活かした農泊にも取り組みたいと考えており、Ｋ大学の教員や学生にも、構想検討に加わってもらいたいと考えている。 ・これらの取組の活性化を図るため、令和８年度までに指定棚田地域振興活動計画の認定を受け、令和９年度に棚田地域振興活動加算の申請を行う計画である。 ・持続的な取組を実現するため、Ｇ地域づくり協議会を中心とした農村ＲＭＯの形成も検討していく。

Sheet 実施状況報告（様式2）
A1: [001]協定識別コード | B1: [002]都道府県名 | C1: [003]市町村名 | D1: [004]地方公共団体コード | E1: [005]集落協定名 | F1: [006]協定整理番号 | G1: 協定識別コード重複確認セル | H1: [007]協定の所在地 | I1: [008]協定認定年度（交付開始年度） | J1: [010]複数の市町村にまたがる協定の事項 | K1: [012]協定参加者総計 | L1: [013]うち中核的リーダー | M1: [016]農業者（人） | N1: [017]農業法人数 | O1: [018]農業生産組織数 | P1: [019]土地改良区 | Q1: [020]水利組合 | R1: [021]非農業者（人） | S1: [022]その他 | T1: [023]協定参加者の年齢区分別計 | U1: [024]参加者_39歳以下 | V1: [025]参加者_40～44歳 | W1: [026]参加者_45～49歳 | X1: [027]参加者_50～54歳 | Y1: [028]参加者_55～59歳 | Z1: [029]参加者_60～64歳 | AA1: [030]参加者_65～69歳 | AB1: [031]参加者_70～74歳 | AC1: [032]参加者_75～79歳 | AD1: [033]参加者_80歳以上 | AE1: [034]地域区分 | AF1: [035]協定締結面積総計 | AG1: [036]田_面積計 | AH1: [037]田_急傾斜 | AI1: [038]田_緩傾斜 | AJ1: [039]田_高齢化・耕作放棄率 | AK1: [040]田_小区画不整形 | AL1: [041]田_特認基準 | AM1: [042]田_交付対象外 | AN1: [043]畑_面積計 | AO1: [044]畑_急傾斜 | AP1: [045]畑_緩傾斜 | AQ1: [046]畑_高齢化・耕作放棄率 | AR1: [047]畑_特認基準 | AS1: [048]畑_交付対象外（田畑混在） | AT1: [049]畑_交付対象外（田畑混在以外） | AU1: [050]草地_面積計 | AV1: [051]草地_急傾斜 | AW1: [052]草地_緩傾斜 | AX1: [053]草地_草地比率の高い草地 | AY1: [054]草地_高齢化・耕作放棄率 | AZ1: [055]草地_特認基準 | BA1: [056]草地_交付対象外（田草地混在） | BB1: [057]草地_交付対象外（田草地混在以外） | BC1: [058]採草放牧地_面積計 | BD1: [059]採草放牧地_急傾斜 | BE1: [060]採草放牧地_緩傾斜 | BF1: [061]採草放牧地_特認基準 | BG1: [062]採草放牧地_交付対象外（田採草放牧地混在） | BH1: [063]採草放牧地_交付対象外（田採草放牧地混在以外) | BI1: [064]通常地域_面積計 | BJ1: [065]通常地域_田_面積計 | BK1: [066]通常地域_田_急傾斜 | BL1: [067]通常地域_田_緩傾斜 | BM1: [068]通常地域_田_高齢化耕作放棄率 | BN1: [069]通常地域_田_小区画不整形 | BO1: [070]通常地域_田_特認基準 | BP1: [071]通常地域_田_交付対象外 | BQ1: [072]通常地域_畑_面積計 | BR1: [073]通常地域_畑_急傾斜 | BS1: [074]通常地域_畑_緩傾斜 | BT1: [075]通常地域_畑_高齢化耕作放棄率 | BU1: [076]通常地域_畑_特認基準 | BV1: [077]通常地域_畑_交付対象外（田畑混在） | BW1: [078]通常地域_畑_交付対象外（田畑混在以外） | BX1: [079]通常地域_草地_面積計 | BY1: [080]通常地域_草地_急傾斜 | BZ1: [081]通常地域_草地_緩傾斜 | CA1: [082]通常地域_草地_草地比率の高い草地 | CB1: [083]通常地域_草地_高齢化耕作放棄率 | CC1: [084]通常地域_草地_特認基準 | CD1: [085]通常地域_草地_交付対象外（田草地混在） | CE1: [086]通常地域_草地_交付対象外（田草地混在以外） | CF1: [087]通常地域_採草放牧地_面積計 | CG1: [088]通常地域_採草放牧地_急傾斜 | CH1: [089]通常地域_採草放牧地_緩傾斜 | CI1: [090]通常地域_採草放牧地_特認基準 | CJ1: [091]通常地域_採草放牧地_交付対象外（田採草混在） | CK1: [092]通常地域_採草放牧地_交付対象外（田採草混在以外） | CL1: [093]特認地域_基準区分 | CM1: [094]特認地域_面積計 | CN1: [095]特認地域_田_面積計 | CO1: [096]特認地域_田_急傾斜 | CP1: [097]特認地域_田_緩傾斜 | CQ1: [098]特認地域_田_高齢化耕作放棄率 | CR1: [099]特認地域_田_小区画不整形 | CS1: [100]特認地域_田_特認基準 | CT1: [101]特認地域_田_交付対象外 | CU1: [102]特認地域_畑_面積計 | CV1: [103]特認地域_畑_急傾斜 | CW1: [104]特認地域_畑_緩傾斜 | CX1: [105]特認地域_畑_高齢化耕作放棄率 | CY1: [106]特認地域_畑_特認基準 | CZ1: [107]特認地域_畑_交付対象外（田畑混在） | DA1: [108]特認地域_畑_（田畑混在地以外） | DB1: [109]特認地域_草地_面積計 | DC1: [110]特認地域_草地_急傾斜 | DD1: [111]特認地域_草地_緩傾斜 | DE1: [112]特認地域_草地_草地比率の高い草地 | DF1: [113]特認地域_草地_高齢化耕作放棄率 | DG1: [114]特認地域_草地_特認基準 | DH1: [115]特認地域_草地_交付対象外（田草地混在） | DI1: [116]特認地域_草地_交付対象外（田草地混在以外） | DJ1: [117]特認地域_採草放牧地_面積計 | DK1: [118]特認地域_採草放牧地_急傾斜 | DL1: [119]特認地域_採草放牧地_緩傾斜 | DM1: [120]特認地域_採草放牧地_特認基準 | DN1: [121]特認地域_採草放牧地_交付対象外（田採草混在地） | DO1: [122]特認地域_採草放牧地_交付対象外（田採草混在地以外） | DP1: [123]本体交付金交付額 | DQ1: [124]うち国費 | DR1: [125]協定農用地の一部除外_面積計 | DS1: [126]協定農用地の一部除外_耕作未実施_計 | DT1: [127]協定農用地の一部除外_耕作未実施_耕作放棄 | DU1: [128]協定農用地の一部除外_耕作未実施_転用 | DV1: [131]協定農用地の一部除外_耕作未実施_その他 | DW1: [132]協定農用地の一部除外_耕作未実施_その他の内容 | DX1: [133]協定農用地の一部除外_復旧未実施 | DY1: [134]協定農用地の一部除外_死亡・病気・高齢 | DZ1: [135]協定農用地の一部除外_自然災害 | EA1: [136]協定農用地の一部除外_土地収用 | EB1: [137]協定農用地の一部除外_農業用施設 | EC1: [144]復旧_既荒廃農地 | ED1: [145]復旧_既荒廃農地_うち復旧済面積 | EE1: [146]復旧_既荒廃農地_田 | EF1: [147]復旧_既荒廃農地_畑 | EG1: [148]復旧_既荒廃農地_草地 | EH1: [149]復旧_自然災害 | EI1: [150]復旧_自然災害_うち復旧済面積 | EJ1: [151]協定に含めない管理すべき荒廃農地の管理面積 | EK1: [152]棚田加算_取組状況 | EL1: [153]棚田加算_加算面積_計 | EM1: [154]棚田加算_加算面積_田 | EN1: [155]棚田加算_加算面積_畑 | EO1: [156]棚田加算_加算金額 | EP1: [157]棚田加算_うち国費 | EQ1: [158]超急傾斜地棚田加算_取組状況 | ER1: [159]超急傾斜地棚田加算_加算面積_計 | ES1: [160]超急傾斜地棚田加算_加算面積_田 | ET1: [161]超急傾斜地棚田加算_加算面積_畑 | EU1: [162]超急傾斜地棚田加算_加算金額 | EV1: [163]超急傾斜地棚田加算_うち国費 | EW1: [164]棚田加算_目標_棚田等の保全 | EX1: [165]棚田加算_目標_棚田等の保全_目標年度 | EY1: [166]棚田加算_目標_棚田等の保全_達成状況 | EZ1: [167]棚田加算_目標_多面的機能の維持発揮 | FA1: [168]棚田加算_目標_多面的機能の維持発揮_目標年度 | FB1: [169]棚田加算_目標_多面的機能の維持発揮_達成状況 | FC1: [170]棚田加算_目標_棚田地域の振興 | FD1: [171]棚田加算_目標_棚田地域の振興_目標年度 | FE1: [172]棚田加算_目標_棚田地域の振興_達成状況 | FF1: [173]超急傾加算_取組状況 | FG1: [174]超急傾加算_加算面積_計 | FH1: [175]超急傾加算_加算面積_田 | FI1: [176]超急傾加算_加算面積_畑 | FJ1: [177]超急傾加算_加算金額 | FK1: [178]超急傾加算_うち国費 | FL1: [179]超急傾加算_目標_保全_法面の維持・補修 | FM1: [180]超急傾加算_目標_保全_耕作道、ほ場進入路等の維持 | FN1: [181]超急傾加算_目標_保全_作業足場の設置、ほ場進入路の改良等 | FO1: [182]超急傾加算_目標_保全_土壌流入、土壌流出の防止 | FP1: [183]超急傾加算_目標_保全_農薬散布等の施設の整備 | FQ1: [184]超急傾加算_目標_保全_共同防除体制の構築 | FR1: [185]超急傾加算_目標_保全_鳥獣害防止施設の維持 | FS1: [186]超急傾加算_目標_保全_鳥獣害防止施設の設置 | FT1: [187]超急傾加算_目標_保全_その他 | FU1: [188]超急傾加算_目標_保全_その他の内容 | FV1: [189]超急傾加算_目標_販売_共通パッケージの作成 | FW1: [190]超急傾加算_目標_販売_パンフレットの作成 | FX1: [191]超急傾加算_目標_販売_農産物の加工 | FY1: [192]超急傾加算_目標_販売_直売所等での販売 | FZ1: [193]超急傾加算_目標_販売_ブランド化 | GA1: [194]超急傾加算_目標_販売_景観作物の植栽 | GB1: [195]超急傾加算_目標_販売_環境に配慮した農業 | GC1: [196]超急傾加算_目標_販売_都市住民との交流 | GD1: [197]超急傾加算_目標_販売_施設の設置・運営 | GE1: [198]超急傾加算_目標_販売_棚田オーナー制度 | GF1: [199]超急傾加算_目標_販売_その他 | GG1: [200]超急傾加算_目標_販売_その他の内容 | GH1: [201]ネットワーク化加算_取組状況 | GI1: [202]ネットワーク化加算_加算面積計 | GJ1: [203]ネットワーク化加算_加算金額 | GK1: [204]ネットワーク化加算_うち国費 | GL1: [205]ネットワーク化加算_ネットワーク化集落数 | GM1: [206]ネットワーク化加算_統合集落数 | GN1: [207]ネットワーク化加算_人材確保数 | GO1: [208]ネットワーク化加算_集落内からの人材確保数 | GP1: [209]ネットワーク化加算_集落外からの人材確保数 | GQ1: [210]ネットワーク化加算_確保された人材が担う地域活動数 | GR1: [211]ネットワーク化加算_確保された人材が担う地域活動_集落協定組織の活動 | GS1: [212]ネットワーク化加算_確保された人材が担う地域活動_農業生産組織の活動 | GT1: [213]ネットワーク化加算_確保された人材が担う地域活動_加工・販売組織の活動 | GU1: [214]ネットワーク化加算_目標 | GV1: [215]ネットワーク加算_目標_目標年度 | GW1: [216]ネットワーク化加算_目標_達成状況 | GX1: [217]スマート農業加算_取組状況 | GY1: [218]スマート農業加算_加算面積計 | GZ1: [219]スマート農業加算_加算金額 | HA1: [220]スマート農業加算_うち国費 | HB1: [221]スマート農業加算_目標 | HC1: [222]スマート農業加算_目標年度 | HD1: [223]スマート農業加算_達成状況 | HE1: [224]集落機能強化加算の経過措置_取組状況 | HF1: [225]集落機能強化加算の経過措置_加算面積計 | HG1: [226]集落機能強化加算の経過措置_加算金額 | HH1: [227]集落機能強化加算の経過措置_うち国費 | HI1: [228]集落機能強化加算の経過措置_目標 | HJ1: [229]集落機能強化加算の経過措置_目標年度 | HK1: [230]集落機能強化加算の経過措置_達成状況 | HL1: [231]体制整備単価 | HM1: [232]基礎単価 | HN1: [233]交付金額（円） | HO1: [234]交付金額_うち国費 | HP1: [235]共同取組活動充当額 | HQ1: [236]共同取組活動充当割合 | HR1: [237]個人配分額 | HS1: [238]前年度末積立等残高 | HT1: [239]今年度交付額＋前年度末積立等残高 | HU1: [240]個人配分支出総額 | HV1: [241]共同取組活動支出総額 | HW1: [242]役員報酬 | HX1: [243]研修会費 | HY1: [244]道水路管理費 | HZ1: [245]農地管理費 | IA1: [246]鳥獣害防止対策費 | IB1: [247]共同利用機械購入等費 | IC1: [248]共同利用施設整備等費 | ID1: [249]多面的機能増進活動費 | IE1: [250]土地利用調整関係費 | IF1: [251]法人設立関係費 | IG1: [252]農産物等販売促進費 | IH1: [253]都市農村交流促進関係費 | II1: [254]その他 | IJ1: [255]積立等_計 | IK1: [256]繰越 | IL1: [257]耕作放棄防止活動（項目数） | IM1: [258]多面的機能支払交付金と同一施設 | IN1: [259]賃借権設定・農作業の委託 | IO1: [260]既荒廃農地復旧、林地化、畜産利用 | IP1: [261]既荒廃農用地の保全管理 | IQ1: ［262］農地の法面管理 | IR1: [263]柵、ネットの設置等鳥獣被害防止 | IS1: [265]簡易な基盤整備 | IT1: [266]担い手の確保 | IU1: [267]地場農産物の加工・販売 | IV1: [268]その他 | IW1: [269]道・水路等の管理活動（項目数） | IX1: [270]水路の管理 | IY1: [271]農道の管理 | IZ1: [272]その他の施設の管理 | JA1: [273]多面的機能の維持・増進活動（項目数） | JB1: [274]周辺林地の下草刈 | JC1: [275]土壌流亡に配慮した営農 | JD1: [277]市民農園等の開設・運営 | JE1: [278]体験民宿（グリーン・ツーリズム） | JF1: [279]景観作物の作付け | JG1: [280]魚類・昆虫類の保護 | JH1: [281]鳥類の餌場の確保 | JI1: [282]粗放的畜産 | JJ1: [283]堆きゅう肥施肥、拮抗作物利用、合鴨・鯉利用、輪作徹底、緑肥作付 | JK1: [284]その他活動 | JL1: [285]集落マスタープラン目指すべき将来像のチェック | JM1: [286]将来にわたり農業生産活動等が可能となる集落内の実施体制構築 | JN1: [287]協定の担い手となる新たな人材の育成・確保 | JO1: [288]協定参加者それぞれが、作物生産、加工・直売等様々な工夫により再生可能な所得を確保 | JP1: [289]その他 | JQ1: [290]その他の内容 | JR1: [291]活動方策のチェック | JS1: [292]機械・農作業の共同化等営農組織の育成 | JT1: [293]高付加価値型農業 | JU1: [294]農業生産条件の強化 | JV1: [295]担い手への農地集積 | JW1: [296]担い手への農作業の委託 | JX1: [297]新規就農者等による農業生産 | JY1: [298]地場産農産物等の加工・販売 | JZ1: [299]消費・出資の呼び込み | KA1: [300]共同で支え合う集団的かつ持続的な体制整備 | KB1: [301]その他 | KC1: [302]その他の内容 | KD1: [303]ネットワーク化活動計画の作成状況 | KE1: [304]体制整備単価取組_ネットワーク化 | KF1: [305]体制整備単価取組_統合 | KG1: [306]体制整備単価取組_多様な組織の参画 | KH1: [302]協定農用地の将来像の合計 | KI1: [303]管理者が引き続き耕作 | KJ1: [304]後継者が耕作を継承 | KK1: [305]担い手等に引き受けてもらう（受け手が決まっている） | KL1: [306]担い手等に引き受けてもらうことを希望（受け手が決まっていない） | KM1: [307]中間管理機構への貸し付けを希望 | KN1: [308]草刈り等管理のみ | KO1: [309]その他 | KP1: [310]協定農用地の将来像を踏まえた集落の現状_該当事項の合計 | KQ1: [311]担い手が確保できており、耕作を継続 | KR1: [312]担い手が確保できているが、全ての委託希望は受けられない | KS1: [313]担い手が確保できていない | KT1: [314]耕作を継続したいが、耕作条件の悪い農地がある | KU1: [315]耕作を継続したいが、農業所得が低い | KV1: [316]耕作を継続したいが、法面や水路・農道等の管理が過重な負担となっている | KW1: [317]鳥獣被害が深刻であり、耕作意欲が減退している | KX1: [318]集落の自治（コミュニティ）機能が低下しており、生活に支障・不安が生じている | LB1: [319]その他 | LC1: [320]その他の内容 | LD1: [321]集落の現状を踏まえた対応の方向性_該当事項の合計 | LE1: [322]耕作放棄の懸念はなく、集落の課題もないことから、対策は不要 | LF1: [323]協定内で担い手を育成・確保 | LG1: [324]協定外で担い手を確保 | LH1: [325]基盤整備等により耕作条件を改善 | LI1: [326]農産物の高付加価値化により所得の向上を図る | LJ1: [327]新たな作物の導入により所得の向上を図る | LK1: [328]省力化技術の導入や外注化等により労働負担の軽減を図る | LL1: [329]耕作継続が困難な農用地の林地化 | LM1: [330]放牧利用による農用地の管理 | LN1: [331]鳥獣被害防止対策の実施 | LO1: [332]集落の自治（コミュニティ）機能の強化 | LP1: [333]その他 | LQ1: [334]その他の内容 | LR1: [335]具体的な対策に向けた検討_該当事項の合計 | LS1: [336]特に懸念はなく、協定参加者で実施していく | LT1: [337]協定参加者だけでは検討が困難であり外部（県・市町村含む）からの助力を得たい | LU1: [338]他の協定との広域化を考えたい | LV1: [339]中山間地域等直接支払交付金の加算措置を活用したい | LW1: [340]対策に活用可能な補助事業等を紹介して欲しい | LX1: [341]その他 | LY1: [342]その他の内容 | LZ1: [343]農業生産活動等の継続のための支援体制_該当事項の合計 | MA1: [344]農地所有適格法人が支援する | MB1: [345]JAが支援する | MC1: [346]集落営農組織が支援する | MD1: [347]農業者が支援する | ME1: [348]協定参加者で役割分担しつつ、農用地の維持管理を行う | MF1: [349]その他 | MG1: [350]その他の内容 | MH1: [351]備考欄 | MN1: [326]農産物の高付加価値化により所得の向上を図る
A2: =SUBTOTAL(2,A15:A3562) -> 0 | H2: =SUBTOTAL(3,H15:H15) -> 1 | I2: =SUBTOTAL(2,I15:I3551) -> 1 | J2: =SUBTOTAL(2,J15:J3551) -> 0 | K2: =SUBTOTAL(9,K15:K15) -> 22 | L2: 4 | M2: 9 | N2: 3 | O2: 4 | P2: 1 | Q2: 1 | R2: 2 | S2: 2 | T2: =SUBTOTAL(9,T15:T15) -> 10 | U2: =SUBTOTAL(9,U15:U15) -> 1 | V2: 2 | W2: 1 | X2: 1 | Y2: 0 | Z2: 2 | AA2: 2 | AB2: 0 | AC2: 1 | AD2: 0 | AF2: =SUBTOTAL(9,AF15:AF3551) -> 38346 | AG2: 20714 | AH2: 16569 | AI2: 0 | AJ2: 1403 | AK2: 1515 | AL2: 813 | AM2: 414 | AN2: 12468 | AO2: 1840 | AP2: 4925 | AQ2: 869 | AR2: 2034 | AS2: 1153 | AT2: 1647 | AU2: 4014 | AV2: 3144 | AW2: 120 | AX2: 140 | AY2: 130 | AZ2: 150 | BA2: 170 | BB2: 160 | BC2: 1150 | BD2: 430 | BE2: 0 | BF2: 230 | BG2: 240 | BH2: 250 | BI2: 27482 | BJ2: 16268 | BK2: 14014 | BL2: 0 | BM2: =SUBTOTAL(9,BM15:BM3551) -> 491 | BN2: 536 | BO2: 813 | BP2: 414 | BQ2: =SUBTOTAL(9,BQ15:BQ3551) -> 8180 | BR2: =SUBTOTAL(9,BR15:BR3551) -> 1840 | BS2: 1233 | BT2: 869 | BU2: 1477 | BV2: 1114 | BW2: 1647 | BX2: 3034 | BY2: 3034 | BZ2: 0 | CA2: 0 | CB2: 0 | CC2: 0 | CD2: 0 | CE2: 0 | CF2: 0 | CG2: 0 | CH2: 0 | CI2: 0 | CJ2: 0 | CK2: 0 | CL2: 0 | CM2: 10864 | CN2: 4446 | CO2: 2555 | CP2: 0 | CQ2: 912 | CR2: =SUBTOTAL(9,CR15:CR3551) -> 979 | CS2: 0 | CT2: 0 | CU2: 4288 | CV2: 0 | CW2: 3692 | CX2: 0 | CY2: 557 | CZ2: 39 | DA2: 0 | DB2: 980 | DC2: 110 | DD2: 120 | DE2: 140 | DF2: 130 | DG2: 150 | DH2: 170 | DI2: 160 | DJ2: 1150 | DK2: 430 | DL2: 0 | DM2: 230 | DN2: 240 | DO2: 250 | DP2: 369019 | DQ2: 0 | DR2: 0 | DS2: 0 | DT2: 0 | DU2: 0 | DV2: 0 | DW2: =SUBTOTAL(3,DW15:DW3551) -> 0 | DX2: =SUBTOTAL(9,DX15:DX3551) -> 0 | DY2: 0 | DZ2: 0 | EA2: 0 | EB2: 0 | EC2: 0 | ED2: 0 | EE2: 0 | EF2: 0 | EG2: 0 | EH2: 0 | EI2: 0 | EJ2: 0 | EK2: 1 | EL2: 2140 | EM2: 907 | EN2: 1233 | EO2: 21400 | EP2: 0 | EQ2: =SUBTOTAL(9,EQ15:EQ3551) -> 0 | ER2: =SUBTOTAL(9,ER15:ER3551) -> 0 | ES2: =SUBTOTAL(9,ES15:ES3551) -> 0 | ET2: 0 | EU2: 0 | EV2: 0 | EW2: =SUBTOTAL(3,EW15:EW3551) -> 1 | EX2: 1 | EY2: 0 | EZ2: 1 | FA2: 1 | FB2: 0 | FC2: 1 | FD2: 1 | FE2: 0 | FF2: =SUBTOTAL(9,FF15:FF3551) -> 1 | FG2: 738 | FH2: 738 | FI2: 0 | FJ2: 4428 | FK2: 0 | FL2: 0 | FM2: 0 | FN2: 0 | FO2: 0 | FP2: 0 | FQ2: 0 | FR2: 0 | FS2: 0 | FT2: 0 | FU2: =SUBTOTAL(3,FU15:FU3551) -> 0 | FV2: =SUBTOTAL(9,FV15:FV3551) -> 0 | FW2: 0 | FX2: 0 | FY2: 0 | FZ2: 0 | GA2: 0 | GB2: 0 | GC2: 0 | GD2: 0 | GE2: 0 | GF2: 0 | GG2: =SUBTOTAL(3,GG15:GG3551) -> 0 | GH2: =SUBTOTAL(9,GH15:GH3551) -> 0 | GI2: 0 | GJ2: 0 | GK2: 0 | GL2: =SUBTOTAL(9,GL15:GL3551) -> 2 | GM2: 0 | GN2: 0 | GO2: 0 | GP2: 0 | GQ2: 0 | GR2: 0 | GS2: 0 | GT2: 0 | GU2: =SUBTOTAL(3,GU15:GU3551) -> 1 | GV2: =SUBTOTAL(3,GV15:GV3551) -> 1 | GW2: =SUBTOTAL(3,GW15:GW3551) -> 0 | GX2: =SUBTOTAL(9,GX15:GX3551) -> 0 | GY2: =SUBTOTAL(9,GY15:GY3551) -> 0 | GZ2: =SUBTOTAL(9,GZ15:GZ3551) -> 0 | HA2: =SUBTOTAL(9,HA15:HA3551) -> 0 | HB2: =SUBTOTAL(3,HB15:HB3551) -> 1 | HC2: =SUBTOTAL(3,HC15:HC3551) -> 1 | HD2: =SUBTOTAL(3,HD15:HD3551) -> 0 | HE2: =SUBTOTAL(9,HE15:HE3551) -> 1 | HF2: =SUBTOTAL(9,HF15:HF3551) -> 5000 | HG2: =SUBTOTAL(9,HG15:HG3551) -> 0 | HH2: =SUBTOTAL(9,HH15:HH3551) -> 0 | HI2: =SUBTOTAL(3,HI15:HI3551) -> 1 | HJ2: =SUBTOTAL(3,HJ15:HJ3551) -> 1 | HK2: =SUBTOTAL(3,HK15:HK3551) -> 0 | HL2: =SUBTOTAL(9,HL15:HL3551) -> 0 | HM2: =SUBTOTAL(9,HM15:HM246551) -> 0 | HN2: =SUBTOTAL(9,HN15:HN246551) -> 394847 | HO2: =SUBTOTAL(9,HO15:HO246551) -> 0 | HP2: =SUBTOTAL(9,HP15:HP246551) -> 194847 | HQ2: =HP2/HN2 -> 0.4934746877 | HR2: =SUBTOTAL(9,HR15:HR3551) -> 200000 | HS2: 0 | HT2: 394847 | HU2: 0 | HV2: 4000000 | HW2: 300000 | HX2: 30000 | HY2: 1000000 | HZ2: 800000 | IA2: 500000 | IB2: 500000 | IC2: 600000 | ID2: 30000 | IE2: 20000 | IF2: 100000 | IG2: 20000 | IH2: 100000 | II2: 0 | IJ2: 0 | IK2: 0 | IL2: =COUNTIF(IL15:IL3551,">0") -> 1 | IM2: =SUBTOTAL(9,IM15:IM3551) -> 1 | IN2: 1 | IO2: 0 | IP2: 0 | IQ2: 0 | IR2: 0 | IS2: 0 | IT2: 0 | IU2: 0 | IV2: 0 | IW2: =COUNTIF(IW15:IW3551,">0") -> 1 | IX2: =SUBTOTAL(9,IX15:IX3551) -> 1 | IY2: =SUBTOTAL(9,IY15:IY3551) -> 1 | IZ2: =SUBTOTAL(9,IZ15:IZ3551) -> 1 | JA2: =COUNTIF(JA15:JA3551,">0") -> 1 | JB2: =SUBTOTAL(9,JB15:JB3551) -> 1 | JC2: 0 | JD2: 0 | JE2: 1 | JF2: 0 | JG2: 0 | JH2: 1 | JI2: 0 | JJ2: 1 | JK2: 0 | JL2: =COUNTIF(JL15:JL3551,">0") -> 1 | JM2: =SUBTOTAL(9,JM15:JM3551) -> 1 | JN2: =SUBTOTAL(9,JN15:JN3551) -> 1 | JO2: =SUBTOTAL(9,JO15:JO3551) -> 0 | JP2: =SUBTOTAL(9,JP15:JP3551) -> 0 | JQ2: =SUBTOTAL(9,JQ15:JQ3551) -> 0 | JR2: =COUNTIF(JR15:JR3551,">0") -> 1 | JS2: =SUBTOTAL(9,JS15:JS3551) -> 1 | JT2: 0 | JU2: 0 | JV2: 0 | JW2: 0 | JX2: 0 | JY2: 0 | JZ2: 1 | KA2: 0 | KB2: 0 | KC2: =SUBTOTAL(3,KC15:KC3551) -> 1 | KD2: =COUNTIF(KD15:KD3551,">0") -> 0 | KE2: =COUNTIF(KE15:KE3551,">0") -> 1 | KF2: =COUNTIF(KF15:KF3551,">0") -> 1 | KG2: =COUNTIF(KG15:KG3551,">0") -> 1 | KH2: =SUBTOTAL(9,KH15:KH3551) -> 0 | KI2: 3 | KJ2: 20.7346 | KK2: 1 | KL2: 1 | KM2: 0 | KN2: 1 | KO2: 0 | KP2: 1 | KQ2: =SUBTOTAL(9,KQ15:KQ3551) -> 0 | KR2: =SUBTOTAL(3,KR15:KR3551) -> 1 | KS2: 1 | KT2: 0 | KU2: 0 | KV2: 0 | KW2: 1 | KX2: 1 | LB2: 0 | LC2: =SUBTOTAL(3,LC15:LC3551) -> 1 | LD2: =SUBTOTAL(9,LD15:LD3551) -> 1 | LE2: 1 | LF2: 0 | LG2: 0 | LH2: =SUBTOTAL(9,LH15:LH3551) -> 0 | LI2: 0 | LJ2: 0 | LK2: 1 | LL2: 0 | LM2: 0 | LN2: 0 | LO2: 0 | LP2: 0 | LQ2: =SUBTOTAL(3,LQ15:LQ3551) -> 1 | LR2: =SUBTOTAL(9,LR15:LR3551) -> 3 | LS2: 18.0346 | LT2: 0 | LU2: 1 | LV2: 0 | LW2: 1 | LX2: 0 | LY2: =SUBTOTAL(3,LY15:LY3551) -> 1 | LZ2: =SUBTOTAL(9,LZ15:LZ3551) -> 1 | MA2: 0 | MB2: 1 | MC2: 0 | MD2: 1 | ME2: 1 | MF2: 1 | MG2: =SUBTOTAL(3,MG15:MG3551) -> 1 | MH2: =SUBTOTAL(3,MH15:MH3551) -> 1 | MN2: =SUBTOTAL(9,MN15:MN3551) -> 0
A4: ①協定識別事項 | K4: ②協定参加者 | AE4: ③協定締結面積 | EK4: ④加算措置（加算面積、加算金額） | HL4: ⑤交付金額 | IL4: ⑥活動内容（全協定共通） | KD4: ⑦活動内容（体制整備単価） | OB4: 備考欄
A5: 協定識別コード | B5: 都道府県名 | C5: 市町村名 | D5: 地方公共団体コード | E5: 個別協定名 | G5: 協定識別コード重複確認セル | H5: 協定の所在地 | I5: 協定認定年度（交付開始年度） | J5: 複数の市町村にまたがる協定の事項 | K5: 協定参加者総計 | AE5: 地域区分 | AF5: 協定締結面積総計 | AG5: 通常・特認地域別、地目別及び交付基準別協定締結面積 | DP5: 本体交付金交付額（円） | DR5: 協定農用地の一部を除外した場合の理由、面積 | EC5: 協定締結面積［50］うち既荒廃農地の復旧面積 | EH5: 協定締結面積［50］うち自然災害を受けている農用地の復旧面積 | EJ5: 協定に含めない管理すべき荒廃農地の管理面積 | EK5: Ⅰ 棚田地域振興活動加算 | FF5: Ⅱ 超急傾斜農地保全管理加算 | GH5: Ⅲ ネットワーク化加算 | GX5: Ⅳ スマート農業加算 | HE5: Ⅴ 集落機能強化加算の経過措置 | HL5: 交付単価区分 | HN5: 交付金額（円） | HR5: 個人配分額（円） | HS5: 交付金の使途 | IL5: 農業生産活動等として取り組むべき事項 | JL5: 集落マスタープラン | KD5: 農業生産活動等の体制整備として取り組むべき事項
F6: 協定整理 番号 | M6: 農業者（人） | N6: 農業法人数 | O6: 農業生産組織数 | P6: 土地改良区 | Q6: 水利組合 | R6: 非農業者（人） | S6: その他 | T6: 協定参加者の年齢区分別計 | U6: 39歳以下 | V6: 40～44歳 | W6: 45～49歳 | X6: 50～54歳 | Y6: 55～59歳 | Z6: 60～64歳 | AA6: 65～69歳 | AB6: 70～74歳 | AC6: 75～79歳 | AD6: 80歳以上 | AG6: 通常地域+特認地域 | DQ6: うち国費（円） | DR6: 協定農用地の一部除外面積の合計 | DS6: 交付金の返還を伴うもの | DY6: 交付金の返還が免責されるもの | EQ6: （超急傾斜地棚田加算）（田1/10以上、畑20度以上） | HO6: うち国費 | HP6: 共同取組活動充当額（円） | HS6: 前年度末積立等残額（円） | HT6: 今年度交付額と前年度末積立等残高の計（円） | HU6: 個人配分支出総額（円） | HV6: 共同取組活動支出総額（円） | HW6: 役員報酬 | HX6: 研修会等費 | HY6: 道・水路管理費 | HZ6: 農地管理費 | IA6: 鳥獣被害防止対策費 | IB6: 共同利用機械購入等費 | IC6: 共同利用施設整備等費 | ID6: 多面的機能増進活動費 | IE6: 土地利用調整関係費 | IF6: 法人設立関係費 | IG6: 農産物等の販売促進関係費 | IH6: 都市住民との交流促進関係費 | II6: その他 | IJ6: 積立等計 | IL6: Ⅰ必須事項（農業生産活動等） | JA6: Ⅱ選択的必須事項（多面的機能を増進する活動） | JL6: 目指すべき将来像のチェック | JM6: 目指すべき将来像 | JR6: 活動方策のチェック | JS6: 将来像を実現するための活動方策 | KD6: ネットワーク化活動計画の作成状況 | KE6: 1-3.体制整備のために行おうとする取組 | KH6: 2.ネットワーク化の計画 | LQ6: 3.統合の計画 | MO6: 4.多様な組織の参画
L7: うち 中核的リーダー（人） | AG7: 田面積計 | AN7: 畑面積計 | AU7: 草地面積計 | BC7: 採草放牧地面積計 | BI7: 通常地域 | CL7: 特認地域 | EC7: 既荒廃農地の復旧面積計 | EH7: 自然災害を受けている農用地の復旧面積計 | EK7: 取組状況 （実施している場合：1） | EL7: 加算面積 | EO7: 加算金額（円） | EQ7: 取組状況 （実施している場合：1） | ER7: 加算面積 | EU7: 加算金額（円） | EW7: 棚田等の保全 | EZ7: 棚田等の保全を通じた多面にわたる機能の維持・発揮 | FC7: 棚田を核とした棚田地域の振興 | FF7: 取組状況 （実施している場合：1） | FG7: 加算面積計 | FJ7: 加算金額 | FL7: 超急傾斜農地の保全 | FV7: 超急傾斜農地で生産される農産物の販売促進等 | GH7: 取組状況 （実施している場合：1） | GI7: 加算面積計 | GJ7: 加算金額 | GL7: ネットワーク化する集落協定数 | GM7: 統合する集落協定数 | GN7: 人材確保者数 | GQ7: 確保された人材が担う地域活動 | GU7: ネットワーク化・統合等により実現する農業生産活動等の継続のための取組 | GX7: 取組状況 （実施している場合：1） | GY7: 加算面積計 | GZ7: 加算金額 | HB7: スマート農業による作業の省力化・効率化を図る取組 | HE7: 取組状況 （実施している場合：1） | HF7: 加算面積計 | HG7: 加算金額 | HI7: 新たな人材の確保に関する取組又は集落機能を強化する取組 | HL7: 体制整備単価 | HM7: 基礎 単価 | HQ7: 共同取組活動充当割合（％） | IK7: うち繰越 | IL7: １ 耕作放棄の防止等の活動 | IW7: 適正な道・水路等の管理活動（項目数） | IX7: ２ 水路、農道等の管理活動 | JA7: 適正な多面的機能の維持・増進活動（項目数） | JB7: ① 周辺林地の下草刈 | JC7: ② 棚田オーナー制度、市民農園等の開設・運営 | JD7: ③ 景観作物の作付け | JE7: ④土壌流亡に配慮した営農 | JF7: ⑤ 体験民宿（グリーン・ツーリズム） | JG7: ⑥ 魚類・昆虫類の保護 | JH7: ⑦ 鳥類の餌場の確保 | JI7: ⑧ 粗放的畜産 | JJ7: ⑨ 堆きゅう肥の施肥、拮抗作物の利用、合鴨・鯉の利用、輪作の徹底、緑肥作物の作付 | JK7: ⑩ その他活動 | JM7: ① 将来にわたり農業生産活動等が可能となる集落内の実施体制構築 | JN7: ② 協定の担い手となる新たな人材の育成・確保 | JO7: ③ 協定参加者それぞれが、作物生産、加工・直売等様々な工夫により再生可能な所得を確保 | JP7: ④ その他 | JS7: ① 機械・農作業の共同化等営農組織の育成 | JT7: ② 高付加価値型農業 | JU7: ③ 農業生産条件の強化 | JV7: ④ 担い手への農地集積 | JW7: ⑤ 担い手への農作業の委託 | JX7: ⑥ 新規就農者等による農業生産 | JY7: ⑦ 地場産農産物等の加工・販売 | JZ7: ⑧ 消費・出資の呼び込み | KA7: ⑨ 共同で支え合う集団的かつ持続的な体制整備 | KB7: ⑩ その他 | KD7: 「1」：集落協定においてネットワーク化活動計画を作成中 「2」：ネットワーク化活動計画を市町村に提出済み | KE7: ①ネットワーク化 | KF7: ②統合 | KG7: ③多様な組織の参画 | KH7: ネットワークの名称（予定） | KI7: ネットワーク化に参加する集落協定 | KK7: ネットワーク化で解決しようとする課題 | KS7: ネットワーク化により連携して実施する活動 | LD7: 連携方法 | LI7: 工程 | LJ7: ネットワーク化後の統合予定 | LQ7: 統合後の集落協定の名称（予定） | LR7: 統合に参加する集落協定 | LT7: 統合で解決しようとする課題 | MB7: 統合により体制を強化したい活動 | MN7: 工程 | MO7: 農業者団体以外の組織 | NJ7: 非農業者 | NM7: 多様な組織等の参画で解決しようとする課題 | NS7: 多様な組織等の参画により連携して実施する活動
AH8: 急傾斜 | AI8: 緩傾斜 | AJ8: 高齢化率・耕作放棄率 | AK8: 小区画不整形 | AL8: 特認基準 | AM8: 交付対象外 | AO8: 急傾斜 | AP8: 緩傾斜 | AQ8: 高齢化率・耕作放棄率 | AR8: 特認基準 | AS8: 交付対象外（田畑混在地） | AT8: 交付対象外（田畑混在地以外） | AV8: 急傾斜 | AW8: 緩傾斜 | AX8: 草地比率の高い草地 | AY8: 高齢化率・耕作放棄率 | AZ8: 特認基準 | BA8: 交付対象外（田草地混在地） | BB8: 交付対象外（田草地混在地以外） | BD8: 急傾斜 | BE8: 緩傾斜 | BF8: 特認基準 | BG8: 交付対象外（田採草放牧地混在） | BH8: 交付対象外（田採草放牧地混在以外） | BI8: 通常地域面積計 | BJ8: 田面積計（通常地域） | BK8: 通常地域 田 交付基準別 | BQ8: 畑面積計（通常地域） | BR8: 通常地域 畑 交付基準別 | BX8: 草地面積計（通常地域） | BY8: 通常地域 草地 交付基準別 | CF8: 採草放牧地面積計（通常地域） | CG8: 通常地域 採草放牧地 交付基準別 | CL8: 特認地域の基準区分 | CM8: 特認地域面積計 | CN8: 田面積計（特認地域） | CO8: 特認地域 田 交付基準別 | CU8: 畑面積計（特認地域） | CV8: 特認地域 畑 交付基準別 | DB8: 草地面積計（特認地域） | DC8: 特認地域 草地 交付基準別 | DJ8: 採草放牧地面積計（特認地域） | DK8: 特認地域 採草放牧地 交付基準別 | DS8: 耕作又は維持管理が行われなかった | DX8: 荒廃農地等の復旧が行われなかった | DY8: 農業者の死亡、病気、高齢等 | DZ8: 自然災害 | EA8: 土地収用法に基づく収容、使用 | EB8: 農業用施設用地等への転用 | ED8: うち復旧済面積 | EE8: 復旧面積（計画） | EI8: うち復旧済面積 | EM8: 地目別面積 | EP8: うち国費（円） | ES8: 地目別面積 | EV8: うち国費（円） | FH8: 地目別面積 | FK8: うち国費 | FL8: 法面の維持・補修 | FM8: 耕作道、ほ場進入路等の維持 | FN8: 作業足場の設置、ほ場進入路の改良等 | FO8: 土壌流入、土壌流出の防止 | FP8: 農薬散布等の施設の整備 | FQ8: 共同防除体制の構築 | FR8: 鳥獣害防止施設の維持 | FS8: 鳥獣害防止施設の設置 | FT8: その他 | FV8: 共通パッケージの作成 | FW8: パンフレットの作成 | FX8: 農産物の加工 | FY8: 直売所等での販売 | FZ8: ブランド化 | GA8: 景観作物の植栽 | GB8: 環境に配慮した農業 | GC8: 都市住民との交流 | GD8: 施設の設置・運営 | GE8: 棚田オーナー制度 | GF8: その他 | GK8: うち国費 | GO8: 集落内からの人材確保者数 | GP8: 集落外からの人材確保者数 | GR8: 集落協定組織の活動 | GS8: 農業生産組織の活動 | GT8: 加工・販売組織の活動 | HA8: うち国費 | HH8: うち国費 | IL8: 適正な耕作放棄の防止等の活動（項目数） | IM8: 多面的機能支払交付金と同一施設 | IN8: ① 賃借権設定・農作業の委託 | IO8: ② 既荒廃農用地の復旧・林地化・畜産的利用 | IP8: ③ 既荒廃農用地の保全管理 | IQ8: ④ 農地の法面管理 | IR8: ⑤ 柵、ネットの設置等鳥獣被害防止 | IS8: ⑥ 簡易な基盤整備 | IT8: ⑦ 担い手の確保 | IU8: ⑧ 地場農産物の加工・販売 | IV8: ⑨ その他（土地改良事業、災害復旧、地目変更等） | IX8: ① 水路の管理 | IY8: ② 農道の管理 | IZ8: ③ その他の施設の管理 | JQ8: その他の内容 | KC8: その他の内容 | KI8: ネットワーク化する協定数（自協定含む） | KJ8: 協定面積計（自協定含む） | KK8: ①リーダーの人材不足 | KL8: ②事務担当者の人材不足 | KM8: ③共同取組活動参加者の不足 | KN8: ④農業の担い手の人材不足 | KO8: ⑤農作業機械や施設の不足 | KP8: ⑥知見や技術の不足 | KQ8: ⑦その他 | KS8: ①事務の一元化（共同事務局の設置や 外部委託） | KT8: ②農地保全（草刈り、荒廃防止活動 等） | KU8: ③水路・農道等の維持管理 | KV8: ④機械・施設の共同利用 | KW8: ⑤農作業の共同化 | KX8: ⑥農業の担い手育成 | KY8: ⑦地場農産物の加工・販売 | KZ8: ⑧鳥獣害対策 | LA8: ⑨多面的機能を増進する活動 | LB8: ⑩その他 | LD8: ①協議会型 | LE8: ②活動連携型 | LF8: ③共同委託型 | LG8: ⑩その他 | LI8: ネットワーク化により連携して実施する活動の開始時期 | LJ8: ①第６期対策期間中（令和７年度～令和11 年度）での統合を検討する | LK8: ②第６期対策終了後の令和12 年度以降での統合を検討する | LL8: ③時期は未定だが将来的に統合を検討する | LM8: ④未定 | LN8: ⑤統合は必要ないと考えている | LO8: ⑥その他 | LR8: 統合する協定数（自協定含む） | LS8: 協定面積計（自協定含む） | LT8: ①リーダーの人材不足 | LU8: ②事務担当者の人材不足 | LV8: ③共同取組活動参加者の不足 | LW8: ④農業の担い手の人材不足 | LX8: ⑤農作業機械や施設の不足 | LY8: ⑥知見や技術の不足 | LZ8: ⑦その他 | MB8: ①リーダー等の人材確保 | MC8: ②事務局機能の強化 | MD8: ③農地保全（草刈り、荒廃防止活動 等） | ME8: ④水路・農道等の維持管理 | MF8: ⑤機械・施設の共同利用 | MG8: ⑥農作業の共同化 | MH8: ⑦農業の担い手育成 | MI8: ⑧地場農産物の加工・販売 | MJ8: ⑨鳥獣害対策 | MK8: ⑩多面的機能を増進する活動 | ML8: ⑪その他 | MN8: 統合の時期 | MO8: 参画組織数計 | MP8: 集落協定の構成員の組織 | MZ8: 別途協定等を締結 | NJ8: 非農業者数 | NM8: ①事務担当者の人材不足 | NN8: ②共同取組活動参加者の不足 | NO8: ③農業作業の人材不足 | NP8: ④知見や技術の不足 | NQ8: ⑥その他 | NS8: ①事務の適切な実施 | NT8: ②農地保全（草刈り、荒廃防止活動 等） | NU8: ③水路・農道等の維持管理 | NV8: ④農作業 | NW8: ⑤地場農産物の加工・販売 | NX8: ⑥鳥獣害対策 | NY8: ⑦多面的機能を増進する活動 | NZ8: ⑧その他
BK9: 急傾斜 | BL9: 緩傾斜 | BM9: 高齢化率・耕作放棄率 | BN9: 小区画不整形 | BO9: 特認基準 | BP9: 交付対象外 | BR9: 急傾斜 | BS9: 緩傾斜 | BT9: 高齢化率・耕作放棄率 | BU9: 特認基準 | BV9: 交付対象外(田畑混在地) | BW9: 交付対象外(田畑混在地以外) | BY9: 急傾斜 | BZ9: 緩傾斜 | CA9: 草地比率の高い草地 | CB9: 高齢化率・耕作放棄率 | CC9: 特認基準 | CD9: 交付対象外(田草地混在地) | CE9: 交付対象外(田草地混在地以外) | CG9: 急傾斜 | CH9: 緩傾斜 | CI9: 特認基準 | CJ9: 交付対象外（田採草放牧地混在） | CK9: 交付対象外（田採草放牧地混在以外） | CO9: 急傾斜 | CP9: 緩傾斜 | CQ9: 高齢化率・耕作放棄率 | CR9: 小区画不整形 | CS9: 特認基準 | CT9: 交付対象外 | CV9: 急傾斜 | CW9: 緩傾斜 | CX9: 高齢化率・耕作放棄率 | CY9: 特認基準 | CZ9: 交付対象外(田畑混在地) | DA9: 交付対象外(田畑混在地以外 | DC9: 急傾斜 | DD9: 緩傾斜 | DE9: 草地比率の高い草地 | DF9: 高齢化率・耕作放棄率 | DG9: 特認基準 | DH9: 交付対象外(田草地混在地) | DI9: 交付対象外(田草地混在地以外) | DK9: 急傾斜 | DL9: 緩傾斜 | DM9: 特認基準 | DN9: 交付対象外（田採草放牧地混在地） | DO9: 交付対象外（田採草放牧地混在地以外） | DT9: 耕作放棄によるもの | DU9: 転用によるもの | DV9: その他 | EE9: 田面積 | EF9: 畑面積 | EG9: 草地面積 | EM9: 田面積 | EN9: 畑面積 | ES9: 田面積 | ET9: 畑面積 | EW9: 目標 | EX9: 目標年度 | EY9: 達成状況 | EZ9: 目標 | FA9: 目標年度 | FB9: 達成状況 | FC9: 目標 | FD9: 目標年度 | FE9: 達成状況 | FH9: 田面積 | FI9: 畑面積 | FU9: その他の内容 | GG9: その他の内容 | GU9: 目標 | GV9: 目標年度 | GW9: 達成状況 | HB9: 目標 | HC9: 目標年度 | HD9: 達成状況 | HI9: 目標 | HJ9: 目標年度 | HK9: 達成状況 | KR9: その他の内容 | LC9: その他の内容 | LH9: その他の内容 | LP9: その他の内容 | MA9: その他の内容 | MM9: その他の内容 | MP9: 集落協定の構成員の組織数 | MQ9: 自治会・町内会 | MR9: 地域づくり協議会・地域運営組織 | MS9: 社会福祉協議会 | MT9: 企業 | MU9: NPO | MV9: 学校 （小学校、中学校、高校、大学） | MW9: 土地改良区 | MX9: 多面的機能支払活動組織 （保全会） | MY9: その他 | MZ9: 別途協定等を締結する組織数 | NA9: 自治会・町内会 | NB9: 地域づくり協議会・地域運営組織 | NC9: 社会福祉協議会 | ND9: 企業 | NE9: NPO | NF9: 学校 （小学校、中学校、高校、大学） | NG9: 土地改良区 | NH9: 多面的機能支払活動組織 （保全会） | NI9: その他 | NK9: 集落協定の構成員のうち非農業者 | NL9: 別途協定等を締結した組織の構成員のうち非農業者 | NR9: その他の内容 | OA9: その他の内容
DW10: その他の内容
A13: 1 | B13: =A13+1 -> 2 | C13: =B13+1 -> 3 | D13: 4 | E13: 5 | F13: 6 | H13: =F13+1 -> 7 | I13: =H13+1 -> 8 | J13: =I13+1 -> 9 | K13: =J13+1 -> 10 | L13: =K13+1 -> 11 | M13: =L13+1 -> 12 | N13: =M13+1 -> 13 | O13: 14 | P13: 15 | Q13: 16 | R13: 17 | S13: 18 | T13: 19 | U13: =T13+1 -> 20 | V13: =U13+1 -> 21 | W13: 22 | X13: 23 | Y13: 24 | Z13: 25 | AA13: 26 | AB13: 27 | AC13: 28 | AD13: 29 | AE13: =AD13+1 -> 30 | AF13: =AE13+1 -> 31 | AG13: =AF13+1 -> 32 | AH13: 33 | AI13: 34 | AJ13: 35 | AK13: 36 | AL13: 37 | AM13: 38 | AN13: 39 | AO13: 40 | AP13: 41 | AQ13: 42 | AR13: 43 | AS13: 44 | AT13: 45 | AU13: 46 | AV13: 47 | AW13: 48 | AX13: 49 | AY13: 50 | AZ13: 51 | BA13: 52 | BB13: 53 | BC13: 54 | BD13: 55 | BE13: 56 | BF13: 57 | BG13: 58 | BH13: 59 | BI13: 60 | BJ13: 61 | BK13: 62 | BL13: 63 | BM13: 64 | BN13: 65 | BO13: 66 | BP13: 67 | BQ13: =BP13+1 -> 68 | BR13: =BQ13+1 -> 69 | BS13: 70 | BT13: 71 | BU13: 72 | BV13: 73 | BW13: 74 | BX13: 75 | BY13: 76 | BZ13: 77 | CA13: 78 | CB13: 79 | CC13: 80 | CD13: 81 | CE13: 82 | CF13: 83 | CG13: 84 | CH13: 85 | CI13: 86 | CJ13: 87 | CK13: 88 | CL13: 89 | CM13: 90 | CN13: 91 | CO13: 92 | CP13: 93 | CQ13: 94 | CR13: 95 | CS13: 96 | CT13: 97 | CU13: 98 | CV13: 99 | CW13: 100 | CX13: 101 | CY13: 102 | CZ13: 103 | DA13: 104 | DB13: 105 | DC13: 106 | DD13: 107 | DE13: 108 | DF13: 109 | DG13: 110 | DH13: 111 | DI13: 112 | DJ13: 113 | DK13: 114 | DL13: 115 | DM13: 116 | DN13: 117 | DO13: 118 | DP13: 119 | DQ13: 120 | DR13: =DQ13+1 -> 121 | DS13: =DR13+1 -> 122 | DT13: =DS13+1 -> 123 | DU13: 124 | DV13: =DU13+1 -> 125 | DW13: 126 | DX13: 127 | DY13: 128 | DZ13: 129 | EA13: 130 | EB13: 131 | EC13: =EB13+1 -> 132 | ED13: =EC13+1 -> 133 | EE13: 134 | EF13: 135 | EG13: 136 | EH13: 137 | EI13: 138 | EJ13: 139 | EK13: =EJ13+1 -> 140 | EL13: =EK13+1 -> 141 | EM13: 142 | EN13: 143 | EO13: 144 | EP13: =EO13+1 -> 145 | EQ13: =EP13+1 -> 146 | ER13: =EQ13+1 -> 147 | ES13: 148 | ET13: 149 | EU13: 150 | EV13: =EU13+1 -> 151 | EW13: =EV13+1 -> 152 | EX13: =EW13+1 -> 153 | EY13: =EX13+1 -> 154 | EZ13: =EY13+1 -> 155 | FA13: 156 | FB13: 157 | FC13: 158 | FD13: 159 | FE13: 160 | FF13: 161 | FG13: 162 | FH13: 163 | FI13: 164 | FJ13: 165 | FK13: 166 | FL13: =FK13+1 -> 167 | FM13: =FL13+1 -> 168 | FN13: 169 | FO13: 170 | FP13: 171 | FQ13: 172 | FR13: 173 | FS13: 174 | FT13: 175 | FU13: 176 | FV13: 177 | FW13: 178 | FX13: 179 | FY13: 180 | FZ13: 181 | GA13: 182 | GB13: 183 | GC13: 184 | GD13: 185 | GE13: 186 | GF13: 187 | GG13: 188 | GH13: 189 | GI13: 190 | GJ13: 191 | GK13: 192 | GL13: =GK13+1 -> 193 | GM13: =GL13+1 -> 194 | GN13: =GM13+1 -> 195 | GO13: =GN13+1 -> 196 | GP13: =GO13+1 -> 197 | GQ13: =GP13+1 -> 198 | GR13: 199 | GS13: 200 | GT13: 201 | GU13: 202 | GV13: 203 | GW13: 204 | GX13: 205 | GY13: 206 | GZ13: 207 | HA13: 208 | HB13: 209 | HC13: 210 | HD13: 211 | HE13: 212 | HF13: 213 | HG13: 214 | HH13: 215 | HI13: 216 | HJ13: 217 | HK13: =HJ13+1 -> 218 | HL13: =HK13+1 -> 219 | HM13: =HL13+1 -> 220 | HN13: =HM13+1 -> 221 | HO13: 222 | HP13: 223 | HQ13: 224 | HR13: 225 | HS13: 226 | HT13: 227 | HU13: 228 | HV13: 229 | HW13: =HV13+1 -> 230 | HX13: 231 | HY13: 232 | HZ13: 233 | IA13: 234 | IB13: 235 | IC13: 236 | ID13: 237 | IE13: 238 | IF13: 239 | IG13: 240 | IH13: 241 | II13: =IH13+1 -> 242 | IJ13: =II13+1 -> 243 | IK13: 244 | IL13: =IK13+1 -> 245 | IM13: =IL13+1 -> 246 | IN13: =IM13+1 -> 247 | IO13: 248 | IP13: 249 | IQ13: 250 | IR13: 251 | IS13: =IR13+1 -> 252 | IT13: 253 | IU13: 254 | IV13: 255 | IW13: 256 | IX13: 257 | IY13: 258 | IZ13: 259 | JA13: 260 | JB13: 261 | JC13: 262 | JD13: =JC13+1 -> 263 | JE13: 264 | JF13: 265 | JG13: 266 | JH13: 267 | JI13: 268 | JJ13: 269 | JK13: 270 | JL13: 271 | JM13: 272 | JN13: 273 | JO13: 274 | JP13: 275 | JQ13: 276 | JR13: 277 | JS13: 278 | JT13: 279 | JU13: 280 | JV13: 281 | JW13: 282 | JX13: 283 | JY13: 284 | JZ13: 285 | KA13: 286 | KB13: 287 | KC13: 288 | KD13: =KC13+1 -> 289 | KE13: =KD13+1 -> 290 | KF13: =KE13+1 -> 291 | KG13: 292 | KH13: =KG13+1 -> 293 | KI13: =KH13+1 -> 294 | KJ13: 295 | KK13: =KJ13+1 -> 296 | KL13: 297 | KM13: 298 | KN13: =KM13+1 -> 299 | KO13: 300 | KP13: =KO13+1 -> 301 | KQ13: =KP13+1 -> 302 | KR13: =KQ13+1 -> 303 | KS13: 304 | KT13: =KS13+1 -> 305 | KU13: 306 | KV13: 307 | KW13: 308 | KX13: 309 | KY13: =KX13+1 -> 310 | KZ13: 324 | LA13: 325 | LB13: =KX13+1 -> 310 | LC13: 311 | LD13: 312 | LE13: =LD13+1 -> 313 | LF13: =LE13+1 -> 314 | LG13: 315 | LH13: 316 | LI13: 317 | LJ13: 318 | LK13: =LJ13+1 -> 319 | LL13: 320 | LM13: 321 | LN13: 322 | LO13: 323 | LP13: 324 | LQ13: 325 | LR13: 326 | LS13: =LR13+1 -> 327 | LT13: =LS13+1 -> 328 | LU13: 329 | LV13: 330 | LW13: 331 | LX13: 332 | LY13: 333 | LZ13: 334 | MA13: =LZ13+1 -> 335 | MB13: =MA13+1 -> 336 | MC13: =MB13+1 -> 337 | MD13: =MC13+1 -> 338 | ME13: 339 | MF13: 340 | MG13: 341 | MH13: 342 | MI13: 343 | MJ13: 344 | MK13: 345 | ML13: 346 | MM13: 347 | MN13: 348 | MO13: 349 | MP13: =MO13+1 -> 350 | MQ13: =MP13+1 -> 351 | MR13: =MQ13+1 -> 352 | MS13: 353 | MT13: 354 | MU13: 355 | MV13: =MU13+1 -> 356 | MW13: =MV13+1 -> 357 | MX13: =MW13+1 -> 358 | MY13: =MX13+1 -> 359 | MZ13: =MY13+1 -> 360 | NA13: =MZ13+1 -> 361 | NB13: =NA13+1 -> 362 | NC13: 363 | ND13: 364 | NE13: 365 | NF13: =NE13+1 -> 366 | NG13: =NF13+1 -> 367 | NH13: =NG13+1 -> 368 | NI13: =NH13+1 -> 369 | NJ13: =NI13+1 -> 370 | NK13: =NJ13+1 -> 371 | NL13: =NK13+1 -> 372 | NM13: =NL13+1 -> 373 | NN13: 374 | NO13: 375 | NP13: 376 | NQ13: 377 | NR13: =NQ13+1 -> 378 | NS13: =NR13+1 -> 379 | NT13: =NS13+1 -> 380 | NU13: 381 | NV13: 382 | NW13: 383 | NX13: 384 | NY13: 385 | NZ13: 386 | OA13: =NZ13+1 -> 387 | OB13: =OA13+1 -> 388
A14: 整数 | B14: 自動入力 | C14: 自動入力 | D14: 自動入力 | E14: 自動入力 | F14: 自動入力 | G14: 自動入力 | H14: 文字 | I14: リスト | J14: 文字 | K14: 自動入力 | L14: 整数 | M14: 整数 | N14: 整数 | O14: 整数 | P14: 整数 | Q14: 整数 | R14: 整数 | S14: 整数 | T14: 自動入力 | U14: 整数 | V14: 整数 | W14: 整数 | X14: 整数 | Y14: 整数 | Z14: 整数 | AA14: 整数 | AB14: 整数 | AC14: 整数 | AD14: 整数 | AE14: 自動入力 | AF14: 自動入力 | AG14: 自動入力 | AH14: 自動入力 | AI14: 自動入力 | AJ14: 自動入力 | AK14: 自動入力 | AL14: 自動入力 | AM14: 自動入力 | AN14: 自動入力 | AO14: 自動入力 | AP14: 自動入力 | AQ14: 自動入力 | AR14: 自動入力 | AS14: 自動入力 | AT14: 自動入力 | AU14: 自動入力 | AV14: 自動入力 | AW14: 自動入力 | AX14: 自動入力 | AY14: 自動入力 | AZ14: 自動入力 | BA14: 自動入力 | BB14: 自動入力 | BC14: 自動入力 | BD14: 自動入力 | BE14: 自動入力 | BF14: 自動入力 | BG14: 自動入力 | BH14: 自動入力 | BI14: 自動入力 | BJ14: 自動入力 | BK14: 整数 | BL14: 整数 | BM14: 整数 | BN14: 整数 | BO14: 整数 | BP14: 整数 | BQ14: 自動入力 | BR14: 整数 | BS14: 整数 | BT14: 整数 | BU14: 整数 | BV14: 整数 | BW14: 整数 | BX14: 自動入力 | BY14: 整数 | BZ14: 整数 | CA14: 整数 | CB14: 整数 | CC14: 整数 | CD14: 整数 | CE14: 整数 | CF14: 自動入力 | CG14: 整数 | CH14: 整数 | CI14: 整数 | CJ14: 整数 | CK14: 整数 | CL14: リスト | CM14: 自動入力 | CN14: 自動入力 | CO14: 整数 | CP14: 整数 | CQ14: 整数 | CR14: 整数 | CS14: 整数 | CT14: 整数 | CU14: 自動入力 | CV14: 整数 | CW14: 整数 | CX14: 整数 | CY14: 整数 | CZ14: 整数 | DA14: 整数 | DB14: 自動入力 | DC14: 整数 | DD14: 整数 | DE14: 整数 | DF14: 整数 | DG14: 整数 | DH14: 整数 | DI14: 整数 | DJ14: 自動入力 | DK14: 整数 | DL14: 整数 | DM14: 整数 | DN14: 整数 | DO14: 整数 | DP14: 整数 | DQ14: 整数 | DR14: 自動入力 | DS14: 整数 | DT14: 整数 | DU14: 整数 | DV14: 整数 | DW14: 文字 | DX14: 整数 | DY14: 整数 | DZ14: 整数 | EA14: 整数 | EB14: 整数 | EC14: 自動入力 | ED14: 整数 | EE14: 整数 | EF14: 整数 | EG14: 整数 | EH14: 整数 | EI14: 整数 | EJ14: 整数 | EK14: 自動入力 | EL14: 自動入力 | EM14: 整数 | EN14: 整数 | EO14: 整数 | EP14: 整数 | EQ14: 自動入力 | ER14: 自動入力 | ES14: 整数 | ET14: 整数 | EU14: 整数 | EV14: 整数 | EW14: 文字 | EX14: リスト | EY14: リスト | EZ14: 文字 | FA14: リスト | FB14: リスト | FC14: 文字 | FD14: リスト | FE14: リスト | FF14: 自動入力 | FG14: 自動入力 | FH14: 整数 | FI14: 整数 | FJ14: 整数 | FK14: 整数 | FL14: リスト | FM14: リスト | FN14: リスト | FO14: リスト | FP14: リスト | FQ14: リスト | FR14: リスト | FS14: リスト | FT14: リスト | FU14: 文字 | FV14: リスト | FW14: リスト | FX14: リスト | FY14: リスト | FZ14: リスト | GA14: リスト | GB14: リスト | GC14: リスト | GD14: リスト | GE14: リスト | GF14: リスト | GG14: 文字 | GH14: 自動入力 | GI14: 整数 | GJ14: 整数 | GK14: 整数 | GL14: 整数 | GM14: 整数 | GN14: 自動入力 | GO14: 整数 | GP14: 整数 | GQ14: 自動入力 | GR14: リスト | GS14: リスト | GT14: リスト | GU14: 文字 | GV14: リスト | GW14: リスト | GX14: 自動入力 | GY14: 自動入力 | GZ14: 整数 | HA14: 整数 | HB14: 文字 | HC14: リスト | HD14: リスト | HE14: 自動入力 | HF14: 自動入力 | HG14: 整数 | HH14: 整数 | HI14: 文字 | HJ14: リスト | HK14: リスト | HL14: リスト | HM14: リスト | HN14: 自動入力 | HO14: 自動入力 | HP14: 自動入力 | HQ14: 自動入力 | HR14: 整数 | HS14: 整数 | HT14: 自動入力 | HU14: 整数 | HV14: 自動入力 | HW14: 整数 | HX14: 整数 | HY14: 整数 | HZ14: 整数 | IA14: 整数 | IB14: 整数 | IC14: 整数 | ID14: 整数 | IE14: 整数 | IF14: 整数 | IG14: 整数 | IH14: 整数 | II14: 整数 | IJ14: 整数 | IK14: 整数 | IL14: 自動入力 | IM14: リスト | IN14: リスト | IO14: リスト | IP14: リスト | IQ14: リスト | IR14: リスト | IS14: リスト | IT14: リスト | IU14: リスト | IV14: リスト | IW14: 自動入力 | IX14: リスト | IY14: リスト | IZ14: リスト | JA14: 自動入力 | JB14: リスト | JC14: リスト | JD14: リスト | JE14: リスト | JF14: リスト | JG14: リスト | JH14: リスト | JI14: リスト | JJ14: リスト | JK14: リスト | JL14: 自動入力 | JM14: リスト | JN14: リスト | JO14: リスト | JP14: リスト | JQ14: 文字 | JR14: 自動入力 | JS14: リスト | JT14: リスト | JU14: リスト | JV14: リスト | JW14: リスト | JX14: リスト | JY14: リスト | JZ14: リスト | KA14: リスト | KB14: リスト | KC14: 文字 | KD14: リスト | KE14: リスト | KF14: リスト | KG14: リスト | KH14: 文字 | KI14: 整数 | KJ14: 整数 | KK14: リスト | KL14: リスト | KM14: リスト | KN14: リスト | KO14: リスト | KP14: リスト | KQ14: リスト | KR14: 文字 | KS14: リスト | KT14: リスト | KU14: リスト | KV14: リスト | KW14: リスト | KX14: リスト | KY14: リスト | KZ14: リスト | LA14: リスト | LB14: リスト | LC14: 文字 | LD14: リスト | LE14: リスト | LF14: リスト | LG14: リスト | LH14: リスト | LI14: リスト | LJ14: リスト | LK14: リスト | LL14: リスト | LM14: リスト | LN14: リスト | LO14: リスト | LP14: リスト | LQ14: 文字 | LR14: 整数 | LS14: 整数 | LT14: リスト | LU14: リスト | LV14: リスト | LW14: リスト | LX14: リスト | LY14: リスト | LZ14: リスト | MA14: 文字 | MB14: リスト | MC14: リスト | MD14: リスト | ME14: リスト | MF14: リスト | MG14: リスト | MH14: リスト | MI14: リスト | MJ14: リスト | MK14: リスト | ML14: リスト | MM14: 文字 | MN14: リスト | MO14: 自動入力 | MP14: 自動入力 | MQ14: 整数 | MR14: 整数 | MS14: 整数 | MT14: 整数 | MU14: 整数 | MV14: 整数 | MW14: 整数 | MX14: 整数 | MY14: 整数 | MZ14: 自動入力 | NA14: 整数 | NB14: 整数 | NC14: 整数 | ND14: 整数 | NE14: 整数 | NF14: 整数 | NG14: 整数 | NH14: 整数 | NI14: 整数 | NJ14: 自動入力 | NK14: 整数 | NL14: 整数 | NM14: リスト | NN14: リスト | NO14: リスト | NP14: リスト | NQ14: リスト | NR14: 文字 | NS14: リスト | NT14: リスト | NU14: リスト | NV14: リスト | NW14: リスト | NX14: リスト | NY14: リスト | NZ14: リスト | OA14: 文字 | OB14: 文字
B15: =はじめに!D3 -> ○○県 | C15: =はじめに!D4 -> △△市 | E15: =はじめに!D5 -> あいうえお集落協定 | G15: =IFERROR(D15*10000+F15,"") -> 0 | H15: =はじめに!D7 -> ○○県△△市○町 | I15: =別紙１①!E38 -> 7 | K15: =M15+N15+O15+P15+Q15+R15+S15 -> 22 | L15: =別紙１④!A33 -> 4 | M15: =COUNTIF(別紙１③!I7:I34,"A")+COUNTIF(別紙１③!I7:I34,"B") -> 9 | N15: =COUNTIF(別紙１③!I7:I34,"C")+COUNTIF(別紙１③!I7:I34,"D")+COUNTIF(別紙１③!I7:I34,"E") -> 3 | O15: =COUNTIF(別紙１③!I7:I34,"F")+COUNTIF(別紙１③!I7:I34,"G")+COUNTIF(別紙１③!I7:I34,"H")+COUNTIF(別紙１③!I7:I34,"I") -> 4 | P15: =COUNTIF(別紙１③!I7:I34,"J") -> 1 | Q15: =COUNTIF(別紙１③!I7:I34,"K") -> 1 | R15: =COUNTIF(別紙１③!I7:I34,"L") -> 2 | S15: =COUNTIF(別紙１③!I7:I34,"M") -> 2 | T15: =U15+V15+W15+X15+Y15+Z15+AA15+AB15+AC15+AD15 -> 10 | U15: =COUNTIF(別紙１③!J7:J34,"ア") -> 1 | V15: =COUNTIF(別紙１③!J7:J34,"イ") -> 2 | W15: =COUNTIF(別紙１③!J7:J34,"ウ") -> 1 | X15: =COUNTIF(別紙１③!J7:J34,"エ") -> 1 | Y15: =COUNTIF(別紙１③!J7:J34,"オ") -> 0 | Z15: =COUNTIF(別紙１③!J7:J34,"カ") -> 2 | AA15: =COUNTIF(別紙１③!J7:J34,"キ") -> 2 | AB15: =COUNTIF(別紙１③!J7:J34,"ク") -> 0 | AC15: =COUNTIF(別紙１③!J7:J34,"ケ") -> 1 | AD15: =COUNTIF(別紙１③!J7:J34,"コ") -> 0 | AE15: =IF(CM15*BI15>0,"通特併存",IF(BI15<>0,"通常",IF(CM15<>0,"特認",IF(CM15*BI15=0,"")))) -> 通特併存 | AF15: =AG15+AN15+AU15+BC15 -> 38346 | AG15: =AH15+AI15+AJ15+AK15+AL15+AM15 -> 20714 | AH15: =BK15+CO15 -> 16569 | AI15: 0 | AJ15: =BM15+CQ15 -> 1403 | AK15: 1515 | AL15: 813 | AM15: 414 | AN15: =AO15+AP15+AQ15+AR15+AS15+AT15 -> 12468 | AO15: =BR15+CV15 -> 1840 | AP15: 4925 | AQ15: 869 | AR15: 2034 | AS15: 1153 | AT15: 1647 | AU15: =AV15+AW15+AX15+AY15+AZ15+BA15+BB15 -> 4014 | AV15: =BY15+DC15 -> 3144 | AW15: 120 | AX15: 140 | AY15: 130 | AZ15: 150 | BA15: 170 | BB15: 160 | BC15: =BD15+BE15+BF15+BG15+BH15 -> 1150 | BD15: =CG15+DK15 -> 430 | BE15: 0 | BF15: 230 | BG15: 240 | BH15: 250 | BI15: =BJ15+BQ15+BX15+CF15 -> 27482 | BJ15: =BK15+BL15+BM15+BN15+BO15+BP15 -> 16268 | BK15: =SUMIFS(別紙２①!$F18:$F105,別紙２①!$A18:$A105,"通常地域（8法内）",別紙２①!$E18:$E105,"田",別紙２①!$G18:$G105,"急傾斜")+SUMIFS(別紙２①!$F18:$F105,別紙２①!$A18:$A105,"通常地域（8法以外で棚田法の交付対象農用地）",別紙２①!$E18:$E105,"田",別紙２①!$G18:$G105,"急傾斜") -> 14014 | BL15: =SUMIFS(別紙２①!$F18:$F105,別紙２①!$A18:$A105,"通常地域（8法内）",別紙２①!$E18:$E105,"田",別紙２①!$G18:$G105,"緩傾斜")+SUMIFS(別紙２①!$F18:$F105,別紙２①!$A18:$A105,"通常地域（8法以外で棚田法の交付対象農用地）",別紙２①!$E18:$E105,"田",別紙２①!$G18:$G105,"緩傾斜") -> 0 | BM15: =SUMIFS(別紙２①!$F18:$F105,別紙２①!$A18:$A105,"通常地域（8法内）",別紙２①!$E18:$E105,"田",別紙２①!$G18:$G105,"高齢化・耕作放棄率")+SUMIFS(別紙２①!$F18:$F105,別紙２①!$A18:$A105,"通常地域（8法以外で棚田法の交付対象農用地）",別紙２①!$E18:$E105,"田",別紙２①!$G18:$G105,"高齢化・耕作放棄率") -> 491 | BN15: =SUMIFS(別紙２①!$F18:$F105,別紙２①!$A18:$A105,"通常地域（8法内）",別紙２①!$E18:$E105,"田",別紙２①!$G18:$G105,"小区画・不整形")+SUMIFS(別紙２①!$F18:$F105,別紙２①!$A18:$A105,"通常地域（8法以外で棚田法の交付対象農用地）",別紙２①!$E18:$E105,"田",別紙２①!$G18:$G105,"小区画・不整形") -> 536 | BO15: =SUMIFS(別紙２①!$F18:$F105,別紙２①!$A18:$A105,"通常地域（8法内）",別紙２①!$E18:$E105,"田",別紙２①!$G18:$G105,"特認基準")+SUMIFS(別紙２①!$F18:$F105,別紙２①!$A18:$A105,"通常地域（8法以外で棚田法の交付対象農用地）",別紙２①!$E18:$E105,"田",別紙２①!$G18:$G105,"特認基準") -> 813 | BP15: =SUMIFS(別紙２①!$F18:$F105,別紙２①!$A18:$A105,"通常地域（8法内）",別紙２①!$E18:$E105,"田",別紙２①!$G18:$G105,"交付対象外")+SUMIFS(別紙２①!$F18:$F105,別紙２①!$A18:$A105,"通常地域（8法以外で棚田法の交付対象農用地）",別紙２①!$E18:$E105,"田",別紙２①!$G18:$G105,"交付対象外") -> 414 | BQ15: =BR15+BS15+BT15+BU15+BV15+BW15 -> 8180 | BR15: =SUMIFS(別紙２①!$F18:$F105,別紙２①!$A18:$A105,"通常地域（8法内）",別紙２①!$E18:$E105,"畑",別紙２①!$G18:$G105,"急傾斜")+SUMIFS(別紙２①!$F18:$F105,別紙２①!$A18:$A105,"通常地域（8法以外で棚田法の交付対象農用地）",別紙２①!$E18:$E105,"畑",別紙２①!$G18:$G105,"急傾斜") -> 1840 | BS15: =SUMIFS(別紙２①!$F18:$F105,別紙２①!$A18:$A105,"通常地域（8法内）",別紙２①!$E18:$E105,"畑",別紙２①!$G18:$G105,"緩傾斜")+SUMIFS(別紙２①!$F18:$F105,別紙２①!$A18:$A105,"通常地域（8法以外で棚田法の交付対象農用地）",別紙２①!$E18:$E105,"畑",別紙２①!$G18:$G105,"緩傾斜") -> 1233 | BT15: =SUMIFS(別紙２①!$F18:$F105,別紙２①!$A18:$A105,"通常地域（8法内）",別紙２①!$E18:$E105,"畑",別紙２①!$G18:$G105,"高齢化・耕作放棄率")+SUMIFS(別紙２①!$F18:$F105,別紙２①!$A18:$A105,"通常地域（8法以外で棚田法の交付対象農用地）",別紙２①!$E18:$E105,"畑",別紙２①!$G18:$G105,"高齢化・耕作放棄率") -> 869 | BU15: =SUMIFS(別紙２①!$F18:$F105,別紙２①!$A18:$A105,"通常地域（8法内）",別紙２①!$E18:$E105,"畑",別紙２①!$G18:$G105,"特認基準")+SUMIFS(別紙２①!$F18:$F105,別紙２①!$A18:$A105,"通常地域（8法以外で棚田法の交付対象農用地）",別紙２①!$E18:$E105,"畑",別紙２①!$G18:$G105,"特認基準") -> 1477 | BV15: =SUMIFS(別紙２①!$F18:$F105,別紙２①!$A18:$A105,"通常地域（8法内）",別紙２①!$E18:$E105,"畑",別紙２①!$G18:$G105,"交付対象外（田畑混在地）")+SUMIFS(別紙２①!$F18:$F105,別紙２①!$A18:$A105,"通常地域（8法以外で棚田法の交付対象農用地）",別紙２①!$E18:$E105,"畑",別紙２①!$G18:$G105,"交付対象外（田畑混在地）") -> 1114 | BW15: =SUMIFS(別紙２①!$F18:$F105,別紙２①!$A18:$A105,"通常地域（8法内）",別紙２①!$E18:$E105,"畑",別紙２①!$G18:$G105,"交付対象外（田畑混在地以外）")+SUMIFS(別紙２①!$F18:$F105,別紙２①!$A18:$A105,"通常地域（8法以外で棚田法の交付対象農用地）",別紙２①!$E18:$E105,"畑",別紙２①!$G18:$G105,"交付対象外（田畑混在地以外）") -> 1647 | BX15: =BY15+BZ15+CA15+CB15+CC15+CD15+CE15 -> 3034 | BY15: =SUMIFS(別紙２①!$F18:$F105,別紙２①!$A18:$A105,"通常地域（8法内）",別紙２①!$E18:$E105,"草地",別紙２①!$G18:$G105,"急傾斜")+SUMIFS(別紙２①!$F18:$F105,別紙２①!$A18:$A105,"通常地域（8法以外で棚田法の交付対象農用地）",別紙２①!$E18:$E105,"草地",別紙２①!$G18:$G105,"急傾斜") -> 3034 | BZ15: =SUMIFS(別紙２①!$F18:$F105,別紙２①!$A18:$A105,"通常地域（8法内）",別紙２①!$E18:$E105,"草地",別紙２①!$G18:$G105,"緩傾斜")+SUMIFS(別紙２①!$F18:$F105,別紙２①!$A18:$A105,"通常地域（8法以外で棚田法の交付対象農用地）",別紙２①!$E18:$E105,"草地",別紙２①!$G18:$G105,"緩傾斜") -> 0 | CA15: =SUMIFS(別紙２①!$F18:$F105,別紙２①!$A18:$A105,"通常地域（8法内）",別紙２①!$E18:$E105,"草地",別紙２①!$G18:$G105,"草地比率の高い草地")+SUMIFS(別紙２①!$F18:$F105,別紙２①!$A18:$A105,"通常地域（8法以外で棚田法の交付対象農用地）",別紙２①!$E18:$E105,"草地",別紙２①!$G18:$G105,"草地比率の高い草地") -> 0 | CB15: =SUMIFS(別紙２①!$F18:$F105,別紙２①!$A18:$A105,"通常地域（8法内）",別紙２①!$E18:$E105,"草地",別紙２①!$G18:$G105,"高齢化・耕作放棄率")+SUMIFS(別紙２①!$F18:$F105,別紙２①!$A18:$A105,"通常地域（8法以外で棚田法の交付対象農用地）",別紙２①!$E18:$E105,"草地",別紙２①!$G18:$G105,"高齢化・耕作放棄率") -> 0 | CC15: =SUMIFS(別紙２①!$F18:$F105,別紙２①!$A18:$A105,"通常地域（8法内）",別紙２①!$E18:$E105,"草地",別紙２①!$G18:$G105,"特認基準")+SUMIFS(別紙２①!$F18:$F105,別紙２①!$A18:$A105,"通常地域（8法以外で棚田法の交付対象農用地）",別紙２①!$E18:$E105,"草地",別紙２①!$G18:$G105,"特認基準") -> 0 | CD15: =SUMIFS(別紙２①!$F18:$F105,別紙２①!$A18:$A105,"通常地域（8法内）",別紙２①!$E18:$E105,"草地",別紙２①!$G18:$G105,"交付対象外（田草地混在地）")+SUMIFS(別紙２①!$F18:$F105,別紙２①!$A18:$A105,"通常地域（8法以外で棚田法の交付対象農用地）",別紙２①!$E18:$E105,"草地",別紙２①!$G18:$G105,"交付対象外（田草地混在地）") -> 0 | CE15: =SUMIFS(別紙２①!$F18:$F105,別紙２①!$A18:$A105,"通常地域（8法内）",別紙２①!$E18:$E105,"草地",別紙２①!$G18:$G105,"交付対象外（田草地混在地以外）")+SUMIFS(別紙２①!$F18:$F105,別紙２①!$A18:$A105,"通常地域（8法以外で棚田法の交付対象農用地）",別紙２①!$E18:$E105,"草地",別紙２①!$G18:$G105,"交付対象外（田草地混在地以外）") -> 0 | CF15: =CG15+CH15+CI15+CJ15+CK15 -> 0 | CG15: =SUMIFS(別紙２①!$F18:$F105,別紙２①!$A18:$A105,"通常地域（8法内）",別紙２①!$E18:$E105,"採草放牧地",別紙２①!$G18:$G105,"急傾斜")+SUMIFS(別紙２①!$F18:$F105,別紙２①!$A18:$A105,"通常地域（8法以外で棚田法の交付対象農用地）",別紙２①!$E18:$E105,"採草放牧地",別紙２①!$G18:$G105,"急傾斜") -> 0 | CH15: =SUMIFS(別紙２①!$F18:$F105,別紙２①!$A18:$A105,"通常地域（8法内）",別紙２①!$E18:$E105,"採草放牧地",別紙２①!$G18:$G105,"緩傾斜")+SUMIFS(別紙２①!$F18:$F105,別紙２①!$A18:$A105,"通常地域（8法以外で棚田法の交付対象農用地）",別紙２①!$E18:$E105,"採草放牧地",別紙２①!$G18:$G105,"緩傾斜") -> 0 | CI15: =SUMIFS(別紙２①!$F18:$F105,別紙２①!$A18:$A105,"通常地域（8法内）",別紙２①!$E18:$E105,"採草放牧地",別紙２①!$G18:$G105,"特認基準")+SUMIFS(別紙２①!$F18:$F105,別紙２①!$A18:$A105,"通常地域（8法以外で棚田法の交付対象農用地）",別紙２①!$E18:$E105,"採草放牧地",別紙２①!$G18:$G105,"特認基準") -> 0 | CJ15: =SUMIFS(別紙２①!$F18:$F105,別紙２①!$A18:$A105,"通常地域（8法内）",別紙２①!$E18:$E105,"採草放牧地",別紙２①!$G18:$G105,"交付対象外（田採草放牧地混在地）")+SUMIFS(別紙２①!$F18:$F105,別紙２①!$A18:$A105,"通常地域（8法以外で棚田法の交付対象農用地）",別紙２①!$E18:$E105,"採草放牧地",別紙２①!$G18:$G105,"交付対象外（田採草放牧地混在地）") -> 0 | CK15: =SUMIFS(別紙２①!$F18:$F105,別紙２①!$A18:$A105,"通常地域（8法内）",別紙２①!$E18:$E105,"採草放牧地",別紙２①!$G18:$G105,"交付対象外（田採草放牧地混在地以外）")+SUMIFS(別紙２①!$F18:$F105,別紙２①!$A18:$A105,"通常地域（8法以外で棚田法の交付対象農用地）",別紙２①!$E18:$E105,"採草放牧地",別紙２①!$G18:$G105,"交付対象外（田採草放牧地混在地以外）") -> 0 | CM15: =CN15+CU15+DB15+DJ15 -> 10864 | CN15: =CO15+CP15+CQ15+CR15+CS15+CT15 -> 4446 | CO15: =SUMIFS(別紙２①!$F18:$F105,別紙２①!$A18:$A105,"特認地域",別紙２①!$E18:$E105,"田",別紙２①!$G18:$G105,"急傾斜") -> 2555 | CP15: =SUMIFS(別紙２①!$F18:$F105,別紙２①!$A18:$A105,"特認地域",別紙２①!$E18:$E105,"田",別紙２①!$G18:$G105,"緩傾斜") -> 0 | CQ15: =SUMIFS(別紙２①!$F18:$F105,別紙２①!$A18:$A105,"特認地域",別紙２①!$E18:$E105,"田",別紙２①!$G18:$G105,"高齢化・耕作放棄率") -> 912 | CR15: =SUMIFS(別紙２①!$F18:$F105,別紙２①!$A18:$A105,"特認地域",別紙２①!$E18:$E105,"田",別紙２①!$G18:$G105,"小区画・不整形") -> 979 | CS15: =SUMIFS(別紙２①!$F18:$F105,別紙２①!$A18:$A105,"特認地域",別紙２①!$E18:$E105,"田",別紙２①!$G18:$G105,"特認基準") -> 0 | CT15: =SUMIFS(別紙２①!$F18:$F105,別紙２①!$A18:$A105,"特認地域",別紙２①!$E18:$E105,"田",別紙２①!$G18:$G105,"交付対象外") -> 0 | CU15: =CV15+CW15+CX15+CY15+CZ15+DA15 -> 4288 | CV15: =SUMIFS(別紙２①!$F18:$F105,別紙２①!$A18:$A105,"特認地域",別紙２①!$E18:$E105,"畑",別紙２①!$G18:$G105,"急傾斜") -> 0 | CW15: =SUMIFS(別紙２①!$F18:$F105,別紙２①!$A18:$A105,"特認地域",別紙２①!$E18:$E105,"畑",別紙２①!$G18:$G105,"緩傾斜") -> 3692 | CX15: =SUMIFS(別紙２①!$F18:$F105,別紙２①!$A18:$A105,"特認地域",別紙２①!$E18:$E105,"畑",別紙２①!$G18:$G105,"高齢化・耕作放棄率") -> 0 | CY15: =SUMIFS(別紙２①!$F18:$F105,別紙２①!$A18:$A105,"特認地域",別紙２①!$E18:$E105,"畑",別紙２①!$G18:$G105,"特認基準") -> 557 | CZ15: =SUMIFS(別紙２①!$F18:$F105,別紙２①!$A18:$A105,"特認地域",別紙２①!$E18:$E105,"畑",別紙２①!$G18:$G105,"交付対象外（田畑混在地）") -> 39 | DA15: =SUMIFS(別紙２①!$F18:$F105,別紙２①!$A18:$A105,"特認地域",別紙２①!$E18:$E105,"畑",別紙２①!$G18:$G105,"交付対象外（田畑混在地以外）") -> 0 | DB15: =DC15+DD15+DE15+DF15+DG15+DH15+DI15 -> 980 | DC15: =SUMIFS(別紙２①!$F18:$F105,別紙２①!$A18:$A105,"特認地域",別紙２①!$E18:$E105,"草地",別紙２①!$G18:$G105,"急傾斜") -> 110 | DD15: =SUMIFS(別紙２①!$F18:$F105,別紙２①!$A18:$A105,"特認地域",別紙２①!$E18:$E105,"草地",別紙２①!$G18:$G105,"緩傾斜") -> 120 | DE15: =SUMIFS(別紙２①!$F18:$F105,別紙２①!$A18:$A105,"特認地域",別紙２①!$E18:$E105,"草地",別紙２①!$G18:$G105,"草地比率の高い草地") -> 140 | DF15: =SUMIFS(別紙２①!$F18:$F105,別紙２①!$A18:$A105,"特認地域",別紙２①!$E18:$E105,"草地",別紙２①!$G18:$G105,"高齢化・耕作放棄率") -> 130 | DG15: =SUMIFS(別紙２①!$F18:$F105,別紙２①!$A18:$A105,"特認地域",別紙２①!$E18:$E105,"草地",別紙２①!$G18:$G105,"特認基準") -> 150 | DH15: =SUMIFS(別紙２①!$F18:$F105,別紙２①!$A18:$A105,"特認地域",別紙２①!$E18:$E105,"草地",別紙２①!$G18:$G105,"交付対象外（田草地混在地）") -> 170 | DI15: =SUMIFS(別紙２①!$F18:$F105,別紙２①!$A18:$A105,"特認地域",別紙２①!$E18:$E105,"草地",別紙２①!$G18:$G105,"交付対象外（田草地混在地以外）") -> 160 | DJ15: =DK15+DL15+DM15+DN15+DO15 -> 1150 | DK15: =SUMIFS(別紙２①!$F18:$F105,別紙２①!$A18:$A105,"特認地域",別紙２①!$E18:$E105,"採草放牧地",別紙２①!$G18:$G105,"急傾斜") -> 430 | DL15: =SUMIFS(別紙２①!$F18:$F105,別紙２①!$A18:$A105,"特認地域",別紙２①!$E18:$E105,"採草放牧地",別紙２①!$G18:$G105,"緩傾斜") -> 0 | DM15: =SUMIFS(別紙２①!$F18:$F105,別紙２①!$A18:$A105,"特認地域",別紙２①!$E18:$E105,"採草放牧地",別紙２①!$G18:$G105,"特認基準") -> 230 | DN15: =SUMIFS(別紙２①!$F18:$F105,別紙２①!$A18:$A105,"特認地域",別紙２①!$E18:$E105,"採草放牧地",別紙２①!$G18:$G105,"交付対象外（田採草放牧地混在地）") -> 240 | DO15: =SUMIFS(別紙２①!$F18:$F105,別紙２①!$A18:$A105,"特認地域",別紙２①!$E18:$E105,"採草放牧地",別紙２①!$G18:$G105,"交付対象外（田採草放牧地混在地以外）") -> 250 | DP15: =別紙１④!I63+別紙１④!N63+別紙１④!S63+別紙１④!X63 -> 369019 | DR15: =DS15+DX15+DY15+DZ15+EA15+EB15 -> 0 | DS15: =DT15+DU15+DV15 -> 0 | EC15: =EE15+EF15+EG15 -> 0 | EE15: =SUMIFS(別紙２①!$F18:$F105,別紙２①!$P18:$P105,"荒廃農地",別紙２①!$Q18:$Q105,"復旧",別紙２①!$E18:$E105,"田") -> 0 | EF15: =SUMIFS(別紙２①!$F18:$F105,別紙２①!$P18:$P105,"荒廃農地",別紙２①!$Q18:$Q105,"復旧",別紙２①!$E18:$E105,"畑") -> 0 | EG15: =SUMIFS(別紙２①!$F18:$F105,別紙２①!$P18:$P105,"荒廃農地",別紙２①!$Q18:$Q105,"復旧",別紙２①!$E18:$E105,"草地") -> 0 | EH15: =SUMIFS(別紙２①!$F18:$F105,別紙２①!$P18:$P105,"被災地",別紙２①!$Q18:$Q105,"復旧") -> 0 | EJ15: =SUMIFS(別紙２①!$F18:$F105,別紙２①!$G18:$G105,"協定に含めない管理すべき農用地") -> 0 | EK15: =IF(SUM(EM15:EN15)>0,1,0) -> 1 | EL15: =EM15+EN15 -> 2140 | EM15: =別紙１④!B71 -> 907 | EN15: =別紙１④!E71 -> 1233 | EO15: =別紙１④!P71 -> 21400 | EQ15: =IF(SUM(ES15:ET15)>0,1,0) -> 0 | ER15: =ES15+ET15 -> 0 | ES15: =別紙１④!H72 -> 0 | ET15: =別紙１④!J72 -> 0 | EU15: =別紙１④!P72 -> 0 | EW15: =別紙１④!S256 -> [ア 棚田等の保全] 例1) 【集落機能強化】○○棚田の保全活動に取り組む人数を関係人口の協力を得て、〇人から〇人に増加させる。 例2）【生産性向上】〇〇棚田で自動草刈り機（防除用ドローン）を〇台導入し、共同で行う草刈り（防除）の面積を〇％増加する。 | EX15: =別紙１④!J258 -> 11 | EZ15: =別紙１④!S260 -> [イ 棚田等の保全を通じた多面にわたる機能の維持・発揮] 例) 【生産性向上】食味基準を設ける等により品質向上を図り棚田米の販売量/額を〇t /円 から〇t /円に増加させる。 | FA15: =別紙１④!J258 -> 11 | FC15: =別紙１④!S261 -> [ウ 棚田を核とした棚田地域の振興] 例1)【集落機能強化】〇〇棚田地域における棚田オーナー等の関係人口を〇人から〇人に増加させる。 例2)【棚田の価値を活かした活動】棚田の周辺に直売所（農家レストラン）を整備し、年間〇円の売り上げを達成する。 例3）【生産性向上】棚田米を原料とした〇〇（加工品）の販売量を〇tから〇tに増加させる。 | FD15: =別紙１④!J258 -> 11 | FF15: =IF(SUM(FH15:FI15)>0,1,0) -> 1 | FG15: =FH15+FI15 -> 738 | FH15: =別紙１④!B80 -> 738 | FI15: =別紙１④!E80 -> 0 | FJ15: =別紙１④!S80 -> 4428 | GH15: =IF(GI15>0,1,0) -> 0 | GI15: =別紙１④!B88+別紙１④!D88+別紙１④!F88+別紙１④!I88+別紙１④!B89+別紙１④!D89+別紙１④!F89+別紙１④!I89 -> 0 | GJ15: =別紙１④!S88 -> 0 | GL15: =COUNTIFS(別紙１④!$B$97:$F$101,"<>") -> 2 | GM15: =COUNTIFS(別紙１④!$H$97:$J$101,"<>") -> 0 | GN15: =GO15+GP15 -> 0 | GQ15: =SUM(GR15:GT15) -> 0 | GU15: =別紙１④!S266 -> ［ネットワーク化・統合等により実現する農業生産活動等の継続のための取組］ 例1) 機械の共同利用のための組織を立ち上げ、ネットワーク化した協定の農用地の●％で機械利用の共同化を行う。 例2) 生産、加工、販売の過程を総合的に主導する人材を○名確保する。 例3)農泊事業と連携して農業体験ツアーを行う体制を構築し、体験参加者を○人から△人に増加させる。 （人材の確保後記入） 氏名等 ○○ ○○ | GV15: =別紙１④!J268 -> 11 | GX15: =IF(GY15>0,1,0) -> 0 | GY15: =別紙１④!B110+別紙１④!D110+別紙１④!F110+別紙１④!I110 -> 0 | GZ15: =別紙１④!P110 -> 0 | HB15: =別紙１④!S270 -> [スマート農業による作業の省力化・効率化を図る取組] 例1) ドローンを導入し、オペレーターを育成するとともに、農薬散布に要する時間を○割減少させる。（農薬散布を行う面積を△haから□haに増加させる） 例2) リモコン式自走式草刈機を導入し、除草作業時間を○時間／日だけ減少させる。（リモコン式自走草刈機を利用する面積を△haから□haに増加させる） | HC15: =別紙１④!J272 -> 11 | HE15: =IF(HF15>0,1,0) -> 1 | HF15: =別紙１④!I110+別紙１④!K110+別紙１④!M110+別紙１④!P110 -> 5000 | HG15: =別紙１④!W110 -> 0 | HI15: =別紙１④!Z270 -> 0 | HJ15: =別紙１④!Q272 -> 0 | HL15: =IF(別紙２①!G6="〇",1,"") ->  | HM15: =IF(別紙２①!G8="〇",1,"") ->  | HN15: =DP15+EO15+EU15+FJ15+GJ15+GZ15+HG15 -> 394847 | HO15: =DQ15+EP15+EV15+FK15+GK15+HA15+HH15 -> 0 | HP15: =HN15-HR15 -> 194847 | HQ15: =HP15/HN15 -> 0.4934746877 | HR15: =別紙１④!M241 -> 200000 | HT15: =HN15+HS15 -> 394847 | HV15: =HW15+HX15+HY15+HZ15+IA15+IB15+IC15+ID15+IE15+IF15+IG15+IH15+II15+IJ15 -> 4000000 | HW15: =別紙１④!R205 -> 300000 | HX15: =別紙１④!R206 -> 30000 | HY15: =別紙１④!R211 -> 1000000 | HZ15: =別紙１④!R213 -> 800000 | IA15: =別紙１④!R215 -> 500000 | IB15: =別紙１④!R216 -> 500000 | IC15: =別紙１④!R217 -> 600000 | ID15: =別紙１④!R218 -> 30000 | IE15: =別紙１④!R210 -> 20000 | IF15: =別紙１④!R209 -> 100000 | IG15: =別紙１④!R207 -> 20000 | IH15: =別紙１④!R208 -> 100000 | IL15: =SUM(IN15:IV15) -> 1 | IM15: =IF(別紙１④!A155="✓",1,"") -> 1 | IN15: =IF(別紙１④!A157="〇",1,"") -> 1 | IO15: =IF(別紙１④!A158="〇",1,"") ->  | IP15: =IF(別紙１④!A159="〇",1,"") ->  | IQ15: =IF(別紙１④!A160="〇",1,"") ->  | IR15: =IF(別紙１④!A161="〇",1,"") ->  | IS15: =IF(別紙１④!A162="〇",1,"") ->  | IT15: =IF(別紙１④!A163="〇",1,"") ->  | IU15: =IF(別紙１④!A164="〇",1,"") ->  | IV15: =IF(別紙１④!A165="〇",1,"") ->  | IW15: =SUM(IX15:IZ15) -> 3 | IX15: =IF(OR(別紙１④!H169="〇",別紙１④!N169="〇",別紙１④!S169="〇"),1,"") -> 1 | IY15: =IF(OR(別紙１④!H170="〇",別紙１④!N170="〇",別紙１④!S170="〇"),1,"") -> 1 | IZ15: =IF(別紙１④!D171<>"",1,"") -> 1 | JA15: =SUM(JB15:JK15) -> 4 | JB15: =IF(別紙１④!A177="〇",1,"") -> 1 | JC15: =IF(別紙１④!A178="〇",1,"") ->  | JD15: =IF(別紙１④!A179="〇",1,"") ->  | JE15: =IF(別紙１④!A180="〇",1,"") -> 1 | JF15: =IF(別紙１④!A181="〇",1,"") ->  | JG15: =IF(別紙１④!A182="〇",1,"") ->  | JH15: =IF(別紙１④!A183="〇",1,"") -> 1 | JI15: =IF(別紙１④!A184="〇",1,"") ->  | JJ15: =IF(別紙１④!A185="〇",1,"") -> 1 | JK15: =IF(別紙１④!A186="〇",1,"") ->  | JL15: =SUM(JM15:JP15) -> 2 | JM15: =IF(別紙１④!B130="〇",1,"") -> 1 | JN15: =IF(別紙１④!B131="〇",1,"") -> 1 | JO15: =IF(別紙１④!B132="〇",1,"") ->  | JP15: =IF(別紙１④!B133="〇",1,"") ->  | JQ15: =別紙１④!D134&"" -> 例)農業生産活動の継続に向けた集落機能強化 | JR15: =SUM(JS15:KB15) -> 2 | JS15: =IF(別紙１④!B139="〇",1,"") -> 1 | JT15: =IF(別紙１④!B140="〇",1,"") ->  | JU15: =IF(別紙１④!B141="〇",1,"") ->  | JV15: =IF(別紙１④!B142="〇",1,"") ->  | JW15: =IF(別紙１④!B143="〇",1,"") ->  | JX15: =IF(別紙１④!B144="〇",1,"") ->  | JY15: =IF(別紙１④!B145="〇",1,"") ->  | JZ15: =IF(別紙１④!B146="〇",1,"") -> 1 | KA15: =IF(別紙１④!B147="〇",1,"") ->  | KB15: =IF(別紙１④!B148="〇",1,"") ->  | KC15: =別紙１④!N149&"" ->  | KE15: =IF('別紙２②（ネットワーク化活動計画）'!B17="○",1,"") -> 1 | KF15: =IF('別紙２②（ネットワーク化活動計画）'!B19="○",1,"") -> 1 | KG15: =IF('別紙２②（ネットワーク化活動計画）'!B21="○",1,"") -> 1 | KH15: ='別紙２③（ネットワーク化）'!$B$6&"" -> 農林地域集落協定ネットワーク協議会 | KI15: =COUNTIFS('別紙２③（ネットワーク化）'!$B$11:$B$14,"<>") -> 3 | KJ15: ='別紙２③（ネットワーク化）'!$F$15 -> 20.7346 | KK15: =IF('別紙２③（ネットワーク化）'!$B$23="○",1,"") -> 1 | KL15: =IF('別紙２③（ネットワーク化）'!$B$21="○",1,"") -> 1 | KM15: =IF('別紙２③（ネットワーク化）'!$B$22="○",1,"") ->  | KN15: =IF('別紙２③（ネットワーク化）'!$B$23="○",1,"") -> 1 | KO15: =IF('別紙２③（ネットワーク化）'!$H$20="○",1,"") ->  | KP15: =IF('別紙２③（ネットワーク化）'!$H$21="○",1,"") -> 1 | KQ15: =IF('別紙２③（ネットワーク化）'!$H$22="○",1,"") ->  | KR15: ='別紙２③（ネットワーク化）'!J23&"" ->  | KS15: =IF('別紙２③（ネットワーク化）'!$B$29="○",1,"") -> 1 | KT15: =IF('別紙２③（ネットワーク化）'!$B$31="○",1,"") ->  | KU15: =IF('別紙２③（ネットワーク化）'!$B$32="○",1,"") ->  | KV15: =IF('別紙２③（ネットワーク化）'!$B$33="○",1,"") ->  | KW15: =IF('別紙２③（ネットワーク化）'!$B$34="○",1,"") -> 1 | KX15: =IF('別紙２③（ネットワーク化）'!$H$29="○",1,"") -> 1 | KY15: =IF('別紙２③（ネットワーク化）'!$H$30="○",1,"") -> 1 | KZ15: =IF('別紙２③（ネットワーク化）'!$H$31="○",1,"") -> 1 | LA15: =IF('別紙２③（ネットワーク化）'!$H$32="○",1,"") ->  | LB15: =IF('別紙２③（ネットワーク化）'!$H$33="○",1,"") ->  | LC15: ='別紙２③（ネットワーク化）'!J34&"" ->  | LD15: =IF('別紙２③（ネットワーク化）'!$B$38="○",1,"") -> 1 | LE15: =IF('別紙２③（ネットワーク化）'!$B$39="○",1,"") -> 1 | LF15: =IF('別紙２③（ネットワーク化）'!$G$38="○",1,"") ->  | LG15: =IF('別紙２③（ネットワーク化）'!$G$39="○",1,"") ->  | LH15: ='別紙２③（ネットワーク化）'!J39&"" ->  | LJ15: =IF('別紙２③（ネットワーク化）'!$B$65="○",1,"") ->  | LK15: =IF('別紙２③（ネットワーク化）'!$B$66="○",1,"") -> 1 | LL15: =IF('別紙２③（ネットワーク化）'!$B$67="○",1,"") ->  | LM15: =IF('別紙２③（ネットワーク化）'!$B$68="○",1,"") ->  | LN15: =IF('別紙２③（ネットワーク化）'!$B$69="○",1,"") ->  | LO15: =IF('別紙２③（ネットワーク化）'!$B$70="○",1,"") ->  | LP15: ='別紙２③（ネットワーク化）'!F70&"" ->  | LQ15: ='別紙２④（統合）'!$B$6&"" -> 農林地域広域集落協定 | LR15: =COUNTIFS('別紙２④（統合）'!$B$11:$B$14,"<>") -> 3 | LS15: ='別紙２④（統合）'!$F$15 -> 18.0346 | LT15: =IF('別紙２④（統合）'!$B$20="○",1,"") ->  | LU15: =IF('別紙２④（統合）'!$B$21="○",1,"") -> 1 | LV15: =IF('別紙２④（統合）'!$B$22="○",1,"") ->  | LW15: =IF('別紙２④（統合）'!$B$23="○",1,"") -> 1 | LX15: =IF('別紙２④（統合）'!$H$20="○",1,"") ->  | LY15: =IF('別紙２④（統合）'!$H$21="○",1,"") ->  | LZ15: =IF('別紙２④（統合）'!$H$22="○",1,"") -> 1 | MA15: ='別紙２④（統合）'!$J$23&"" -> 農作業機械の老朽化及びオペレーターの不足 | MB15: =IF('別紙２④（統合）'!$B$29="○",1,"") -> 1 | MC15: =IF('別紙２④（統合）'!$B$30="○",1,"") ->  | MD15: =IF('別紙２④（統合）'!$B$31="○",1,"") -> 1 | ME15: =IF('別紙２④（統合）'!$B$32="○",1,"") -> 1 | MF15: =IF('別紙２④（統合）'!$B$33="○",1,"") -> 1 | MG15: =IF('別紙２④（統合）'!$H$29="○",1,"") ->  | MH15: =IF('別紙２④（統合）'!$H$30="○",1,"") ->  | MI15: =IF('別紙２④（統合）'!$H$31="○",1,"") ->  | MJ15: =IF('別紙２④（統合）'!$H$32="○",1,"") -> 1 | MK15: =IF('別紙２④（統合）'!$H$33="○",1,"") -> 1 | ML15: =IF('別紙２④（統合）'!$H$34="○",1,"") ->  | MM15: ='別紙２④（統合）'!$J$34&"" -> 農作業機械のオペレーターの確保 | MO15: =MP15+MZ15 -> 0 | MP15: =SUM(MQ15:MY15) -> 0 | MZ15: =SUM(NA15:NI15) -> 0 | NJ15: =NK15+NL15 -> 7 | NK15: =R15 -> 2 | NL15: ='別紙２⑤（多様な組織等の参画）'!G22 -> 5 | NM15: =IF('別紙２⑤（多様な組織等の参画）'!$B$31="○",1,"") -> 1 | NN15: =IF('別紙２⑤（多様な組織等の参画）'!$B$32="○",1,"") -> 1 | NO15: =IF('別紙２⑤（多様な組織等の参画）'!$B$33="○",1,"") ->  | NP15: =IF('別紙２⑤（多様な組織等の参画）'!$H$31="○",1,"") ->  | NQ15: =IF('別紙２⑤（多様な組織等の参画）'!$H$32="○",1,"") -> 1 | NR15: ='別紙２⑤（多様な組織等の参画）'!$J$33&"" -> 棚田の荒廃 | NS15: =IF('別紙２⑤（多様な組織等の参画）'!$B$39="○",1,"") -> 1 | NT15: =IF('別紙２⑤（多様な組織等の参画）'!$B$40="○",1,"") -> 1 | NU15: =IF('別紙２⑤（多様な組織等の参画）'!$B$41="○",1,"") ->  | NV15: =IF('別紙２⑤（多様な組織等の参画）'!$B$42="○",1,"") -> 1 | NW15: =IF('別紙２⑤（多様な組織等の参画）'!$B$43="○",1,"") ->  | NX15: =IF('別紙２⑤（多様な組織等の参画）'!$H$39="○",1,"") ->  | NY15: =IF('別紙２⑤（多様な組織等の参画）'!$H$40="○",1,"") -> 1 | NZ15: =IF('別紙２⑤（多様な組織等の参画）'!$H$41="○",1,"") -> 1 | OA15: ='別紙２⑤（多様な組織等の参画）'!$J$42&"" -> 棚田資源を活かした振興活動
